Transaction Number,Service - Fund ,Service  - Function ,Service - Cost Centre,Expense Type ,Expense Description,Supplier Name,Supplier Post Code (first 4 digits),Payment Date,Amount �
120515233,Libraries,"Education, Inclusion and Skills",Library Shop,Supplies and Services,Goods for resale,12TH SWINDON OLD TOWN SCOUT GROUP,SN1 ,10/01/2024,688.24
120034235,Physical Support,Adults,Physical Support 18 - 64,3rd Party Payments,Personal Budget - Domiciliary care,247 HOME CARE LTD,SN5 ,08/01/2024,"2,807.42"
120034235,Physical Support,Adults,Physical Support 65 and over,3rd Party Payments,Personal Budget - Domiciliary care,247 HOME CARE LTD,SN5 ,08/01/2024,193.20
120056238,Physical Support,Adults,Physical Support 65 and over,3rd Party Payments,Personal Budget - Domiciliary care,247 HOME CARE LTD,SN5 ,08/01/2024,"1,714.32"
120056233,Physical Support,Adults,Physical Support 65 and over,3rd Party Payments,Personal Budget - Domiciliary care,247 HOME CARE LTD,SN5 ,08/01/2024,900.00
120055233,Physical Support,Adults,Physical Support 65 and over,3rd Party Payments,Personal Budget - Domiciliary care,247 HOME CARE LTD,SN5 ,08/01/2024,721.28
119873233,Physical Support,Adults,Physical Support 65 and over,3rd Party Payments,Personal Budget - Domiciliary care,247 HOME CARE LTD,SN5 ,05/01/2024,"17,310.72"
120052233,Physical Support,Adults,Physical Support 65 and over,3rd Party Payments,Personal Budget - Domiciliary care,247 HOME CARE LTD,SN5 ,08/01/2024,"2,163.84"
119873233,Physical Support,Adults,Physical Support 65 and over,3rd Party Payments,Personal Budget - Domiciliary care,247 HOME CARE LTD,SN5 ,05/01/2024,"-12,910.80"
120056237,Physical Support,Adults,Physical Support 65 and over,3rd Party Payments,Personal Budget - Domiciliary care,247 HOME CARE LTD,SN5 ,08/01/2024,"2,100.00"
120056234,Physical Support,Adults,Physical Support 65 and over,3rd Party Payments,Personal Budget - Domiciliary care,247 HOME CARE LTD,SN5 ,08/01/2024,"2,100.00"
122509233,"Volutary Sector, Equipment and Carers",Adults,Carers Short Term Breaks - Adults,3rd Party Payments,Carers,247 HOME CARE LTD,SN5 ,24/01/2024,618.24
120056235,Physical Support,Adults,Physical Support 65 and over,3rd Party Payments,Personal Budget - Domiciliary care,247 HOME CARE LTD,SN5 ,08/01/2024,"2,100.00"
120034235,Physical Support,Adults,Physical Support 18 - 64,3rd Party Payments,Personal Budget - Domiciliary care,247 HOME CARE LTD,SN5 ,08/01/2024,"3,245.76"
120052233,Physical Support,Adults,Physical Support 65 and over,3rd Party Payments,Personal Budget - Domiciliary care,247 HOME CARE LTD,SN5 ,08/01/2024,-79.66
120056236,Physical Support,Adults,Physical Support 65 and over,3rd Party Payments,Personal Budget - Domiciliary care,247 HOME CARE LTD,SN5 ,08/01/2024,"2,100.00"
120052233,Physical Support,Adults,Physical Support 65 and over,3rd Party Payments,Personal Budget - Domiciliary care,247 HOME CARE LTD,SN5 ,08/01/2024,"1,671.60"
119497233,Routes to Employment,"Education, Inclusion and Skills",Multiply,Supplies and Services,Materials,4IMPRINT.CO.UK,M32 ,03/01/2024,259.99
119796233,Routes to Employment,"Education, Inclusion and Skills",Multiply,Supplies and Services,Materials,4IMPRINT.CO.UK,M32 ,05/01/2024,509.99
119497233,Routes to Employment,"Education, Inclusion and Skills",Multiply,Supplies and Services,Materials,4IMPRINT.CO.UK,M32 ,03/01/2024,262.49
119497233,Routes to Employment,"Education, Inclusion and Skills",Multiply,Supplies and Services,Materials,4IMPRINT.CO.UK,M32 ,03/01/2024,194.99
119796233,Routes to Employment,"Education, Inclusion and Skills",Multiply,Supplies and Services,Materials,4IMPRINT.CO.UK,M32 ,05/01/2024,232.99
119796233,Routes to Employment,"Education, Inclusion and Skills",Multiply,Supplies and Services,Materials,4IMPRINT.CO.UK,M32 ,05/01/2024,303.99
119796233,Routes to Employment,"Education, Inclusion and Skills",Multiply,Supplies and Services,Materials,4IMPRINT.CO.UK,M32 ,05/01/2024,254.99
119796233,Routes to Employment,"Education, Inclusion and Skills",Multiply,Supplies and Services,Materials,4IMPRINT.CO.UK,M32 ,05/01/2024,519.99
119353233,School Transport,"Education, Inclusion and Skills",Mainstream School Transport,Transport Costs,Home to School Transport,4K TRAVEL LTD,SN1 ,03/01/2024,"6,243.60"
122285237,School Transport,"Education, Inclusion and Skills",Mainstream School Transport,Transport Costs,Home to School Transport,4K TRAVEL LTD,SN1 ,24/01/2024,"3,973.20"
120814233,Streetsmart,Streetsmart,Waste - Processing,Transport Costs,Vehicle Hire / Contract,911 STAFFING LTD,SN2 ,15/01/2024,"5,260.22"
121343233,Streetsmart,Streetsmart,Waste - Processing,Transport Costs,Vehicle Hire / Contract,911 STAFFING LTD,SN2 ,17/01/2024,709.50
119275234,Streetsmart,Streetsmart,Waste - Processing,Transport Costs,Vehicle Hire / Contract,911 STAFFING LTD,SN2 ,03/01/2024,605.44
120290233,Streetsmart,Streetsmart,Waste - Processing,Transport Costs,Vehicle Hire / Contract,911 STAFFING LTD,SN2 ,10/01/2024,"5,307.87"
119273233,Streetsmart,Streetsmart,Refuse Collection,Transport Costs,Vehicle Hire / Contract,911 STAFFING LTD,SN2 ,03/01/2024,"3,418.84"
120025233,Streetsmart,Streetsmart,Waste - Processing,Employees,Training,A PLUS SAFETY & TRAINING SERVICES LTD,SN3 ,08/01/2024,"1,935.00"
121944309,Homelessness and Travellers,Housing Services,Private Sector Landlords,Transfer Payments,Payment of Costs,REDACTED PERSONAL DATA,SN3 ,26/01/2024,800.00
120860365,High Needs Block,Dedicated Schools Grant (DSG),SEN Resourcing Assessment Panel,3rd Party Payments,Top up funding - Academies and Free Schools Pre 16,ABBEY FARM EDUCATE TOGETHER PRIMARY,SN25,15/01/2024,690.42
121391233,Early Years Block,Dedicated Schools Grant (DSG),Free Nursery Education Commissioning - three & four  year olds,3rd Party Payments,Contracts - Child Care,ABBEY FARM EDUCATE TOGETHER PRIMARY,SN25,17/01/2024,"14,731.20"
121392233,Early Years Block,Dedicated Schools Grant (DSG),Free Nursery Education Commissioning - three & four  year olds,3rd Party Payments,Contracts - Child Care,ABBEY MEADS COMMUNITY PRIMARY SCHOOL,SN25,17/01/2024,"15,247.35"
120860303,High Needs Block,Dedicated Schools Grant (DSG),SEN Resourcing Assessment Panel,3rd Party Payments,Top up funding - Academies and Free Schools Pre 16,ABBEY MEADS COMMUNITY PRIMARY SCHOOL,SN25,15/01/2024,"6,785.84"
119484233,Mental Health,Adults,Mental Health 65 and over,3rd Party Payments,Personal Budget - Domiciliary care,ABICARE SERVICES LTD,BS32,03/01/2024,"1,290.24"
119484233,Physical Support,Adults,Physical Support 18 - 64,3rd Party Payments,Personal Budget - Domiciliary care,ABICARE SERVICES LTD,BS32,03/01/2024,"2,603.52"
119484233,Mental Health,Adults,Mental Health 65 and over,3rd Party Payments,Personal Budget - Domiciliary care,ABICARE SERVICES LTD,BS32,03/01/2024,-156.80
119484233,Physical Support,Adults,Physical Support 18 - 64,3rd Party Payments,Personal Budget - Domiciliary care,ABICARE SERVICES LTD,BS32,03/01/2024,69.12
119484233,Physical Support,Adults,Physical Support 18 - 64,3rd Party Payments,Personal Budget - Domiciliary care,ABICARE SERVICES LTD,BS32,03/01/2024,-8.40
119484233,Physical Support,Adults,Physical Support 18 - 64,3rd Party Payments,Personal Budget - Domiciliary care,ABICARE SERVICES LTD,BS32,03/01/2024,-275.92
119484234,Mental Health,Adults,Mental Health 65 and over,3rd Party Payments,Personal Budget - Domiciliary care,ABICARE SERVICES LTD (LIVE IN),SP2 ,03/01/2024,"14,192.64"
119484234,Physical Support,Adults,Physical Support 18 - 64,3rd Party Payments,Personal Budget - Domiciliary care,ABICARE SERVICES LTD (LIVE IN),SP2 ,03/01/2024,"-10,682.88"
119484234,Physical Support,Adults,Physical Support 18 - 64,3rd Party Payments,Personal Budget - Domiciliary care,ABICARE SERVICES LTD (LIVE IN),SP2 ,03/01/2024,"14,192.64"
119484234,Physical Support,Adults,Physical Support 18 - 64,3rd Party Payments,Personal Budget - Domiciliary care,ABICARE SERVICES LTD (LIVE IN),SP2 ,03/01/2024,"15,482.88"
119484234,Mental Health,Adults,Mental Health 65 and over,3rd Party Payments,Personal Budget - Domiciliary care,ABICARE SERVICES LTD (LIVE IN),SP2 ,03/01/2024,"-9,768.64"
119484234,Physical Support,Adults,Physical Support 18 - 64,3rd Party Payments,Personal Budget - Domiciliary care,ABICARE SERVICES LTD (LIVE IN),SP2 ,03/01/2024,"-9,768.64"
121393233,Early Years Block,Dedicated Schools Grant (DSG),Free Nursery Education Commissioning - three & four  year olds,3rd Party Payments,Contracts - Child Care,REDACTED PERSONAL DATA,SN2 ,17/01/2024,"1,501.50"
120517233,DSG Other Funding,Dedicated Schools Grant (DSG),LAC pupil premium,3rd Party Payments,Education / Training,AC EDUCATION,AL2 ,10/01/2024,653.69
119466235,Disabled Children,Children & Families,Occupational Therapy - Children,Supplies and Services,Equipment,ACCESS DIRECT SERVICES LIMITED,SN3 ,03/01/2024,300.00
119466235,Disabled Children,Children & Families,Occupational Therapy - Children,Supplies and Services,Equipment,ACCESS DIRECT SERVICES LIMITED,SN3 ,03/01/2024,"1,200.00"
120400233,Streetsmart,Streetsmart,Waterside Fleet Hires,Transport Costs,Vehicle Hire / Contract,ACCESS HIRE NATIONWIDE,WF6 ,10/01/2024,"1,671.79"
121944367,Homelessness and Travellers,Housing Services,Private Sector Landlords,Transfer Payments,Payment of Costs,REDACTED PERSONAL DATA,SN8 ,26/01/2024,650.00
121944329,Homelessness and Travellers,Housing Services,Private Sector Landlords,Transfer Payments,Payment of Costs,REDACTED PERSONAL DATA,SN8 ,26/01/2024,700.00
121759233,Care Management & Safeguarding,Adults,Mental Capacity & DOL,3rd Party Payments,Contracts - Social Care,ACTION FIRST ASSESSMENTS LTD,EC3N,19/01/2024,500.00
120678273,Social Care,Children & Families,Children's Resource and Home Finding Team,3rd Party Payments,Independent Fostering Agency Placements,ACTION FOR CHILDREN,WD18,12/01/2024,"3,494.01"
120678277,Social Care,Children & Families,Children's Resource and Home Finding Team,3rd Party Payments,Independent Fostering Agency Placements,ACTION FOR CHILDREN,WD18,12/01/2024,"3,843.07"
120678276,Social Care,Children & Families,Children's Resource and Home Finding Team,3rd Party Payments,Independent Fostering Agency Placements,ACTION FOR CHILDREN,WD18,12/01/2024,"3,719.10"
120678274,Social Care,Children & Families,Children's Resource and Home Finding Team,3rd Party Payments,Independent Fostering Agency Placements,ACTION FOR CHILDREN,WD18,12/01/2024,"3,719.10"
120678272,Social Care,Children & Families,Children's Resource and Home Finding Team,3rd Party Payments,Independent Fostering Agency Placements,ACTION FOR CHILDREN,WD18,12/01/2024,"3,381.30"
120678270,Social Care,Children & Families,Children's Resource and Home Finding Team,3rd Party Payments,Independent Fostering Agency Placements,ACTION FOR CHILDREN,WD18,12/01/2024,"3,381.30"
120678271,Social Care,Children & Families,Children's Resource and Home Finding Team,3rd Party Payments,Independent Fostering Agency Placements,ACTION FOR CHILDREN,WD18,12/01/2024,"3,494.01"
120678275,Social Care,Children & Families,Children's Resource and Home Finding Team,3rd Party Payments,Independent Fostering Agency Placements,ACTION FOR CHILDREN,WD18,12/01/2024,"3,843.07"
120860336,High Needs Block,Dedicated Schools Grant (DSG),SEN Resourcing Assessment Panel,3rd Party Payments,Top up funding - Academies and Free Schools Pre 16,ACTIVATE LEARNING EDUCATION TRUST,OX1 ,15/01/2024,"1,681.67"
120860360,High Needs Block,Dedicated Schools Grant (DSG),SEN Resourcing Assessment Panel,3rd Party Payments,Top up funding - Academies and Free Schools Post 16,ACTIVATE LEARNING EDUCATION TRUST,OX1 ,15/01/2024,"1,114.25"
123139259,Social Care,Children & Families,Children's Resource and Home Finding Team,3rd Party Payments,Independent Fostering Agency Placements,ACTIVE CARE SOLUTIONS LTD,B60 ,29/01/2024,"6,394.68"
123139261,Social Care,Children & Families,Children's Resource and Home Finding Team,3rd Party Payments,Independent Fostering Agency Placements,ACTIVE CARE SOLUTIONS LTD,B60 ,29/01/2024,"3,516.33"
123139262,Social Care,Children & Families,Children's Resource and Home Finding Team,3rd Party Payments,Independent Fostering Agency Placements,ACTIVE CARE SOLUTIONS LTD,B60 ,29/01/2024,"3,610.88"
123139260,Social Care,Children & Families,Unaccompanied Asylum Seeking Children (UASC),3rd Party Payments,Independent Fostering Agency Placements,ACTIVE CARE SOLUTIONS LTD,B60 ,29/01/2024,"4,345.58"
121826300,Learning Disabilities,Adults,Learning Disability 18 - 64,Transfer Payments,Personal Budget - Direct Payments - Domiciliary Care,REDACTED PERSONAL DATA,SN4 ,19/01/2024,"1,237.28"
121826300,Learning Disabilities,Adults,Learning Disability 18 - 64,Income,Client Contribution - Personal Budget - DP,REDACTED PERSONAL DATA,SN4 ,19/01/2024,-49.00
121826288,Learning Disabilities,Adults,Learning Disability 18 - 64,Income,Client Contribution - Personal Budget - DP,REDACTED PERSONAL DATA,SN3 ,19/01/2024,-35.16
121826288,Learning Disabilities,Adults,Learning Disability 18 - 64,Income,Client Contribution - Personal Budget - DP,REDACTED PERSONAL DATA,SN3 ,19/01/2024,-156.00
121826288,Learning Disabilities,Adults,Learning Disability 18 - 64,Transfer Payments,Personal Budget - Direct Payments - Domiciliary Care,REDACTED PERSONAL DATA,SN3 ,19/01/2024,410.88
121826288,Learning Disabilities,Adults,Learning Disability 18 - 64,Transfer Payments,Personal Budget - Direct Payments - Domiciliary Care,REDACTED PERSONAL DATA,SN3 ,19/01/2024,"1,823.36"
121944328,Homelessness and Travellers,Housing Services,Private Sector Landlords,Transfer Payments,Payment of Costs,ADVANCE HOUSING & SUPPORT LTD,OX28,26/01/2024,"1,074.00"
120074233,Streetsmart,Streetsmart,Waste - Disposal,Supplies and Services,Materials,ADVANTIV LIMITED,RG14,10/01/2024,606.32
122135233,Social Care,Children & Families,Children's Resource and Home Finding Team,3rd Party Payments,Independent Fostering Agency Placements,AFFINITY FOSTERING SERVICES LTD,CM4 ,22/01/2024,"3,813.00"
122136233,Social Care,Children & Families,Children's Resource and Home Finding Team,3rd Party Payments,Independent Fostering Agency Placements,AFFINITY FOSTERING SERVICES LTD,CM4 ,22/01/2024,"3,813.00"
122137233,Social Care,Children & Families,Children's Resource and Home Finding Team,3rd Party Payments,Independent Fostering Agency Placements,AFFINITY FOSTERING SERVICES LTD,CM4 ,22/01/2024,"5,646.34"
121503233,Learning Disabilities,Adults,Learning Disability 65 and over,3rd Party Payments,Supported Lodgings (Childrens)/Supported Living (Adults),AGINCARE ENABLE LTD,DT5 ,17/01/2024,"2,573.48"
121503233,Learning Disabilities,Adults,Learning Disability 65 and over,3rd Party Payments,Supported Lodgings (Childrens)/Supported Living (Adults),AGINCARE ENABLE LTD,DT5 ,17/01/2024,"6,099.00"
121503233,Learning Disabilities,Adults,Learning Disability 65 and over,Income,Client Contribution - Supported Living,AGINCARE ENABLE LTD,DT5 ,17/01/2024,-141.44
121503233,Learning Disabilities,Adults,Learning Disability 65 and over,Income,Client Contribution - Supported Living,AGINCARE ENABLE LTD,DT5 ,17/01/2024,-335.16
121580233,Physical Support,Adults,Physical Support 65 and over,Income,Client Contribution - Residential,AGINCARE LTD,DT5 ,17/01/2024,"-1,231.12"
121580233,Physical Support,Adults,Physical Support 65 and over,3rd Party Payments,Residential Care,AGINCARE LTD,DT5 ,17/01/2024,"3,780.00"
121394233,Early Years Block,Dedicated Schools Grant (DSG),Free Nursery Education Commissioning - three & four  year olds,3rd Party Payments,Contracts - Child Care,REDACTED PERSONAL DATA,SN3 ,17/01/2024,693.00
119862233,School Transport,"Education, Inclusion and Skills",Special Educational Needs Transport,Transport Costs,Home to School Transport,AKCESS CIC,SN2 ,05/01/2024,"2,256.25"
119862233,School Transport,"Education, Inclusion and Skills",Mainstream School Transport,Transport Costs,Home to School Transport,AKCESS CIC,SN2 ,05/01/2024,"2,177.08"
121716234,Learning Disabilities,Adults,LD Day Services (OK4U),Transport Costs,Home to Centre Transport,AKCESS CIC,SN2 ,19/01/2024,"20,778.01"
121716234,Physical Support,Adults,Physical Support 65 and over,Transport Costs,Home to Centre Transport,AKCESS CIC,SN2 ,19/01/2024,"5,934.71"
121716234,Physical Support,Adults,Physical Support 65 and over,Transport Costs,Home to Centre Transport,AKCESS CIC,SN2 ,19/01/2024,"2,968.29"
119515233,School Transport,"Education, Inclusion and Skills",Mainstream School Transport,Transport Costs,Home to School Transport,AKCESS CIC,SN2 ,03/01/2024,"2,177.08"
119646233,Travel,Highways & Transport,Public Transport,3rd Party Payments,Contract Payments,AKCESS CIC,SN2 ,05/01/2024,"15,023.18"
119515233,School Transport,"Education, Inclusion and Skills",Special Educational Needs Transport,Transport Costs,Home to School Transport,AKCESS CIC,SN2 ,03/01/2024,"2,256.25"
121703233,Physical Support,Adults,Physical Support 65 and over,Transport Costs,Home to Centre Transport,AKCESS CIC,SN2 ,19/01/2024,"2,968.29"
121703233,Learning Disabilities,Adults,LD Day Services (OK4U),Transport Costs,Home to Centre Transport,AKCESS CIC,SN2 ,19/01/2024,"20,778.01"
121703233,Physical Support,Adults,Physical Support 65 and over,Transport Costs,Home to Centre Transport,AKCESS CIC,SN2 ,19/01/2024,"5,934.71"
119648233,Senior Management Team,Children & Families,Family Safeguarding Model,Supplies and Services,Services,ALASDAIR CANT & ASSOCIATES LIMITED,CB2 ,05/01/2024,"3,385.76"
120366233,Learning Disabilities,Adults,Learning Disability 18 - 64,3rd Party Payments,Supported Accommodation Scheme,REDACTED PERSONAL DATA,SN2 ,22/01/2024,"2,280.00"
119461233,Disabled Children,Children & Families,DCT Daytime Short Breaks,Transfer Payments,Personal Budget - Direct Payments - Other,REDACTED PERSONAL DATA,SN1 ,03/01/2024,661.50
121826312,Learning Disabilities,Adults,Learning Disability 18 - 64,Transfer Payments,Personal Budget - Direct Payments - Domiciliary Care,REDACTED PERSONAL DATA,SN25,19/01/2024,"1,400.08"
121826312,Learning Disabilities,Adults,Learning Disability 18 - 64,Transfer Payments,Personal Budget - Direct Payments - Domiciliary Care,REDACTED PERSONAL DATA,SN25,19/01/2024,68.48
121826312,Learning Disabilities,Adults,Learning Disability 18 - 64,Income,Client Contribution - Personal Budget - DP,REDACTED PERSONAL DATA,SN25,19/01/2024,-22.72
121826312,Learning Disabilities,Adults,Learning Disability 18 - 64,Income,Client Contribution - Personal Budget - DP,REDACTED PERSONAL DATA,SN25,19/01/2024,-464.48
121826430,Learning Disabilities,Adults,Learning Disability 18 - 64,Transfer Payments,Personal Budget - Direct Payments - Domiciliary Care,REDACTED PERSONAL DATA,GL53,19/01/2024,"3,007.76"
121826430,Learning Disabilities,Adults,Learning Disability 18 - 64,Transfer Payments,Personal Budget - Direct Payments - Other,REDACTED PERSONAL DATA,GL53,19/01/2024,"16,800.00"
121395234,Early Years Block,Dedicated Schools Grant (DSG),Free Nursery Education Commissioning - three & four  year olds,3rd Party Payments,Contracts - Child Care,ALFRESCO CHILDCARE,SN6 ,17/01/2024,"12,104.40"
121395233,Early Years Block,Dedicated Schools Grant (DSG),Free Nursery Education Commissioning - two year olds,3rd Party Payments,Contracts - Child Care,ALFRESCO CHILDCARE,SN6 ,17/01/2024,509.52
120387233,Learning Disabilities,Adults,Learning Disability 18 - 64,3rd Party Payments,Supported Accommodation Scheme,REDACTED PERSONAL DATA,SN1 ,22/01/2024,"2,666.00"
121826417,Learning Disabilities,Adults,Learning Disability 18 - 64,Transfer Payments,Personal Budget - Direct Payments - Domiciliary Care,REDACTED PERSONAL DATA,SN4 ,19/01/2024,197.52
121826417,Learning Disabilities,Adults,Learning Disability 18 - 64,Transfer Payments,Personal Budget - Direct Payments - Other,REDACTED PERSONAL DATA,SN4 ,19/01/2024,157.92
121826417,Learning Disabilities,Adults,Learning Disability 18 - 64,Transfer Payments,Personal Budget - Direct Payments - Domiciliary Care,REDACTED PERSONAL DATA,SN4 ,19/01/2024,"2,817.60"
121826417,Learning Disabilities,Adults,Learning Disability 18 - 64,Transfer Payments,Personal Budget - Direct Payments - Domiciliary Care,REDACTED PERSONAL DATA,SN4 ,19/01/2024,"2,378.80"
121826417,Learning Disabilities,Adults,Learning Disability 18 - 64,Transfer Payments,Personal Budget - Direct Payments - Domiciliary Care,REDACTED PERSONAL DATA,SN4 ,19/01/2024,469.50
121826417,Learning Disabilities,Adults,Learning Disability 18 - 64,Transfer Payments,Personal Budget - Direct Payments - Other,REDACTED PERSONAL DATA,SN4 ,19/01/2024,118.80
121826417,Learning Disabilities,Adults,Learning Disability 18 - 64,Transfer Payments,Personal Budget - Direct Payments - Domiciliary Care,REDACTED PERSONAL DATA,SN4 ,19/01/2024,"1,448.48"
121826417,Learning Disabilities,Adults,Learning Disability 18 - 64,Transfer Payments,Personal Budget - Direct Payments - Other,REDACTED PERSONAL DATA,SN4 ,19/01/2024,151.20
122098233,Streetsmart,Streetsmart,Refuse Collection,Employees,Temporary / Agency - by Accounts Payable,ALIGRA PERSONNEL LTD,SN25,22/01/2024,"1,136.80"
119466234,Streetsmart,Streetsmart,Refuse Collection,Employees,Temporary / Agency - by Accounts Payable,ALIGRA PERSONNEL LTD,SN25,03/01/2024,"1,461.60"
122093233,Streetsmart,Streetsmart,Refuse Collection,Employees,Temporary / Agency - by Accounts Payable,ALIGRA PERSONNEL LTD,SN25,22/01/2024,"1,035.30"
121956233,Streetsmart,Streetsmart,Refuse Collection,Employees,Temporary / Agency - by Accounts Payable,ALIGRA PERSONNEL LTD,SN25,19/01/2024,812.00
121954234,Streetsmart,Streetsmart,Refuse Collection,Employees,Temporary / Agency - by Accounts Payable,ALIGRA PERSONNEL LTD,SN25,19/01/2024,"1,624.00"
122097233,Streetsmart,Streetsmart,Refuse Collection,Employees,Temporary / Agency - by Accounts Payable,ALIGRA PERSONNEL LTD,SN25,22/01/2024,"1,624.00"
122094233,Streetsmart,Streetsmart,Refuse Collection,Employees,Temporary / Agency - by Accounts Payable,ALIGRA PERSONNEL LTD,SN25,22/01/2024,"1,807.63"
122095233,Streetsmart,Streetsmart,Refuse Collection,Employees,Temporary / Agency - by Accounts Payable,ALIGRA PERSONNEL LTD,SN25,22/01/2024,"1,624.00"
121960233,Streetsmart,Streetsmart,Refuse Collection,Employees,Temporary / Agency - by Accounts Payable,ALIGRA PERSONNEL LTD,SN25,19/01/2024,"1,624.00"
122092233,Streetsmart,Streetsmart,Refuse Collection,Employees,Temporary / Agency - by Accounts Payable,ALIGRA PERSONNEL LTD,SN25,22/01/2024,"1,715.35"
121959233,Streetsmart,Streetsmart,Refuse Collection,Employees,Temporary / Agency - by Accounts Payable,ALIGRA PERSONNEL LTD,SN25,19/01/2024,"1,638.97"
119466233,Streetsmart,Streetsmart,Refuse Collection,Employees,Temporary / Agency - by Accounts Payable,ALIGRA PERSONNEL LTD,SN25,03/01/2024,974.40
123289233,Streetsmart,Streetsmart,Refuse Collection,Employees,Temporary / Agency - by Accounts Payable,ALIGRA PERSONNEL LTD,SN25,31/01/2024,"1,624.00"
122096233,Streetsmart,Streetsmart,Refuse Collection,Employees,Temporary / Agency - by Accounts Payable,ALIGRA PERSONNEL LTD,SN25,22/01/2024,"1,461.60"
122924233,School Transport,"Education, Inclusion and Skills",Special Educational Needs Transport,Transport Costs,Home to School Transport,REDACTED PERSONAL DATA,SN5 ,26/01/2024,518.18
120388233,Learning Disabilities,Adults,Learning Disability 18 - 64,3rd Party Payments,Supported Accommodation Scheme,REDACTED PERSONAL DATA,SN2 ,22/01/2024,"1,866.00"
120388233,Learning Disabilities,Adults,Learning Disability 18 - 64,3rd Party Payments,Supported Accommodation Scheme,REDACTED PERSONAL DATA,SN2 ,22/01/2024,"2,226.00"
120388233,Learning Disabilities,Adults,Learning Disability 18 - 64,3rd Party Payments,Supported Accommodation Scheme,REDACTED PERSONAL DATA,SN2 ,22/01/2024,"1,840.00"
121826257,Learning Disabilities,Adults,Learning Disability 18 - 64,Transfer Payments,Personal Budget - Direct Payments - Domiciliary Care,REDACTED PERSONAL DATA,SN5 ,19/01/2024,"2,817.36"
121826257,Learning Disabilities,Adults,Learning Disability 18 - 64,Transfer Payments,Personal Budget - Direct Payments - Domiciliary Care,REDACTED PERSONAL DATA,SN5 ,19/01/2024,"3,660.00"
121826257,Learning Disabilities,Adults,Learning Disability 18 - 64,Income,Client Contribution - Personal Budget - DP,REDACTED PERSONAL DATA,SN5 ,19/01/2024,-130.08
121826257,Learning Disabilities,Adults,Learning Disability 18 - 64,Income,Client Contribution - Personal Budget - DP,REDACTED PERSONAL DATA,SN5 ,19/01/2024,-169.04
121826257,Learning Disabilities,Adults,Learning Disability 18 - 64,Transfer Payments,Personal Budget - Direct Payments - Domiciliary Care,REDACTED PERSONAL DATA,SN5 ,19/01/2024,"3,079.68"
121826257,Learning Disabilities,Adults,Learning Disability 18 - 64,Transfer Payments,Personal Budget - Direct Payments - Other,REDACTED PERSONAL DATA,SN5 ,19/01/2024,23.80
121826257,Learning Disabilities,Adults,Learning Disability 18 - 64,Income,Client Contribution - Personal Budget - DP,REDACTED PERSONAL DATA,SN5 ,19/01/2024,-142.20
121826257,Learning Disabilities,Adults,Learning Disability 18 - 64,Income,Client Contribution - Personal Budget - DP,REDACTED PERSONAL DATA,SN5 ,19/01/2024,-1.08
121123233,Early Years Block,Dedicated Schools Grant (DSG),Free Nursery Education Commissioning - three & four  year olds,3rd Party Payments,Contracts - Child Care,REDACTED PERSONAL DATA,SN25,17/01/2024,"6,375.60"
121395235,Early Years Block,Dedicated Schools Grant (DSG),Free Nursery Education Commissioning - three & four  year olds,3rd Party Payments,Contracts - Child Care,REDACTED PERSONAL DATA,SN1 ,17/01/2024,693.00
121395236,Early Years Block,Dedicated Schools Grant (DSG),Free Nursery Education Commissioning - three & four  year olds,3rd Party Payments,Contracts - Child Care,REDACTED PERSONAL DATA,SN1 ,17/01/2024,831.60
121826287,Learning Disabilities,Adults,Learning Disability 18 - 64,Income,Client Contribution - Personal Budget - DP,REDACTED PERSONAL DATA,SN5 ,19/01/2024,-127.04
121826287,Learning Disabilities,Adults,Learning Disability 18 - 64,Transfer Payments,Personal Budget - Direct Payments - Domiciliary Care,REDACTED PERSONAL DATA,SN5 ,19/01/2024,39.20
121826287,Learning Disabilities,Adults,Learning Disability 18 - 64,Transfer Payments,Personal Budget - Direct Payments - Domiciliary Care,REDACTED PERSONAL DATA,SN5 ,19/01/2024,"3,628.80"
121826287,Learning Disabilities,Adults,Learning Disability 18 - 64,Income,Client Contribution - Personal Budget - DP,REDACTED PERSONAL DATA,SN5 ,19/01/2024,-1.36
123285233,DSG Other Funding,Dedicated Schools Grant (DSG),LAC pupil premium,3rd Party Payments,Education / Training,ALL SAINTS ACADEMY PLYMOUTH,PL5 ,31/01/2024,540.00
119307233,Local Transport Plan Funded,Strategic Planning and Highways,Rights of way Improvement Plan,Capital,Contractor Payments,ALLBUILD BUILDING & LANDSCAPING SERVICES,SN25,03/01/2024,"1,160.00"
119812233,Streetsmart,Streetsmart,Waterside Fleet Workshops,Supplies and Services,Materials,ALLIANCE AUTOMOTIVE UK T/A BRAYMARC,BD4 ,05/01/2024,815.00
119811233,Streetsmart,Streetsmart,Waterside Fleet Workshops,Supplies and Services,Materials,ALLIANCE AUTOMOTIVE UK T/A BRAYMARC,BD4 ,05/01/2024,815.00
119246233,Treasury,Corporate Finance,Treasury,Supplies and Services,Bank Charges,ALLPAY-NET LIMITED,HR1 ,03/01/2024,"1,070.05"
122373233,Landlord Services,Supervision & Management,Estate Management Team,Supplies and Services,Contracts,ALLPAY-NET LIMITED,HR1 ,24/01/2024,"1,981.44"
120149233,Treasury,Corporate Finance,Treasury,Supplies and Services,Bank Charges,ALLPAY-NET LIMITED,HR1 ,10/01/2024,"1,083.40"
119698233,Landlord Services,Supervision & Management,Estate Management Team,Supplies and Services,Contracts,ALLPAY-NET LIMITED,HR1 ,05/01/2024,"2,111.81"
120306234,Local Transport Plan Funded,Strategic Planning and Highways,Local Safety Schemes,Capital,Contractor Payments,ALPHA HIGHWAY CONSULTANTS LIMITED,SG5 ,10/01/2024,"1,145.00"
119375233,Highways Schemes,Strategic Planning and Highways,Mead Way Junction Improvements,Capital,Contractor Payments,ALPHA HIGHWAY CONSULTANTS LIMITED,SG5 ,03/01/2024,"1,245.00"
120001233,Local Transport Plan Funded,Strategic Planning and Highways,Local Safety Schemes,Capital,Contractor Payments,ALPHA HIGHWAY CONSULTANTS LIMITED,SG5 ,08/01/2024,"1,095.00"
119360233,Town Centre,"Economy, Growth and Place",HAZ Streets and spaces,Capital,Professional Fees,ALPHA HIGHWAY CONSULTANTS LIMITED,SG5 ,03/01/2024,"1,325.00"
120002233,Local Transport Plan Funded,Strategic Planning and Highways,Local Safety Schemes,Capital,Contractor Payments,ALPHA HIGHWAY CONSULTANTS LIMITED,SG5 ,08/01/2024,"1,235.00"
121124233,Early Years Block,Dedicated Schools Grant (DSG),Free Nursery Education Commissioning - two year olds,3rd Party Payments,Contracts - Child Care,ALPHA PRE-SCHOOL,SN5 ,17/01/2024,"3,057.12"
121125233,Early Years Block,Dedicated Schools Grant (DSG),Free Nursery Education Commissioning - three & four  year olds,3rd Party Payments,Contracts - Child Care,ALPHA PRE-SCHOOL,SN5 ,17/01/2024,"6,260.76"
121291233,Disabled Children,Children & Families,DCT Daytime Short Breaks,3rd Party Payments,Respite Care,ALPHA24 HEALTHCARE LTD,EC3A,17/01/2024,978.75
121290233,Disabled Children,Children & Families,DCT Daytime Short Breaks,3rd Party Payments,Respite Care,ALPHA24 HEALTHCARE LTD,EC3A,17/01/2024,720.00
121271233,Disabled Children,Children & Families,DCT Daytime Short Breaks,3rd Party Payments,Respite Care,ALPHA24 HEALTHCARE LTD,EC3A,17/01/2024,978.75
121012233,Disabled Children,Children & Families,DCT Daytime Short Breaks,3rd Party Payments,Respite Care,ALPHA24 HEALTHCARE LTD,EC3A,15/01/2024,978.75
120624233,Disabled Children,Children & Families,DCT Daytime Short Breaks,3rd Party Payments,Respite Care,ALPHA24 HEALTHCARE LTD,EC3A,12/01/2024,978.75
120630233,Disabled Children,Children & Families,DCT Daytime Short Breaks,3rd Party Payments,Respite Care,ALPHA24 HEALTHCARE LTD,EC3A,12/01/2024,652.50
120631233,Disabled Children,Children & Families,DCT Daytime Short Breaks,3rd Party Payments,Respite Care,ALPHA24 HEALTHCARE LTD,EC3A,12/01/2024,978.75
120157233,Disabled Children,Children & Families,DCT Daytime Short Breaks,3rd Party Payments,Respite Care,ALPHA24 HEALTHCARE LTD,EC3A,10/01/2024,"1,305.00"
120037233,Disabled Children,Children & Families,DCT Daytime Short Breaks,3rd Party Payments,Respite Care,ALPHA24 HEALTHCARE LTD,EC3A,08/01/2024,"1,305.00"
123384236,Disabled Children,Children & Families,DCT Daytime Short Breaks,3rd Party Payments,Respite Care,ALPHA24 HEALTHCARE LTD,EC3A,31/01/2024,652.50
121287233,Disabled Children,Children & Families,DCT Daytime Short Breaks,3rd Party Payments,Respite Care,ALPHA24 HEALTHCARE LTD,EC3A,17/01/2024,978.75
120039233,Disabled Children,Children & Families,DCT Daytime Short Breaks,3rd Party Payments,Respite Care,ALPHA24 HEALTHCARE LTD,EC3A,08/01/2024,"1,305.00"
123385234,Disabled Children,Children & Families,DCT Daytime Short Breaks,3rd Party Payments,Respite Care,ALPHA24 HEALTHCARE LTD,EC3A,31/01/2024,978.75
121270233,Disabled Children,Children & Families,DCT Daytime Short Breaks,3rd Party Payments,Respite Care,ALPHA24 HEALTHCARE LTD,EC3A,17/01/2024,978.75
121267233,Disabled Children,Children & Families,DCT Daytime Short Breaks,3rd Party Payments,Respite Care,ALPHA24 HEALTHCARE LTD,EC3A,17/01/2024,"1,305.00"
120636233,Disabled Children,Children & Families,DCT Daytime Short Breaks,3rd Party Payments,Respite Care,ALPHA24 HEALTHCARE LTD,EC3A,12/01/2024,"1,305.00"
120632233,Disabled Children,Children & Families,DCT Daytime Short Breaks,3rd Party Payments,Respite Care,ALPHA24 HEALTHCARE LTD,EC3A,12/01/2024,978.75
121324233,Disabled Children,Children & Families,DCT Daytime Short Breaks,3rd Party Payments,Respite Care,ALPHA24 HEALTHCARE LTD,EC3A,17/01/2024,978.75
121288233,Disabled Children,Children & Families,DCT Daytime Short Breaks,3rd Party Payments,Respite Care,ALPHA24 HEALTHCARE LTD,EC3A,17/01/2024,"1,305.00"
120293233,Disabled Children,Children & Families,DCT Daytime Short Breaks,3rd Party Payments,Respite Care,ALPHA24 HEALTHCARE LTD,EC3A,10/01/2024,652.50
120042233,Disabled Children,Children & Families,DCT Daytime Short Breaks,3rd Party Payments,Respite Care,ALPHA24 HEALTHCARE LTD,EC3A,08/01/2024,"1,631.25"
121289233,Disabled Children,Children & Families,DCT Daytime Short Breaks,3rd Party Payments,Respite Care,ALPHA24 HEALTHCARE LTD,EC3A,17/01/2024,978.75
121269233,Disabled Children,Children & Families,DCT Daytime Short Breaks,3rd Party Payments,Respite Care,ALPHA24 HEALTHCARE LTD,EC3A,17/01/2024,652.50
121013233,Disabled Children,Children & Families,DCT Daytime Short Breaks,3rd Party Payments,Respite Care,ALPHA24 HEALTHCARE LTD,EC3A,15/01/2024,"1,305.00"
120038233,Disabled Children,Children & Families,DCT Daytime Short Breaks,3rd Party Payments,Respite Care,ALPHA24 HEALTHCARE LTD,EC3A,08/01/2024,978.75
120036233,Disabled Children,Children & Families,DCT Daytime Short Breaks,3rd Party Payments,Respite Care,ALPHA24 HEALTHCARE LTD,EC3A,08/01/2024,978.75
123385233,Disabled Children,Children & Families,DCT Daytime Short Breaks,3rd Party Payments,Respite Care,ALPHA24 HEALTHCARE LTD,EC3A,31/01/2024,652.50
121286233,Disabled Children,Children & Families,DCT Daytime Short Breaks,3rd Party Payments,Respite Care,ALPHA24 HEALTHCARE LTD,EC3A,17/01/2024,"1,631.25"
121011233,Disabled Children,Children & Families,DCT Daytime Short Breaks,3rd Party Payments,Respite Care,ALPHA24 HEALTHCARE LTD,EC3A,15/01/2024,"1,305.00"
120628233,Disabled Children,Children & Families,DCT Daytime Short Breaks,3rd Party Payments,Respite Care,ALPHA24 HEALTHCARE LTD,EC3A,12/01/2024,"1,631.25"
120184234,Disabled Children,Children & Families,DCT Daytime Short Breaks,3rd Party Payments,Respite Care,ALPHA24 HEALTHCARE LTD,EC3A,10/01/2024,"1,305.00"
120040233,Disabled Children,Children & Families,DCT Daytime Short Breaks,3rd Party Payments,Respite Care,ALPHA24 HEALTHCARE LTD,EC3A,08/01/2024,"1,957.50"
121327233,Disabled Children,Children & Families,DCT Daytime Short Breaks,3rd Party Payments,Respite Care,ALPHA24 HEALTHCARE LTD,EC3A,17/01/2024,978.75
121285233,Disabled Children,Children & Families,DCT Daytime Short Breaks,3rd Party Payments,Respite Care,ALPHA24 HEALTHCARE LTD,EC3A,17/01/2024,652.50
121284233,Disabled Children,Children & Families,DCT Daytime Short Breaks,3rd Party Payments,Respite Care,ALPHA24 HEALTHCARE LTD,EC3A,17/01/2024,978.75
120625233,Disabled Children,Children & Families,DCT Daytime Short Breaks,3rd Party Payments,Respite Care,ALPHA24 HEALTHCARE LTD,EC3A,12/01/2024,978.75
121268233,Disabled Children,Children & Families,DCT Daytime Short Breaks,3rd Party Payments,Respite Care,ALPHA24 HEALTHCARE LTD,EC3A,17/01/2024,652.50
120629233,Disabled Children,Children & Families,DCT Daytime Short Breaks,3rd Party Payments,Respite Care,ALPHA24 HEALTHCARE LTD,EC3A,12/01/2024,"1,305.00"
120246234,Disabled Children,Children & Families,DCT Daytime Short Breaks,3rd Party Payments,Respite Care,ALPHA24 HEALTHCARE LTD,EC3A,10/01/2024,652.50
121592265,Physical Support,Adults,Physical Support 65 and over,3rd Party Payments,Nursing Care,ALTOGETHER CARE WEYMOUTH CARE HOME,DT4 ,17/01/2024,"4,023.28"
121592265,Physical Support,Adults,Physical Support 65 and over,Income,Client Contribution - Nursing,ALTOGETHER CARE WEYMOUTH CARE HOME,DT4 ,17/01/2024,-691.20
121629233,Highways Schemes,Strategic Planning and Highways,Mead Way Junction Improvements,Capital,Contractor Payments,ALUN GRIFFITHS (CONTRACTORS ) LTD,NP7 ,17/01/2024,"103,553.68"
121826259,Learning Disabilities,Adults,Learning Disability 18 - 64,Transfer Payments,Personal Budget - Direct Payments - Domiciliary Care,REDACTED PERSONAL DATA,SN3 ,19/01/2024,81.40
121826259,Learning Disabilities,Adults,Learning Disability 18 - 64,Transfer Payments,Personal Budget - Direct Payments - Domiciliary Care,REDACTED PERSONAL DATA,SN3 ,19/01/2024,"1,782.66"
121395237,Early Years Block,Dedicated Schools Grant (DSG),Free Nursery Education Commissioning - three & four  year olds,3rd Party Payments,Contracts - Child Care,REDACTED PERSONAL DATA,SN5 ,17/01/2024,"1,155.00"
Corporate Card Transaction,Homelessness and Travellers,Housing Services,Warm Welcome Project,Supplies and Services,Equipment,Amznmktplace,,24/01/2024,"1,185.47"
119396233,Social Care,Children & Families,Children's Resource and Home Finding Team,3rd Party Payments,Semi Independent,AMEGREEN CHILDREN'S SERVICES LTD,RG7 ,03/01/2024,"13,285.67"
122819238,Social Care,Children & Families,Children's Resource and Home Finding Team,3rd Party Payments,Semi Independent,AMEGREEN CHILDREN'S SERVICES LTD,RG7 ,26/01/2024,"13,285.67"
120682238,Responsive Repairs,Repairs,Responsive Repairs,Premises Costs,Repairs - Buildings,AMELIO UTILITIES(GLOU) LTD T/A 3 COUNTIES DRAIN SERVICES,GL1 ,12/01/2024,528.06
120682238,Responsive Repairs,Repairs,Responsive Repairs,Premises Costs,Repairs - Buildings,AMELIO UTILITIES(GLOU) LTD T/A 3 COUNTIES DRAIN SERVICES,GL1 ,12/01/2024,210.89
120682238,Responsive Repairs,Repairs,Responsive Repairs,Premises Costs,Repairs - Buildings,AMELIO UTILITIES(GLOU) LTD T/A 3 COUNTIES DRAIN SERVICES,GL1 ,12/01/2024,140.60
120682238,Responsive Repairs,Repairs,Responsive Repairs,Premises Costs,Repairs - Buildings,AMELIO UTILITIES(GLOU) LTD T/A 3 COUNTIES DRAIN SERVICES,GL1 ,12/01/2024,351.49
120682238,Responsive Repairs,Repairs,Responsive Repairs,Premises Costs,Repairs - Buildings,AMELIO UTILITIES(GLOU) LTD T/A 3 COUNTIES DRAIN SERVICES,GL1 ,12/01/2024,176.57
120730233,Routes to Employment,"Education, Inclusion and Skills",Multiply,Supplies and Services,Materials,REDACTED PERSONAL DATA,SN3 ,12/01/2024,720.00
122597233,Highways & Transport,Highways & Transport,Project Delivery,Supplies and Services,Services,AMEY OW LTD,L19 ,26/01/2024,"66,908.72"
121005233,Social Care,Children & Families,Children's Resource and Home Finding Team,3rd Party Payments,Independent Fostering Agency Placements,AMICUS FOSTER CARE,BS2 ,15/01/2024,"5,256.05"
121828256,Mental Health,Adults,Mental Health 18-64,Transfer Payments,Personal Budget - Direct Payments - Other,REDACTED PERSONAL DATA,SN25,19/01/2024,24.00
121828256,Mental Health,Adults,Mental Health 18-64,Transfer Payments,Personal Budget - Direct Payments - Domiciliary Care,REDACTED PERSONAL DATA,SN25,19/01/2024,1.84
121828256,Mental Health,Adults,Mental Health 18-64,Transfer Payments,Personal Budget - Direct Payments - Domiciliary Care,REDACTED PERSONAL DATA,SN25,19/01/2024,544.32
121395238,Early Years Block,Dedicated Schools Grant (DSG),Free Nursery Education Commissioning - three & four  year olds,3rd Party Payments,Contracts - Child Care,REDACTED PERSONAL DATA,SN25,17/01/2024,693.00
122200239,Early Years Block,Dedicated Schools Grant (DSG),Free Nursery Education Commissioning - three & four  year olds,3rd Party Payments,Contracts - Child Care,REDACTED PERSONAL DATA,SN5 ,24/01/2024,"2,280.00"
122200241,Early Years Block,Dedicated Schools Grant (DSG),Free Nursery Education Commissioning - three & four  year olds,3rd Party Payments,Contracts - Child Care,REDACTED PERSONAL DATA,SN5 ,24/01/2024,"2,280.00"
121139332,Early Years Block,Dedicated Schools Grant (DSG),Free Nursery Education Commissioning - three & four  year olds,3rd Party Payments,Contracts - Child Care,REDACTED PERSONAL DATA,SN5 ,17/01/2024,"116,239.20"
121139331,Early Years Block,Dedicated Schools Grant (DSG),Free Nursery Education Commissioning - two year olds,3rd Party Payments,Contracts - Child Care,REDACTED PERSONAL DATA,SN5 ,17/01/2024,"11,209.44"
121944320,Homelessness and Travellers,Housing Services,Private Sector Landlords,Transfer Payments,Payment of Costs,ANGELVIEW PROPERTIES LTD,ALBO,26/01/2024,590.00
122822236,Planned Maintenance Programme,HRA Capital Financing,Windows,Capital,Contractor Payments,ANGLIAN BUILDING PRODUCTS LIMITED,NR6 ,26/01/2024,"3,424.70"
122822236,Planned Maintenance Programme,HRA Capital Financing,Windows,Capital,Contractor Payments,ANGLIAN BUILDING PRODUCTS LIMITED,NR6 ,26/01/2024,"2,379.23"
122822236,Planned Maintenance Programme,HRA Capital Financing,Windows,Capital,Contractor Payments,ANGLIAN BUILDING PRODUCTS LIMITED,NR6 ,26/01/2024,"6,056.08"
122822236,Planned Maintenance Programme,HRA Capital Financing,Windows,Capital,Contractor Payments,ANGLIAN BUILDING PRODUCTS LIMITED,NR6 ,26/01/2024,"6,861.66"
122822234,Planned Maintenance Programme,HRA Capital Financing,Windows,Capital,Contractor Payments,ANGLIAN BUILDING PRODUCTS LIMITED,NR6 ,26/01/2024,"4,026.37"
122822236,Planned Maintenance Programme,HRA Capital Financing,Windows,Capital,Contractor Payments,ANGLIAN BUILDING PRODUCTS LIMITED,NR6 ,26/01/2024,"9,118.76"
122822234,Planned Maintenance Programme,HRA Capital Financing,Windows,Capital,Contractor Payments,ANGLIAN BUILDING PRODUCTS LIMITED,NR6 ,26/01/2024,"3,672.15"
121395239,Early Years Block,Dedicated Schools Grant (DSG),Free Nursery Education Commissioning - three & four  year olds,3rd Party Payments,Contracts - Child Care,REDACTED PERSONAL DATA,SN1 ,17/01/2024,"1,039.50"
121395240,Early Years Block,Dedicated Schools Grant (DSG),Free Nursery Education Commissioning - two year olds,3rd Party Payments,Contracts - Child Care,REDACTED PERSONAL DATA,SN1 ,17/01/2024,509.52
120482233,Education,"Education, Inclusion and Skills","Holiday, Activities & Food Grant",3rd Party Payments,Contracts - Child Care,REDACTED PERSONAL DATA,TR16,10/01/2024,"1,000.00"
121826311,Physical Support,Adults,Physical Support 18 - 64,Transfer Payments,Personal Budget - Direct Payments - Domiciliary Care,REDACTED PERSONAL DATA,SN25,19/01/2024,171.20
121826311,Physical Support,Adults,Physical Support 18 - 64,Transfer Payments,Personal Budget - Direct Payments - Domiciliary Care,REDACTED PERSONAL DATA,SN25,19/01/2024,376.00
121826311,Physical Support,Adults,Physical Support 18 - 64,Transfer Payments,Personal Budget - Direct Payments - Domiciliary Care,REDACTED PERSONAL DATA,SN25,19/01/2024,732.60
121826311,Physical Support,Adults,Physical Support 18 - 64,Transfer Payments,Personal Budget - Direct Payments - Domiciliary Care,REDACTED PERSONAL DATA,SN25,19/01/2024,24.80
121826311,Physical Support,Adults,Physical Support 18 - 64,Transfer Payments,Personal Budget - Direct Payments - Domiciliary Care,REDACTED PERSONAL DATA,SN25,19/01/2024,"1,172.16"
120662233,Early Help,Early Intervention & Prevention,On Trak Youth Counselling Service,3rd Party Payments,Contract Payments,REDACTED PERSONAL DATA,SN2 ,12/01/2024,540.00
123380233,Social Care,Children & Families,Targeted Mental Health Service,Supplies and Services,Fees,ANTHONY COLLINS SOLICITORS LLP,B3 2,31/01/2024,653.50
119734233,HRA Overheads,Supervision & Management,Admin / Management General,Premises Costs,Insurance - Premises,AON UK LIMITED,EC3V,05/01/2024,"3,268.64"
121437234,Supported Employment,Housing Services,Community Meals,Supplies and Services,Food,APETITO LIMITED,BA14,17/01/2024,653.71
123367235,Supported Employment,Housing Services,Community Meals,Supplies and Services,Food,APETITO LIMITED,BA14,31/01/2024,793.39
121467234,Supported Employment,Housing Services,Community Meals,Supplies and Services,Food,APETITO LIMITED,BA14,17/01/2024,735.86
121438233,Supported Employment,Housing Services,Community Meals,Supplies and Services,Food,APETITO LIMITED,BA14,17/01/2024,753.18
121464233,Supported Employment,Housing Services,Community Meals,Supplies and Services,Food,APETITO LIMITED,BA14,17/01/2024,763.85
123367236,Supported Employment,Housing Services,Community Meals,Supplies and Services,Food,APETITO LIMITED,BA14,31/01/2024,737.04
121437235,Supported Employment,Housing Services,Community Meals,Supplies and Services,Food,APETITO LIMITED,BA14,17/01/2024,512.66
123367233,Supported Employment,Housing Services,Community Meals,Supplies and Services,Food,APETITO LIMITED,BA14,31/01/2024,737.62
121468233,Supported Employment,Housing Services,Community Meals,Supplies and Services,Food,APETITO LIMITED,BA14,17/01/2024,732.19
121963248,Responsive Repairs,Repairs,Responsive Repairs,3rd Party Payments,Contract Payments,APEX SCAFFOLDING SERVICES,SN2 ,19/01/2024,649.00
119543233,Responsive Repairs,Repairs,Responsive Repairs,3rd Party Payments,Contract Payments,APEX SCAFFOLDING SERVICES,SN2 ,03/01/2024,60.00
121590233,Learning Disabilities,Adults,Learning Disability 18 - 64,Income,Client Contribution - Residential,APPLEFORD LTD T/A DANESWOOD,BS25,17/01/2024,-438.80
121590233,Learning Disabilities,Adults,Learning Disability 18 - 64,3rd Party Payments,Residential Care,APPLEFORD LTD T/A DANESWOOD,BS25,17/01/2024,"22,008.12"
122378233,Adults - Staffing and Supporting People,Adults,Blue Badges,Supplies and Services,Materials,APS GROUP,SK3 ,24/01/2024,"1,092.24"
121003233,Social Care,Children & Families,Children's Resource and Home Finding Team,3rd Party Payments,Residential Care,REDACTED PERSONAL DATA,LL40,15/01/2024,"99,800.00"
121004233,Social Care,Children & Families,Children's Resource and Home Finding Team,3rd Party Payments,Residential Care,REDACTED PERSONAL DATA,LL40,15/01/2024,"8,483.00"
121002233,Social Care,Children & Families,Children's Resource and Home Finding Team,3rd Party Payments,Residential Care,REDACTED PERSONAL DATA,LL40,15/01/2024,"99,800.00"
122175233,High Needs Block,Dedicated Schools Grant (DSG),SEN Resourcing Assessment Panel,3rd Party Payments,Top up funding - Maintained providers Pre 16,REDACTED PERSONAL DATA,SN2 ,24/01/2024,"11,540.26"
121126233,Early Years Block,Dedicated Schools Grant (DSG),Free Nursery Education Commissioning - three & four  year olds,3rd Party Payments,Contracts - Child Care,REDACTED PERSONAL DATA,SN2 ,17/01/2024,"11,142.02"
122199233,Early Years Block,Dedicated Schools Grant (DSG),Free Nursery Education Commissioning - three & four  year olds,3rd Party Payments,Contracts - Child Care,REDACTED PERSONAL DATA,SN2 ,24/01/2024,"11,540.26"
121888234,Planned Maintenance Programme,HRA Capital Financing,Exceptional Extensive,Capital,Contractor Payments,ARCADIS CONSULTING (UK) LTD,EC3M,19/01/2024,"11,151.00"
122366233,Landscaping & Open Space,Culture & Heritage & Art,GWCF - Trees for Climate,Capital,Contractor Payments,ARCHAEOLOGICAL SURVEYS LTD,SN11,24/01/2024,"1,650.00"
121425233,Social Care,Children & Families,Children's Resource and Home Finding Team,3rd Party Payments,Residential Care,AREA CAMDEN LTD,N8 0,17/01/2024,"23,715.00"
121260237,Human Resources and Organisational Development,"People, Culture and Organisational Resilience",Pay & Reward,Employees,Temporary / Agency - by Accounts Payable,ARGONAUT MANAGEMENT SERVICES LIMITED,N11 ,17/01/2024,"6,600.00"
119286256,Other Repairs,Repairs,Unallocated job costs from OPEN system,Premises Costs,Maintenance - Buildings,ARGOS FIRE PROTECTION LIMITED,EX4 ,03/01/2024,"1,569.85"
119432253,Other Repairs,Repairs,Unallocated job costs from OPEN system,Premises Costs,Maintenance - Buildings,ARGOS FIRE PROTECTION LIMITED,EX4 ,03/01/2024,"1,380.20"
119432251,Other Repairs,Repairs,Unallocated job costs from OPEN system,Premises Costs,Maintenance - Buildings,ARGOS FIRE PROTECTION LIMITED,EX4 ,03/01/2024,"1,569.85"
119770233,Other Repairs,Repairs,Unallocated job costs from OPEN system,Premises Costs,Maintenance - Buildings,ARGOS FIRE PROTECTION LIMITED,EX4 ,05/01/2024,"1,569.85"
119432252,Other Repairs,Repairs,Unallocated job costs from OPEN system,Premises Costs,Maintenance - Buildings,ARGOS FIRE PROTECTION LIMITED,EX4 ,03/01/2024,"1,569.85"
119771233,Other Repairs,Repairs,Unallocated job costs from OPEN system,Premises Costs,Maintenance - Buildings,ARGOS FIRE PROTECTION LIMITED,EX4 ,05/01/2024,"1,569.85"
119286257,Other Repairs,Repairs,Unallocated job costs from OPEN system,Premises Costs,Maintenance - Buildings,ARGOS FIRE PROTECTION LIMITED,EX4 ,03/01/2024,"1,569.85"
121592271,Mental Health,Adults,Mental Health 65 and over,3rd Party Payments,Nursing Care,ARIA HEALTHCARE GROUP LTD,CO4 ,17/01/2024,"6,000.00"
119492235,Lydiard Park,Culture & Heritage,Lydiard : Hotel Operations,Supplies and Services,Liquid,ARKELLS BREWERY LTD,SN2 ,03/01/2024,"1,076.52"
119773233,Lydiard Park,Culture & Heritage,Lydiard : Hotel Operations,Supplies and Services,Liquid,ARKELLS BREWERY LTD,SN2 ,05/01/2024,"1,673.56"
119880234,Lydiard Park,Culture & Heritage,Lydiard : Hotel Operations,Supplies and Services,Liquid,ARKELLS BREWERY LTD,SN2 ,05/01/2024,713.74
120595234,Lydiard Park,Culture & Heritage,Lydiard : Hotel Operations,Supplies and Services,Liquid,ARKELLS BREWERY LTD,SN2 ,12/01/2024,938.79
120075233,Streetsmart,Streetsmart,Waterside Fleet Hires,Transport Costs,Vehicle Hire / Contract,ARNOLD PLANT HIRE LIMITED,SK6 ,10/01/2024,"3,510.00"
120074235,Streetsmart,Streetsmart,Waterside Fleet Hires,Transport Costs,Vehicle Hire / Contract,ARNOLD PLANT HIRE LIMITED,SK6 ,10/01/2024,"1,659.00"
120074234,Streetsmart,Streetsmart,Waterside Fleet Hires,Transport Costs,Vehicle Hire / Contract,ARNOLD PLANT HIRE LIMITED,SK6 ,10/01/2024,"1,113.00"
120072233,Streetsmart,Streetsmart,Waterside Fleet Hires,Transport Costs,Vehicle Hire / Contract,ARNOLD PLANT HIRE LIMITED,SK6 ,10/01/2024,"1,470.00"
123408233,School Transport,"Education, Inclusion and Skills",Special Educational Needs Transport,Transport Costs,Home to School Transport,ARNOLD ZAJDER A2J TRADE,SN10,31/01/2024,"3,094.00"
123403233,School Transport,"Education, Inclusion and Skills",Special Educational Needs Transport,Transport Costs,Home to School Transport,ARNOLD ZAJDER A2J TRADE,SN10,31/01/2024,"2,762.50"
123401233,School Transport,"Education, Inclusion and Skills",Special Educational Needs Transport,Transport Costs,Home to School Transport,ARNOLD ZAJDER A2J TRADE,SN10,31/01/2024,"1,436.50"
119990233,Streetsmart,Streetsmart,StreetSmart Contracts & Strategic Planning,Supplies and Services,Services,ARROW INDUSTRIAL GROUP LIMITED,HD8 ,08/01/2024,"9,700.00"
121592269,Mental Health,Adults,Mental Health 65 and over,3rd Party Payments,Residential Care,ARTI CARE HOMES (GLOUCESTER) LIMITED,WD7 ,17/01/2024,"4,800.00"
Corporate Card Transaction,Supported Housing,Special Services,Supported Housing Management,Supplies and Services,Materials,Asda Groceries Online,,16/01/2024,517.50
Corporate Card Transaction,Community Health & Wellbeing,Public Health,Community Health and Wellbeing Management,Supplies and Services,Food,Asda Stores,,19/01/2024,500.00
Corporate Card Transaction,Community Health & Wellbeing,Public Health,Community Health and Wellbeing Management,Supplies and Services,Food,Asda Stores,,19/01/2024,"1,000.00"
123278233,Sheltered Accomodation,Special Services,Midwinter Gardens,Premises Costs,Maintenance - Buildings,ASF SIGNS LTD,SN4 ,31/01/2024,"1,461.00"
121591233,Mental Health,Adults,Mental Health 18-64,3rd Party Payments,Residential Care,ASH VIEW HOUSE,BS15,17/01/2024,"7,993.72"
121591233,Mental Health,Adults,Mental Health 18-64,Income,Client Contribution - Residential,ASH VIEW HOUSE,BS15,17/01/2024,-418.80
121544233,Mental Health,Adults,Mental Health 65 and over,Income,Client Contribution - Residential,ASHBURY LODGE,SN3 ,17/01/2024,-881.64
121544233,Memory & Cognition,Adults,Support for Memory and Cognition 65 and over,3rd Party Payments,Residential Care,ASHBURY LODGE,SN3 ,17/01/2024,"-2,867.32"
121544233,Physical Support,Adults,Physical Support 65 and over,3rd Party Payments,Residential Care,ASHBURY LODGE,SN3 ,17/01/2024,409.62
121544233,Physical Support,Adults,Physical Support 65 and over,Income,Client Contribution - Residential,ASHBURY LODGE,SN3 ,17/01/2024,-913.37
121544233,Memory & Cognition,Adults,Support for Memory and Cognition 65 and over,3rd Party Payments,Residential Care,ASHBURY LODGE,SN3 ,17/01/2024,-409.62
121544233,Mental Health,Adults,Mental Health 65 and over,3rd Party Payments,Residential Care,ASHBURY LODGE,SN3 ,17/01/2024,"4,000.00"
121544233,Physical Support,Adults,Physical Support 65 and over,Income,Client Contribution - Residential,ASHBURY LODGE,SN3 ,17/01/2024,"-1,308.16"
121544233,Physical Support,Adults,Physical Support 65 and over,3rd Party Payments,Residential Care,ASHBURY LODGE,SN3 ,17/01/2024,"2,355.30"
121544233,Mental Health,Adults,Mental Health 65 and over,3rd Party Payments,Residential Care,ASHBURY LODGE,SN3 ,17/01/2024,"2,988.96"
121544233,Mental Health,Adults,Mental Health 65 and over,Income,Client Contribution - Residential,ASHBURY LODGE,SN3 ,17/01/2024,-691.20
121544233,Physical Support,Adults,Physical Support 65 and over,Income,Client Contribution - Residential,ASHBURY LODGE,SN3 ,17/01/2024,-657.68
121544233,Physical Support,Adults,Physical Support 65 and over,Income,Client Contribution - Residential,ASHBURY LODGE,SN3 ,17/01/2024,-764.80
121544233,Physical Support,Adults,Physical Support 65 and over,Income,Client Contribution - Residential,ASHBURY LODGE,SN3 ,17/01/2024,-839.31
121544233,Physical Support,Adults,Physical Support 65 and over,3rd Party Payments,Residential Care,ASHBURY LODGE,SN3 ,17/01/2024,614.43
121544233,Physical Support,Adults,Physical Support 65 and over,3rd Party Payments,Residential Care,ASHBURY LODGE,SN3 ,17/01/2024,"2,867.32"
121544233,Memory & Cognition,Adults,Support for Memory and Cognition 65 and over,Income,Client Contribution - Residential,ASHBURY LODGE,SN3 ,17/01/2024,691.20
121544233,Mental Health,Adults,Mental Health 65 and over,3rd Party Payments,Residential Care,ASHBURY LODGE,SN3 ,17/01/2024,"2,867.32"
121544233,Physical Support,Adults,Physical Support 65 and over,3rd Party Payments,Residential Care,ASHBURY LODGE,SN3 ,17/01/2024,"4,032.00"
121544233,Physical Support,Adults,Physical Support 65 and over,Income,Client Contribution - Residential,ASHBURY LODGE,SN3 ,17/01/2024,-691.20
121544233,Physical Support,Adults,Physical Support 65 and over,Income,Client Contribution - Residential,ASHBURY LODGE,SN3 ,17/01/2024,-98.74
121544233,Physical Support,Adults,Physical Support 65 and over,Income,Client Contribution - Residential,ASHBURY LODGE,SN3 ,17/01/2024,"-1,125.72"
121544233,Physical Support,Adults,Physical Support 65 and over,Income,Client Contribution - Residential,ASHBURY LODGE,SN3 ,17/01/2024,-886.60
121544233,Physical Support,Adults,Physical Support 65 and over,Income,Client Contribution - Residential,ASHBURY LODGE,SN3 ,17/01/2024,-801.80
121544233,Physical Support,Adults,Physical Support 65 and over,Income,Client Contribution - Residential,ASHBURY LODGE,SN3 ,17/01/2024,-730.76
120086233,Customer Strategy & Operations,"People, Culture and Organisational Resilience",Cemeteries & Crematoria,Supplies and Services,Materials,ASHDOWN SUPPLIES,TN22,10/01/2024,"1,369.50"
121543233,Physical Support,Adults,Physical Support 65 and over,Income,Client Contribution - Nursing,ASHGROVE HOUSE NURSING HOME,SN5 ,17/01/2024,-655.04
121543233,Physical Support,Adults,Physical Support 65 and over,3rd Party Payments,Nursing Care,ASHGROVE HOUSE NURSING HOME,SN5 ,17/01/2024,"6,080.00"
121761233,Public Health,Public Health,Health Checks,3rd Party Payments,Contract Payments,ASHINGTON HOUSE SURGERY,SN5 ,19/01/2024,736.00
122369233,Public Health,Public Health,Smoking & Tobacco,3rd Party Payments,Contract Payments,ASHINGTON WAY PHARMACY,SN5 ,24/01/2024,230.00
122209233,Public Health,Public Health,Supplementary SMTR Grant,3rd Party Payments,Contract Payments,ASHINGTON WAY PHARMACY,SN5 ,24/01/2024,500.00
122369233,Public Health,Public Health,Smoking & Tobacco,3rd Party Payments,Contract Payments,ASHINGTON WAY PHARMACY,SN5 ,24/01/2024,"1,182.50"
121828237,Physical Support,Adults,Physical Support 18 - 64,Transfer Payments,Personal Budget - Direct Payments - Other,REDACTED PERSONAL DATA,SN25,19/01/2024,24.00
121828237,Physical Support,Adults,Physical Support 18 - 64,Transfer Payments,Personal Budget - Direct Payments - Domiciliary Care,REDACTED PERSONAL DATA,SN25,19/01/2024,12.24
121828237,Physical Support,Adults,Physical Support 18 - 64,Transfer Payments,Personal Budget - Direct Payments - Domiciliary Care,REDACTED PERSONAL DATA,SN25,19/01/2024,"1,519.56"
121953235,Libraries,"Education, Inclusion and Skills",Library Delivery,Supplies and Services,Materials,ASKEWS AND HOLTS LIBRARY SERVICES LIMITED,PR1 ,19/01/2024,618.13
120306233,Libraries,"Education, Inclusion and Skills",Library Delivery,Supplies and Services,Materials,ASKEWS AND HOLTS LIBRARY SERVICES LIMITED,PR1 ,10/01/2024,"1,013.64"
119446233,Libraries,"Education, Inclusion and Skills",Library Delivery,Supplies and Services,Materials,ASKEWS AND HOLTS LIBRARY SERVICES LIMITED,PR1 ,03/01/2024,649.40
123370234,Libraries,"Education, Inclusion and Skills",Library Delivery,Supplies and Services,Materials,ASKEWS AND HOLTS LIBRARY SERVICES LIMITED,PR1 ,31/01/2024,"1,250.43"
121567233,Learning Disabilities,Adults,Learning Disability 18 - 64,Income,Client Contribution - Residential,ASPECTS & MILESTONES TRUST,BS16,17/01/2024,-463.20
121567233,Learning Disabilities,Adults,Learning Disability 18 - 64,3rd Party Payments,Residential Care,ASPECTS & MILESTONES TRUST,BS16,17/01/2024,"6,964.88"
121592236,Learning Disabilities,Adults,Learning Disability 18 - 64,3rd Party Payments,Residential Care,ASPECTS 2 LTD,B70 ,17/01/2024,"9,278.64"
121592236,Learning Disabilities,Adults,Learning Disability 18 - 64,Income,Client Contribution - Residential,ASPECTS 2 LTD,B70 ,17/01/2024,-438.80
119849233,Physical Support,Adults,Physical Support 18 - 64,3rd Party Payments,Supported Lodgings (Childrens)/Supported Living (Adults),ASPECTS 2 LTD,B70 ,05/01/2024,"1,350.00"
119850233,Learning Disabilities,Adults,Learning Disability 18 - 64,3rd Party Payments,Residential Care,ASPECTS 2 LTD,B70 ,05/01/2024,662.76
120691233,Disabled Children,Children & Families,DCT Overnight Short Breaks,3rd Party Payments,Respite Care,ASPRIS CHILDREN'S SERVICES,DL1 ,12/01/2024,"10,800.00"
121592249,Learning Disabilities,Adults,Learning Disability 18 - 64,Income,Client Contribution - Residential,ASTON CARE LIMITED,RG30,17/01/2024,-655.44
121592249,Learning Disabilities,Adults,Learning Disability 18 - 64,Income,Client Contribution - Residential,ASTON CARE LIMITED,RG30,17/01/2024,-676.40
121592249,Learning Disabilities,Adults,Learning Disability 18 - 64,Income,Client Contribution - Residential,ASTON CARE LIMITED,RG30,17/01/2024,-410.80
121592249,Learning Disabilities,Adults,Learning Disability 18 - 64,3rd Party Payments,Residential Care,ASTON CARE LIMITED,RG30,17/01/2024,"8,008.00"
121592248,Learning Disabilities,Adults,Learning Disability 18 - 64,Income,Client Contribution - Residential,ASTON CARE LIMITED,RG30,17/01/2024,-788.80
121592249,Learning Disabilities,Adults,Learning Disability 18 - 64,Income,Client Contribution - Residential,ASTON CARE LIMITED,RG30,17/01/2024,-587.40
121592248,Learning Disabilities,Adults,Learning Disability 18 - 64,3rd Party Payments,Residential Care,ASTON CARE LIMITED,RG30,17/01/2024,"9,733.80"
121592249,Learning Disabilities,Adults,Learning Disability 18 - 64,3rd Party Payments,Residential Care,ASTON CARE LIMITED,RG30,17/01/2024,"7,288.00"
121592249,Learning Disabilities,Adults,Learning Disability 18 - 64,3rd Party Payments,Residential Care,ASTON CARE LIMITED,RG30,17/01/2024,"8,288.00"
121048234,Education,"Education, Inclusion and Skills","Holiday, Activities & Food Grant",3rd Party Payments,Contracts - Child Care,ATBSHOP LTD,SN2 ,17/01/2024,"1,116.00"
122476233,Highways & Transport,Highways & Transport,Project Delivery,Supplies and Services,Services,ATKINS LTD (INACTIVE SEE 6140278),WR4 ,24/01/2024,"37,953.91"
121424233,Social Care,Children & Families,Children's Resource and Home Finding Team,3rd Party Payments,Residential Care,A-TRIANGLE CARE LIMITED,FY5 ,17/01/2024,"26,549.29"
119964233,Senior Management Team,Children & Families,Family Safeguarding Model,Employees,Temporary / Agency - by Accounts Payable,ATTENTI LTD,EC2R,08/01/2024,"1,416.00"
119917233,Senior Management Team,Children & Families,Senior Management Team - Staffing,Employees,Temporary / Agency - by Accounts Payable,ATTENTI LTD,EC2R,05/01/2024,"3,540.00"
119900234,Senior Management Team,Children & Families,Senior Management Team - Staffing,Employees,Temporary / Agency - by Accounts Payable,ATTENTI LTD,EC2R,05/01/2024,"3,980.00"
119897235,Social Care,Children & Families,CP & CIN Social Work - South,Employees,DBS checks,ATTENTI LTD,EC2R,05/01/2024,"25,375.81"
121615233,Safeguarding and Quality Assurance,Children & Families,Quality Assurance Team,Employees,Temporary / Agency - by Accounts Payable,ATTENTI LTD,EC2R,17/01/2024,"2,360.00"
121463233,Social Care,Children & Families,Practice Development,Employees,Temporary / Agency - by Accounts Payable,ATTENTI LTD,EC2R,17/01/2024,"1,416.00"
119919233,Senior Management Team,Children & Families,Family Safeguarding Model,Employees,Temporary / Agency - by Accounts Payable,ATTENTI LTD,EC2R,05/01/2024,"2,360.00"
123027233,Senior Management Team,Children & Families,Senior Management Team - Staffing,Employees,Temporary / Agency - by Accounts Payable,ATTENTI LTD,EC2R,29/01/2024,"3,980.00"
120000233,Safeguarding and Quality Assurance,Children & Families,Quality Assurance Team,Employees,Temporary / Agency - by Accounts Payable,ATTENTI LTD,EC2R,08/01/2024,"2,360.00"
119921233,Safeguarding and Quality Assurance,Children & Families,Quality Assurance Team,Employees,Temporary / Agency - by Accounts Payable,ATTENTI LTD,EC2R,05/01/2024,"2,360.00"
121533234,Social Care,Children & Families,Practice Development,Employees,Temporary / Agency - by Accounts Payable,ATTENTI LTD,EC2R,17/01/2024,"2,400.00"
121602233,Safeguarding and Quality Assurance,Children & Families,Quality Assurance Team,Employees,Temporary / Agency - by Accounts Payable,ATTENTI LTD,EC2R,17/01/2024,"2,360.00"
121803235,Social Care,Children & Families,Practice Development,Employees,Temporary / Agency - by Accounts Payable,ATTENTI LTD,EC2R,19/01/2024,"1,920.00"
121616233,Social Care,Children & Families,Practice Development,Employees,Temporary / Agency - by Accounts Payable,ATTENTI LTD,EC2R,17/01/2024,"1,416.00"
120154233,Social Care,Children & Families,Practice Development,Employees,Temporary / Agency - by Accounts Payable,ATTENTI LTD,EC2R,10/01/2024,"1,416.00"
119981233,Social Care,Children & Families,Practice Development,Employees,Temporary / Agency - by Accounts Payable,ATTENTI LTD,EC2R,08/01/2024,"2,400.00"
119918233,Senior Management Team,Children & Families,Family Safeguarding Model,Employees,Temporary / Agency - by Accounts Payable,ATTENTI LTD,EC2R,05/01/2024,"1,416.00"
123030233,Senior Management Team,Children & Families,Senior Management Team - Staffing,Employees,Temporary / Agency - by Accounts Payable,ATTENTI LTD,EC2R,29/01/2024,"2,124.00"
121457233,Senior Management Team,Children & Families,Senior Management Team - Staffing,Employees,Temporary / Agency - by Accounts Payable,ATTENTI LTD,EC2R,17/01/2024,"3,540.00"
119922233,Senior Management Team,Children & Families,Senior Management Team - Staffing,Employees,Temporary / Agency - by Accounts Payable,ATTENTI LTD,EC2R,05/01/2024,"3,540.00"
119966234,Senior Management Team,Children & Families,Senior Management Team - Staffing,Employees,Temporary / Agency - by Accounts Payable,ATTENTI LTD,EC2R,08/01/2024,"3,980.00"
119920233,Safeguarding and Quality Assurance,Children & Families,Quality Assurance Team,Employees,Temporary / Agency - by Accounts Payable,ATTENTI LTD,EC2R,05/01/2024,"2,360.00"
119341233,Safeguarding and Quality Assurance,Children & Families,Quality Assurance Team,Employees,Temporary / Agency - by Accounts Payable,ATTENTI LTD,EC2R,03/01/2024,"2,360.00"
119980233,Social Care,Children & Families,Practice Development,Employees,Temporary / Agency - by Accounts Payable,ATTENTI LTD,EC2R,08/01/2024,"1,416.00"
119899233,Social Care,Children & Families,Practice Development,Employees,Temporary / Agency - by Accounts Payable,ATTENTI LTD,EC2R,05/01/2024,"2,400.00"
119897233,Senior Management Team,Children & Families,Family Safeguarding Model,Employees,Temporary / Agency - by Accounts Payable,ATTENTI LTD,EC2R,05/01/2024,"2,360.00"
121600233,Senior Management Team,Children & Families,Family Safeguarding Model,Employees,Temporary / Agency - by Accounts Payable,ATTENTI LTD,EC2R,17/01/2024,"2,950.00"
122207233,Senior Management Team,Children & Families,Senior Management Team - Staffing,Employees,Temporary / Agency - by Accounts Payable,ATTENTI LTD,EC2R,24/01/2024,"3,980.00"
121408233,Senior Management Team,Children & Families,Family Safeguarding Model,Employees,Temporary / Agency - by Accounts Payable,ATTENTI LTD,EC2R,17/01/2024,"2,950.00"
123035234,Senior Management Team,Children & Families,Senior Management Team - Staffing,Employees,Temporary / Agency - by Accounts Payable,ATTENTI LTD,EC2R,29/01/2024,"2,388.00"
121409233,Senior Management Team,Children & Families,Senior Management Team - Staffing,Employees,Temporary / Agency - by Accounts Payable,ATTENTI LTD,EC2R,17/01/2024,"25,375.81"
119953234,Senior Management Team,Children & Families,Senior Management Team - Staffing,Employees,Temporary / Agency - by Accounts Payable,ATTENTI LTD,EC2R,08/01/2024,"3,540.00"
120310233,Social Care,Children & Families,CP & CIN Social Work - South,Employees,Temporary / Agency - by Accounts Payable,ATTENTI LTD,EC2R,10/01/2024,"2,183.00"
121533233,Safeguarding and Quality Assurance,Children & Families,Quality Assurance Team,Employees,Temporary / Agency - by Accounts Payable,ATTENTI LTD,EC2R,17/01/2024,"2,360.00"
119954233,Safeguarding and Quality Assurance,Children & Families,Quality Assurance Team,Employees,Temporary / Agency - by Accounts Payable,ATTENTI LTD,EC2R,08/01/2024,"2,360.00"
119863233,Safeguarding and Quality Assurance,Children & Families,Quality Assurance Team,Employees,Temporary / Agency - by Accounts Payable,ATTENTI LTD,EC2R,05/01/2024,"2,360.00"
122454233,Senior Management Team,Children & Families,Family Safeguarding Model,Employees,Temporary / Agency - by Accounts Payable,ATTENTI LTD,EC2R,24/01/2024,"1,770.00"
120149234,Senior Management Team,Children & Families,Family Safeguarding Model,Employees,Temporary / Agency - by Accounts Payable,ATTENTI LTD,EC2R,10/01/2024,"1,770.00"
121951233,Senior Management Team,Children & Families,Senior Management Team - Staffing,Employees,Temporary / Agency - by Accounts Payable,ATTENTI LTD,EC2R,19/01/2024,"25,375.81"
121950235,Senior Management Team,Children & Families,Senior Management Team - Staffing,Employees,Temporary / Agency - by Accounts Payable,ATTENTI LTD,EC2R,19/01/2024,"25,375.81"
119848233,Social Care,Children & Families,Practice Development,Employees,Temporary / Agency - by Accounts Payable,ATTENTI LTD,EC2R,05/01/2024,"1,416.00"
121458233,Senior Management Team,Children & Families,Family Safeguarding Model,Employees,Temporary / Agency - by Accounts Payable,ATTENTI LTD,EC2R,17/01/2024,"2,360.00"
121454236,Senior Management Team,Children & Families,Family Safeguarding Model,Employees,Temporary / Agency - by Accounts Payable,ATTENTI LTD,EC2R,17/01/2024,708.00
121387233,Safeguarding and Quality Assurance,Children & Families,Quality Assurance Team,Employees,Temporary / Agency - by Accounts Payable,ATTENTI LTD,EC2R,17/01/2024,"2,360.00"
121388233,Safeguarding and Quality Assurance,Children & Families,Quality Assurance Team,Employees,Temporary / Agency - by Accounts Payable,ATTENTI LTD,EC2R,17/01/2024,"2,360.00"
119884233,Safeguarding and Quality Assurance,Children & Families,Quality Assurance Team,Employees,Temporary / Agency - by Accounts Payable,ATTENTI LTD,EC2R,05/01/2024,"2,360.00"
119340233,Safeguarding and Quality Assurance,Children & Families,Quality Assurance Team,Employees,Temporary / Agency - by Accounts Payable,ATTENTI LTD,EC2R,03/01/2024,"2,360.00"
122455233,Social Care,Children & Families,Practice Development,Employees,Temporary / Agency - by Accounts Payable,ATTENTI LTD,EC2R,24/01/2024,480.00
120403233,Social Care,Children & Families,Practice Development,Employees,Temporary / Agency - by Accounts Payable,ATTENTI LTD,EC2R,10/01/2024,"2,400.00"
119861233,Social Care,Children & Families,Practice Development,Employees,Temporary / Agency - by Accounts Payable,ATTENTI LTD,EC2R,05/01/2024,"2,400.00"
119999233,Senior Management Team,Children & Families,Family Safeguarding Model,Employees,Temporary / Agency - by Accounts Payable,ATTENTI LTD,EC2R,08/01/2024,"2,360.00"
121950234,Senior Management Team,Children & Families,Senior Management Team - Staffing,Employees,Temporary / Agency - by Accounts Payable,ATTENTI LTD,EC2R,19/01/2024,"2,388.00"
121614233,Senior Management Team,Children & Families,Senior Management Team - Staffing,Employees,Temporary / Agency - by Accounts Payable,ATTENTI LTD,EC2R,17/01/2024,"2,832.00"
119982233,Senior Management Team,Children & Families,Senior Management Team - Staffing,Employees,Temporary / Agency - by Accounts Payable,ATTENTI LTD,EC2R,08/01/2024,"3,980.00"
122611233,Safeguarding and Quality Assurance,Children & Families,Quality Assurance Team,Employees,Temporary / Agency - by Accounts Payable,ATTENTI LTD,EC2R,26/01/2024,"2,360.00"
119860233,Safeguarding and Quality Assurance,Children & Families,Quality Assurance Team,Employees,Temporary / Agency - by Accounts Payable,ATTENTI LTD,EC2R,05/01/2024,"2,360.00"
121945252,Physical Support,Adults,Physical Support 65 and over,3rd Party Payments,Nursing Care,AURA CARE LIVING CIRENCESTER LTD,GL7 ,19/01/2024,"3,083.14"
121945252,Physical Support,Adults,Physical Support 65 and over,3rd Party Payments,Nursing Care,AURA CARE LIVING CIRENCESTER LTD,GL7 ,19/01/2024,"5,886.00"
121945252,Mental Health,Adults,Mental Health 18-64,3rd Party Payments,Residential Care,AURA CARE LIVING CIRENCESTER LTD,GL7 ,19/01/2024,"6,400.00"
121945252,Mental Health,Adults,Mental Health 65 and over,3rd Party Payments,Residential Care,AURA CARE LIVING CIRENCESTER LTD,GL7 ,19/01/2024,"6,104.00"
121945252,Mental Health,Adults,Mental Health 18-64,3rd Party Payments,Residential Care,AURA CARE LIVING CIRENCESTER LTD,GL7 ,19/01/2024,914.29
121945252,Physical Support,Adults,Physical Support 65 and over,Income,Client Contribution - Nursing,AURA CARE LIVING CIRENCESTER LTD,GL7 ,19/01/2024,-691.20
121945252,Physical Support,Adults,Physical Support 65 and over,Income,Client Contribution - Nursing,AURA CARE LIVING CIRENCESTER LTD,GL7 ,19/01/2024,-735.64
121945252,Mental Health,Adults,Mental Health 18-64,3rd Party Payments,Nursing Care,AURA CARE LIVING CIRENCESTER LTD,GL7 ,19/01/2024,"12,606.00"
121945252,Physical Support,Adults,Physical Support 65 and over,Income,Client Contribution - Nursing,AURA CARE LIVING CIRENCESTER LTD,GL7 ,19/01/2024,-608.00
121945252,Physical Support,Adults,Physical Support 65 and over,3rd Party Payments,Nursing Care,AURA CARE LIVING CIRENCESTER LTD,GL7 ,19/01/2024,"4,796.00"
121945252,Mental Health,Adults,Mental Health 18-64,3rd Party Payments,Residential Care,AURA CARE LIVING CIRENCESTER LTD,GL7 ,19/01/2024,"11,734.00"
121945252,Physical Support,Adults,Physical Support 65 and over,Income,Client Contribution - Residential,AURA CARE LIVING CIRENCESTER LTD,GL7 ,19/01/2024,"-1,021.48"
121945252,Physical Support,Adults,Physical Support 65 and over,3rd Party Payments,Residential Care,AURA CARE LIVING CIRENCESTER LTD,GL7 ,19/01/2024,"4,142.00"
120338233,High Needs Block,Dedicated Schools Grant (DSG),Out of Borough School Fees,3rd Party Payments,OLA Special schools- Pre 16,AURORA FOXES ACADEMY,GL2 ,10/01/2024,"22,400.67"
121592254,Learning Disabilities,Adults,Learning Disability 18 - 64,Income,Client Contribution - Residential,AUTONOMY LIFE LIMITED,SN12,17/01/2024,-628.56
121592254,Learning Disabilities,Adults,Learning Disability 18 - 64,3rd Party Payments,Residential Care,AUTONOMY LIFE LIMITED,SN12,17/01/2024,"-10,027.60"
121592254,Learning Disabilities,Adults,Learning Disability 18 - 64,3rd Party Payments,Residential Care,AUTONOMY LIFE LIMITED,SN12,17/01/2024,"16,974.00"
121592254,Learning Disabilities,Adults,Learning Disability 18 - 64,3rd Party Payments,Residential Care,AUTONOMY LIFE LIMITED,SN12,17/01/2024,"12,346.00"
119959237,Traded Services,"Education, Inclusion and Skills",Plas Pencelli Outdoor Education Centre,Premises Costs,Gas,AVANTI GAS LTD,S43 ,05/01/2024,"1,768.66"
122064233,Traded Services,"Education, Inclusion and Skills",Plas Pencelli Outdoor Education Centre,Premises Costs,Gas,AVANTI GAS LTD,S43 ,22/01/2024,678.74
120488233,Streetsmart,Streetsmart,Waterside Depot Improvements,Capital,Contractor Payments,AVIUM,SN25,10/01/2024,"1,850.00"
121552233,Learning Disabilities,Adults,Learning Disability 18 - 64,Income,Client Contribution - Residential,AVON AUTISTIC FOUNDATION LTD,BS11,17/01/2024,-438.80
119857233,Learning Disabilities,Adults,Learning Disability 18 - 64,3rd Party Payments,Residential Care,AVON AUTISTIC FOUNDATION LTD,BS11,05/01/2024,547.74
121553233,Learning Disabilities,Adults,Learning Disability 18 - 64,Income,Client Contribution - Residential,AVON AUTISTIC FOUNDATION LTD,BS11,17/01/2024,-483.20
121552233,Learning Disabilities,Adults,Learning Disability 18 - 64,3rd Party Payments,Residential Care,AVON AUTISTIC FOUNDATION LTD,BS11,17/01/2024,"5,482.04"
121553233,Learning Disabilities,Adults,Learning Disability 18 - 64,3rd Party Payments,Residential Care,AVON AUTISTIC FOUNDATION LTD,BS11,17/01/2024,"7,668.32"
121944268,Homelessness and Travellers,Housing Services,Private Sector Landlords,Transfer Payments,Payment of Costs,AVONPARK PROPERTIES LTD,SN3 ,26/01/2024,615.00
121944356,Homelessness and Travellers,Housing Services,Private Sector Landlords,Transfer Payments,Payment of Costs,AVONPARK PROPERTIES LTD,SN3 ,26/01/2024,550.00
120294233,Heritage,Culture,SMAG relocation,Capital,Contractor Payments,AZURA NETWORKS,BN11,10/01/2024,"5,659.00"
120665233,Town Centre,"Economy, Growth and Place","No 7, 9 & 11 Carriage works @ Railway Village",Capital,Consultants,BAILEY PARTNERSHIP (CONSULTANTS) LLP,PL1 ,12/01/2024,"2,000.00"
119733233,Town Centre,"Economy, Growth and Place",Carriage Works Phase 3,Capital,Professional Fees,BAILEY PARTNERSHIP (CONSULTANTS) LLP,PL1 ,05/01/2024,"14,450.00"
120664233,Town Centre,"Economy, Growth and Place","No 7, 9 & 11 Carriage works @ Railway Village",Capital,Consultants,BAILEY PARTNERSHIP (CONSULTANTS) LLP,PL1 ,12/01/2024,"2,000.00"
122481233,Streetsmart,Streetsmart,Waste - Disposal,Supplies and Services,Materials,BALER OPTIONS LTD,DE55,24/01/2024,"9,440.00"
121826416,Physical Support,Adults,Physical Support 65 and over,Transfer Payments,Personal Budget - Direct Payments - Domiciliary Care,REDACTED PERSONAL DATA,2969,19/01/2024,11.04
121826416,Physical Support,Adults,Physical Support 65 and over,Transfer Payments,Personal Budget - Direct Payments - Domiciliary Care,REDACTED PERSONAL DATA,2969,19/01/2024,"1,428.84"
121826416,Physical Support,Adults,Physical Support 65 and over,Income,Client Contribution - Personal Budget - DP,REDACTED PERSONAL DATA,2969,19/01/2024,-324.24
121395242,Early Years Block,Dedicated Schools Grant (DSG),Free Nursery Education Commissioning - three & four  year olds,3rd Party Payments,Contracts - Child Care,BARN OWL PRE-SCHOOL,SN25,17/01/2024,"11,871.09"
121771233,School Transport,"Education, Inclusion and Skills",Mainstream School Transport,Transport Costs,Home to School Transport,BARNES COACHES LTD,SN3 ,19/01/2024,"6,972.00"
121771233,School Transport,"Education, Inclusion and Skills",Mainstream School Transport,Employees,Temporary / Agency - by Accounts Payable,BARNES COACHES LTD,SN3 ,19/01/2024,523.04
122316233,School Transport,"Education, Inclusion and Skills",Mainstream School Transport,Employees,Temporary / Agency - by Accounts Payable,BARNES COACHES LTD,SN3 ,24/01/2024,821.92
122316233,School Transport,"Education, Inclusion and Skills",Mainstream School Transport,Transport Costs,Home to School Transport,BARNES COACHES LTD,SN3 ,24/01/2024,"10,956.00"
121025233,Streetsmart,Streetsmart,Refuse Collection,Supplies and Services,Materials,BARTEC MUNICIPAL TECHNOLOGIES LTD,S75 ,17/01/2024,"2,400.00"
120982233,Town Centre,"Economy, Growth and Place",Carriage Works Phase 3,Capital,Professional Fees,BBA ARCHITECTS LTD,BA2 ,15/01/2024,"13,651.00"
123368248,Social Care,Children & Families,Childrens Homefinding Team,Supplies and Services,Fees,BCP COUNCIL,BH2 ,31/01/2024,"1,702.25"
120860273,High Needs Block,Dedicated Schools Grant (DSG),SEN Resourcing Assessment Panel,3rd Party Payments,Top up funding - Maintained providers Pre 16,BEECHCROFT INFANT SCHOOL,SN2 ,15/01/2024,"5,803.59"
121172233,DSG Other Funding,Dedicated Schools Grant (DSG),DFE Additional Grants,3rd Party Payments,Payment of Pupil Premium to school,BEECHCROFT INFANT SCHOOL,SN2 ,17/01/2024,"8,346.00"
120166233,DSG Other Funding,Dedicated Schools Grant (DSG),LAC pupil premium,Supplies and Services,Services,BEECHCROFT INFANT SCHOOL,SN2 ,17/01/2024,600.00
120167233,DSG Other Funding,Dedicated Schools Grant (DSG),LAC pupil premium,Supplies and Services,Services,BEECHCROFT INFANT SCHOOL,SN2 ,17/01/2024,600.00
121153233,Schools - Primary,Dedicated Schools Grant (DSG),Primary School Budgets,3rd Party Payments,Mainstream Delegated Funding,BEECHCROFT INFANT SCHOOL,SN2 ,17/01/2024,"96,892.00"
121589233,Learning Disabilities,Adults,Learning Disability 18 - 64,3rd Party Payments,Residential Care,BEECHWOOD COURT LTD,CF10,17/01/2024,"20,830.56"
121589233,Learning Disabilities,Adults,Learning Disability 18 - 64,Income,Client Contribution - Residential,BEECHWOOD COURT LTD,CF10,17/01/2024,-322.56
121589233,Learning Disabilities,Adults,Learning Disability 18 - 64,3rd Party Payments,Residential Care,BEECHWOOD COURT LTD,CF10,17/01/2024,"29,947.84"
120168233,DSG Other Funding,Dedicated Schools Grant (DSG),LAC pupil premium,Supplies and Services,Services,BELONG LEARNING CIC,GL50,17/01/2024,600.00
122843233,Parking & Bus lanes,Highway Operations and Car Parking,Car Parking,Supplies and Services,Equipment,BEMROSE BOOTH PARAGON LTD,HU7 ,26/01/2024,"1,481.00"
122138233,Social Care,Children & Families,Children's Resource and Home Finding Team,3rd Party Payments,Residential Care,BENJAMIN UK LIMITED,LU7 ,22/01/2024,"17,692.01"
Corporate Card Transaction,ASC Finance Services Teams,ASC Finance Services,ASC Money Management Team,3rd Party Payments,Recoverable Client Costs,Bensonsforbedsretail,,17/01/2024,678.98
119323233,Local Transport Plan Funded,Strategic Planning and Highways,Surface Water Management,Capital,Contractor Payments,BERNARD GEOMATICS LTD,SN2 ,03/01/2024,805.00
119374233,Local Transport Plan Funded,Strategic Planning and Highways,Structural Maintenance,Capital,Contractor Payments,BERNARD GEOMATICS LTD,SN2 ,03/01/2024,"3,374.00"
121310233,Libraries,"Education, Inclusion and Skills",Central,Premises Costs,Waste,BIFFA WASTE SERVICES LTD,HP12,17/01/2024,476.40
121146233,Schools - Primary,Dedicated Schools Grant (DSG),Primary School Budgets,3rd Party Payments,Mainstream Delegated Funding,BISHOPSTONE C E PRIMARY SCHOOL,SN6 ,17/01/2024,"27,038.00"
121165233,DSG Other Funding,Dedicated Schools Grant (DSG),DFE Additional Grants,3rd Party Payments,Payment of Pupil Premium to school,BISHOPSTONE C E PRIMARY SCHOOL,SN6 ,17/01/2024,"1,618.00"
120170233,DSG Other Funding,Dedicated Schools Grant (DSG),LAC pupil premium,Supplies and Services,Services,BISHOPSWOOD SCHOOL,OX12,17/01/2024,600.00
120169233,DSG Other Funding,Dedicated Schools Grant (DSG),LAC pupil premium,Supplies and Services,Services,BISHOPSWOOD SCHOOL,OX12,17/01/2024,600.00
119847233,High Needs Block,Dedicated Schools Grant (DSG),Out of Borough School Fees,3rd Party Payments,OLA Special schools- Pre 16,BISHOPSWOOD SCHOOL,OX12,05/01/2024,"10,513.08"
119847233,High Needs Block,Dedicated Schools Grant (DSG),Out of Borough School Fees,3rd Party Payments,OLA Special schools- Pre 16,BISHOPSWOOD SCHOOL,OX12,05/01/2024,"10,513.08"
Corporate Card Transaction,Homelessness and Travellers,Housing Services,Bed and Breakfast Accommodation,Transfer Payments,Payment of Costs,Bkg*hotel At Booking.C,,17/01/2024,"1,006.00"
Corporate Card Transaction,Homelessness and Travellers,Housing Services,Homelessness Prevention,Transfer Payments,Payment of Costs,Bkg*hotel At Booking.C,,10/01/2024,545.00
Corporate Card Transaction,Homelessness and Travellers,Housing Services,Bed and Breakfast Accommodation,Transfer Payments,Payment of Costs,Bkg*hotel At Booking.C,,04/01/2024,545.00
Corporate Card Transaction,Homelessness and Travellers,Housing Services,Bed and Breakfast Accommodation,Transfer Payments,Payment of Costs,Bkg*hotel At Booking.C,,04/01/2024,776.28
Corporate Card Transaction,Homelessness and Travellers,Housing Services,Bed and Breakfast Accommodation,Transfer Payments,Payment of Costs,Bkg*hotel At Booking.C,,03/01/2024,"1,006.00"
119924233,Homelessness and Travellers,Housing Services,Private Sector Landlords,Transfer Payments,Payment of Costs,BLOCK 3 STUDIO,SN1 ,05/01/2024,500.00
120639233,Town Centre,"Economy, Growth and Place",Kimmerfields enabling works,Capital,Professional Fees,BLUE HORIZON VENTURES LIMITED,KT8 ,12/01/2024,"1,900.00"
121880238,Social Care,Children & Families,Children's Resource and Home Finding Team,3rd Party Payments,Independent Fostering Agency Placements,BLUE SKY,HA1 ,19/01/2024,"6,456.68"
121880245,Social Care,Children & Families,Children's Resource and Home Finding Team,3rd Party Payments,Parent & Child Placements,BLUE SKY,HA1 ,19/01/2024,"4,662.00"
121880240,Social Care,Children & Families,Children's Resource and Home Finding Team,3rd Party Payments,Independent Fostering Agency Placements,BLUE SKY,HA1 ,19/01/2024,"6,456.68"
121880237,Social Care,Children & Families,Children's Resource and Home Finding Team,3rd Party Payments,Independent Fostering Agency Placements,BLUE SKY,HA1 ,19/01/2024,"6,456.68"
121880236,Social Care,Children & Families,Children's Resource and Home Finding Team,3rd Party Payments,Independent Fostering Agency Placements,BLUE SKY,HA1 ,19/01/2024,"1,368.00"
121880244,Social Care,Children & Families,Children's Resource and Home Finding Team,3rd Party Payments,Independent Fostering Agency Placements,BLUE SKY,HA1 ,19/01/2024,"6,510.00"
121880243,Social Care,Children & Families,Children's Resource and Home Finding Team,3rd Party Payments,Independent Fostering Agency Placements,BLUE SKY,HA1 ,19/01/2024,"6,510.00"
121880239,Social Care,Children & Families,Children's Resource and Home Finding Team,3rd Party Payments,Independent Fostering Agency Placements,BLUE SKY,HA1 ,19/01/2024,"6,456.68"
121880235,Social Care,Children & Families,Children's Resource and Home Finding Team,3rd Party Payments,Independent Fostering Agency Placements,BLUE SKY,HA1 ,19/01/2024,854.91
121880242,Social Care,Children & Families,Children's Resource and Home Finding Team,3rd Party Payments,Independent Fostering Agency Placements,BLUE SKY,HA1 ,19/01/2024,"5,934.02"
121880246,Social Care,Children & Families,Children's Resource and Home Finding Team,3rd Party Payments,Parent & Child Placements,BLUE SKY,HA1 ,19/01/2024,"6,882.00"
121880241,Social Care,Children & Families,Children's Resource and Home Finding Team,3rd Party Payments,Independent Fostering Agency Placements,BLUE SKY,HA1 ,19/01/2024,"5,934.02"
120034233,Learning Disabilities,Adults,Learning Disability 18 - 64,3rd Party Payments,Personal Budget - Domiciliary care,BLUEBIRD CARE (SWINDON),SN25,08/01/2024,"2,534.40"
120034233,Learning Disabilities,Adults,Learning Disability 18 - 64,3rd Party Payments,Personal Budget - Domiciliary care,BLUEBIRD CARE (SWINDON),SN25,08/01/2024,-151.20
120034233,Physical Support,Adults,Physical Support 65 and over,3rd Party Payments,Personal Budget - Domiciliary care,BLUEBIRD CARE (SWINDON),SN25,08/01/2024,"1,774.08"
120034233,Learning Disabilities,Adults,Learning Disability 18 - 64,3rd Party Payments,Personal Budget - Domiciliary care,BLUEBIRD CARE (SWINDON),SN25,08/01/2024,-45.54
120034233,Learning Disabilities,Adults,Learning Disability 18 - 64,3rd Party Payments,Personal Budget - Domiciliary care,BLUEBIRD CARE (SWINDON),SN25,08/01/2024,"1,244.16"
120034233,Learning Disabilities,Adults,Learning Disability 18 - 64,3rd Party Payments,Personal Budget - Domiciliary care,BLUEBIRD CARE (SWINDON),SN25,08/01/2024,-154.64
120034233,Physical Support,Adults,Physical Support 18 - 64,3rd Party Payments,Personal Budget - Domiciliary care,BLUEBIRD CARE (SWINDON),SN25,08/01/2024,"1,105.92"
120034233,Physical Support,Adults,Physical Support 18 - 64,3rd Party Payments,Personal Budget - Domiciliary care,BLUEBIRD CARE (SWINDON),SN25,08/01/2024,-174.88
120034233,Learning Disabilities,Adults,Learning Disability 18 - 64,3rd Party Payments,Personal Budget - Domiciliary care,BLUEBIRD CARE (SWINDON),SN25,08/01/2024,-129.34
120034233,Mental Health,Adults,Mental Health 18-64,3rd Party Payments,Personal Budget - Domiciliary care,BLUEBIRD CARE (SWINDON),SN25,08/01/2024,-16.80
120034233,Learning Disabilities,Adults,Learning Disability 18 - 64,3rd Party Payments,Personal Budget - Domiciliary care,BLUEBIRD CARE (SWINDON),SN25,08/01/2024,967.68
120034233,Mental Health,Adults,Mental Health 18-64,3rd Party Payments,Personal Budget - Domiciliary care,BLUEBIRD CARE (SWINDON),SN25,08/01/2024,138.24
120034233,Physical Support,Adults,Physical Support 65 and over,3rd Party Payments,Personal Budget - Domiciliary care,BLUEBIRD CARE (SWINDON),SN25,08/01/2024,-210.54
120034233,Learning Disabilities,Adults,Learning Disability 18 - 64,3rd Party Payments,Personal Budget - Domiciliary care,BLUEBIRD CARE (SWINDON),SN25,08/01/2024,-441.44
120034233,Learning Disabilities,Adults,Learning Disability 18 - 64,3rd Party Payments,Personal Budget - Domiciliary care,BLUEBIRD CARE (SWINDON),SN25,08/01/2024,"1,105.92"
121128233,Early Years Block,Dedicated Schools Grant (DSG),Free Nursery Education Commissioning - three & four  year olds,3rd Party Payments,Contracts - Child Care,REDACTED PERSONAL DATA,SN3 ,17/01/2024,"15,222.24"
121129233,Early Years Block,Dedicated Schools Grant (DSG),Free Nursery Education Commissioning - two year olds,3rd Party Payments,Contracts - Child Care,REDACTED PERSONAL DATA,SN3 ,17/01/2024,"2,989.18"
121028233,Streetsmart,Streetsmart,Waterside Fleet Workshops,Supplies and Services,Equipment,BOC LTD,M28 ,17/01/2024,489.20
121592242,Mental Health,Adults,Mental Health 65 and over,3rd Party Payments,Residential Care,BOLEALLER HOUSE LTD,EX15,17/01/2024,"5,299.80"
120576233,Physical Support,Adults,Fessey House,Supplies and Services,Food,BOOKER LIMITED,CH5 ,12/01/2024,440.81
119196233,Physical Support,Adults,Fessey House,Supplies and Services,Food,BOOKER LIMITED,CH5 ,03/01/2024,154.12
120576233,Physical Support,Adults,Fessey House,Supplies and Services,Food,BOOKER LIMITED,CH5 ,12/01/2024,92.49
120978234,Physical Support,Adults,Fessey House,Supplies and Services,Food,BOOKER LIMITED,CH5 ,15/01/2024,197.20
120978234,Physical Support,Adults,Fessey House,Supplies and Services,Food,BOOKER LIMITED,CH5 ,15/01/2024,498.50
119196233,Physical Support,Adults,Fessey House,Supplies and Services,Food,BOOKER LIMITED,CH5 ,03/01/2024,386.65
121562233,Physical Support,Adults,Physical Support 65 and over,3rd Party Payments,Residential Care,BOTHWELLS LTD,HA6 ,17/01/2024,"3,600.00"
121562233,Physical Support,Adults,Physical Support 18 - 64,3rd Party Payments,Nursing Care,BOTHWELLS LTD,HA6 ,17/01/2024,"2,867.32"
121562233,Physical Support,Adults,Physical Support 65 and over,Income,Client Contribution - Nursing,BOTHWELLS LTD,HA6 ,17/01/2024,-691.20
121562233,Physical Support,Adults,Physical Support 65 and over,Income,Client Contribution - Nursing,BOTHWELLS LTD,HA6 ,17/01/2024,"-1,384.80"
121562233,Physical Support,Adults,Physical Support 18 - 64,3rd Party Payments,Nursing Care,BOTHWELLS LTD,HA6 ,17/01/2024,"3,270.76"
121562233,Physical Support,Adults,Physical Support 65 and over,Income,Client Contribution - Nursing,BOTHWELLS LTD,HA6 ,17/01/2024,"-1,084.96"
121562233,Physical Support,Adults,Physical Support 65 and over,Income,Client Contribution - Nursing,BOTHWELLS LTD,HA6 ,17/01/2024,-779.00
121562233,Physical Support,Adults,Physical Support 65 and over,3rd Party Payments,Nursing Care,BOTHWELLS LTD,HA6 ,17/01/2024,"3,763.24"
121562233,Physical Support,Adults,Physical Support 65 and over,3rd Party Payments,Nursing Care,BOTHWELLS LTD,HA6 ,17/01/2024,"2,867.32"
121562233,Physical Support,Adults,Physical Support 65 and over,Income,Client Contribution - Nursing,BOTHWELLS LTD,HA6 ,17/01/2024,-781.40
121562233,Physical Support,Adults,Physical Support 18 - 64,Income,Client Contribution - Nursing,BOTHWELLS LTD,HA6 ,17/01/2024,-659.80
121562233,Physical Support,Adults,Physical Support 18 - 64,Income,Client Contribution - Nursing,BOTHWELLS LTD,HA6 ,17/01/2024,-425.60
121562233,Physical Support,Adults,Physical Support 65 and over,Income,Client Contribution - Nursing,BOTHWELLS LTD,HA6 ,17/01/2024,"-1,182.84"
121562233,Physical Support,Adults,Physical Support 65 and over,Income,Client Contribution - Nursing,BOTHWELLS LTD,HA6 ,17/01/2024,-909.16
121562233,Physical Support,Adults,Physical Support 65 and over,3rd Party Payments,Nursing Care,BOTHWELLS LTD,HA6 ,17/01/2024,"7,160.96"
119705236,Responsive Repairs,Repairs,Responsive Repairs,3rd Party Payments,Contract Payments,BOUNDARY SCAFFOLDING LTD,SN6 ,05/01/2024,960.00
119705237,Responsive Repairs,Repairs,Responsive Repairs,3rd Party Payments,Contract Payments,BOUNDARY SCAFFOLDING LTD,SN6 ,05/01/2024,"1,920.00"
119705236,Responsive Repairs,Repairs,Responsive Repairs,3rd Party Payments,Contract Payments,BOUNDARY SCAFFOLDING LTD,SN6 ,05/01/2024,580.00
119705236,Responsive Repairs,Repairs,Responsive Repairs,3rd Party Payments,Contract Payments,BOUNDARY SCAFFOLDING LTD,SN6 ,05/01/2024,"1,080.00"
121963245,Responsive Repairs,Repairs,Responsive Repairs,3rd Party Payments,Contract Payments,BOUNDARY SCAFFOLDING LTD,SN6 ,19/01/2024,881.00
121963245,Responsive Repairs,Repairs,Responsive Repairs,3rd Party Payments,Contract Payments,BOUNDARY SCAFFOLDING LTD,SN6 ,19/01/2024,580.00
121963245,Responsive Repairs,Repairs,Responsive Repairs,3rd Party Payments,Contract Payments,BOUNDARY SCAFFOLDING LTD,SN6 ,19/01/2024,890.00
119705237,Responsive Repairs,Repairs,Responsive Repairs,3rd Party Payments,Contract Payments,BOUNDARY SCAFFOLDING LTD,SN6 ,05/01/2024,660.00
122403233,Responsive Repairs,Repairs,Responsive Repairs,3rd Party Payments,Contract Payments,BPM CONTRACTING SERVICES LTD,BA2 ,24/01/2024,466.91
122399233,Planned Maintenance Programme,HRA Capital Financing,Bathrooms,Capital,Contractor Payments,BPM CONTRACTING SERVICES LTD,BA2 ,24/01/2024,"3,950.00"
122404233,Responsive Repairs,Repairs,Responsive Repairs,3rd Party Payments,Contract Payments,BPM CONTRACTING SERVICES LTD,BA2 ,24/01/2024,"1,346.46"
122400233,Responsive Repairs,Repairs,Responsive Repairs,3rd Party Payments,Contract Payments,BPM CONTRACTING SERVICES LTD,BA2 ,24/01/2024,"1,460.12"
121265234,Responsive Repairs,Repairs,Responsive Repairs,3rd Party Payments,Contract Payments,BPM CONTRACTING SERVICES LTD,BA2 ,17/01/2024,"1,129.79"
121264234,Responsive Repairs,Repairs,Responsive Repairs,3rd Party Payments,Contract Payments,BPM CONTRACTING SERVICES LTD,BA2 ,17/01/2024,470.66
121795233,Responsive Repairs,Repairs,Responsive Repairs,3rd Party Payments,Contract Payments,BPM CONTRACTING SERVICES LTD,BA2 ,19/01/2024,756.80
120343233,Responsive Repairs,Repairs,Responsive Repairs,3rd Party Payments,Contract Payments,BPM CONTRACTING SERVICES LTD,BA2 ,10/01/2024,"2,057.02"
123058236,Responsive Repairs,Repairs,Responsive Repairs,3rd Party Payments,Contract Payments,BPM CONTRACTING SERVICES LTD,BA2 ,29/01/2024,"1,381.60"
121266235,Responsive Repairs,Repairs,Responsive Repairs,3rd Party Payments,Contract Payments,BPM CONTRACTING SERVICES LTD,BA2 ,17/01/2024,"1,547.90"
121796233,Responsive Repairs,Repairs,Responsive Repairs,3rd Party Payments,Contract Payments,BPM CONTRACTING SERVICES LTD,BA2 ,19/01/2024,802.84
123058237,Responsive Repairs,Repairs,Responsive Repairs,3rd Party Payments,Contract Payments,BPM CONTRACTING SERVICES LTD,BA2 ,29/01/2024,492.17
122821240,Responsive Repairs,Repairs,Responsive Repairs,3rd Party Payments,Contract Payments,BPM CONTRACTING SERVICES LTD,BA2 ,26/01/2024,716.04
122401233,Responsive Repairs,Repairs,Responsive Repairs,3rd Party Payments,Contract Payments,BPM CONTRACTING SERVICES LTD,BA2 ,24/01/2024,"1,592.03"
121266236,Responsive Repairs,Repairs,Responsive Repairs,3rd Party Payments,Contract Payments,BPM CONTRACTING SERVICES LTD,BA2 ,17/01/2024,868.06
120766233,Responsive Repairs,Repairs,Responsive Repairs,3rd Party Payments,Contract Payments,BPM CONTRACTING SERVICES LTD,BA2 ,12/01/2024,"1,779.30"
120767235,Responsive Repairs,Repairs,Responsive Repairs,3rd Party Payments,Contract Payments,BPM CONTRACTING SERVICES LTD,BA2 ,12/01/2024,"1,236.22"
120682241,Responsive Repairs,Repairs,Responsive Repairs,3rd Party Payments,Contract Payments,BPM CONTRACTING SERVICES LTD,BA2 ,12/01/2024,808.78
120682244,Responsive Repairs,Repairs,Responsive Repairs,3rd Party Payments,Contract Payments,BPM CONTRACTING SERVICES LTD,BA2 ,12/01/2024,703.00
120682243,Responsive Repairs,Repairs,Responsive Repairs,3rd Party Payments,Contract Payments,BPM CONTRACTING SERVICES LTD,BA2 ,12/01/2024,718.53
122821250,Responsive Repairs,Repairs,Responsive Repairs,3rd Party Payments,Contract Payments,BPM CONTRACTING SERVICES LTD,BA2 ,26/01/2024,"1,105.92"
121266234,Responsive Repairs,Repairs,Responsive Repairs,3rd Party Payments,Contract Payments,BPM CONTRACTING SERVICES LTD,BA2 ,17/01/2024,"2,295.31"
119836234,Lydiard Park,Culture & Heritage,Lydiard : Hotel Operations,Supplies and Services,Materials,BRAKE BROS LTD,TN24,05/01/2024,154.18
119836234,Lydiard Park,Culture & Heritage,Lydiard : Hotel Operations,Supplies and Services,Food,BRAKE BROS LTD,TN24,05/01/2024,572.98
121131233,Early Years Block,Dedicated Schools Grant (DSG),Free Nursery Education Commissioning - three & four  year olds,3rd Party Payments,Contracts - Child Care,BRAMBLE HOUSE DAY NURSERY LTD,SN2 ,17/01/2024,"19,958.40"
122177233,High Needs Block,Dedicated Schools Grant (DSG),SEN Resourcing Assessment Panel,3rd Party Payments,Top up funding - Maintained providers Pre 16,BRAMBLE HOUSE DAY NURSERY LTD,SN2 ,24/01/2024,"1,188.00"
119962233,Early Years Block,Dedicated Schools Grant (DSG),Free Nursery Education Commissioning - three & four  year olds,3rd Party Payments,Contracts - Child Care,BRAMBLE HOUSE DAY NURSERY LTD,SN2 ,08/01/2024,"3,402.00"
119962233,Early Years Block,Dedicated Schools Grant (DSG),Free Nursery Education Commissioning - two year olds,3rd Party Payments,Contracts - Child Care,BRAMBLE HOUSE DAY NURSERY LTD,SN2 ,08/01/2024,"3,436.94"
119505233,High Needs Block,Dedicated Schools Grant (DSG),SEN Resourcing Assessment Panel,3rd Party Payments,Top up funding - Maintained providers Pre 16,BRAMBLE HOUSE DAY NURSERY LTD,SN2 ,03/01/2024,756.00
119962233,Early Years Block,Dedicated Schools Grant (DSG),Free Nursery Education Commissioning - three & four  year olds,3rd Party Payments,Contracts - Child Care,BRAMBLE HOUSE DAY NURSERY LTD,SN2 ,08/01/2024,453.60
121130233,Early Years Block,Dedicated Schools Grant (DSG),Free Nursery Education Commissioning - two year olds,3rd Party Payments,Contracts - Child Care,BRAMBLE HOUSE DAY NURSERY LTD,SN2 ,17/01/2024,"5,095.20"
121338233,Property & Assets,Property & Assets,DMJ Repairs,Capital,Professional Fees,BRAND ENERGY AND INFRASTRUCTURE SERVICES UK LTD,KT22,17/01/2024,"2,410.00"
119064309,Social Care,Children & Families,Placement Adoption Service,3rd Party Payments,Special Guardianship Orders,REDACTED PERSONAL DATA,SN2 ,03/01/2024,572.00
121023308,Social Care,Children & Families,Placement Adoption Service,3rd Party Payments,Special Guardianship Orders,REDACTED PERSONAL DATA,SN2 ,15/01/2024,572.00
123186283,Social Care,Children & Families,Placement Adoption Service,3rd Party Payments,Special Guardianship Orders,REDACTED PERSONAL DATA,SN2 ,29/01/2024,572.00
120415233,Education,"Education, Inclusion and Skills",Special Educational Needs and Disability Assessment and Commissioning team (SENDACT),Supplies and Services,Fees,BRISTOL CITY COUNCIL,BS1 ,10/01/2024,777.33
119432247,Facilities Management,"People, Culture and Organisational Resilience",Office Accommodation,Premises Costs,Maintenance - Buildings,BRISTOL FIRE,BS37,03/01/2024,480.00
120009245,Property Management,Property,Corporate Repairs & Maintenance Programme,Premises Costs,Maintenance - Buildings,BRISTOL FIRE,BS37,08/01/2024,"5,329.71"
119116233,Other Repairs,Repairs,Unallocated job costs from OPEN system,Premises Costs,Maintenance - Buildings,BRISTOL FIRE,BS37,03/01/2024,485.00
121530267,Property Management,Property,Corporate Repairs & Maintenance Programme,Premises Costs,Maintenance - Buildings,BRISTOL FIRE,BS37,17/01/2024,"5,988.58"
119501233,Streetsmart,Streetsmart,Waterside Depot,Premises Costs,Gas,BRITISH GAS TRADING LTD,S98 ,03/01/2024,"2,721.44"
123411233,Streetsmart,Streetsmart,Waterside Depot,Premises Costs,Gas,BRITISH GAS TRADING LTD,S98 ,31/01/2024,816.43
122600233,Streetsmart,Streetsmart,Waterside Depot,Premises Costs,Gas,BRITISH GAS TRADING LTD,S98 ,26/01/2024,"3,208.46"
120020234,Homelessness and Travellers,Housing Services,ASC Rental Properties (Rosebury Court),Premises Costs,Electricity,BRITISH GAS TRADING LTD,SL4 ,08/01/2024,"3,665.04"
119658233,Revenues & Benefits,Revenues & Benefits,Swindon Emergency Assistance Fund,Supplies and Services,Materials,BRITISH HEART FOUNDATION,NW1 ,05/01/2024,674.00
122604233,,,Balance Sheet,Balance Sheet & Recharge,British Telecom invoices,BRITISH TELECOMMUNICATIONS PLC,S98 ,26/01/2024,"21,571.69"
121965233,Corporate,Corporate Finance,Corporate Financial Management,Supplies and Services,Fees,BROADSTONE CONSULTANTS & ACTUARIES LTD,BS1 ,22/01/2024,"2,818.75"
120299233,Education,"Education, Inclusion and Skills",Special Educational Needs and Disability Assessment and Commissioning team (SENDACT),Employees,Training,BROWNE JACOBSON LLP,NG2 ,10/01/2024,"3,156.30"
119337233,Disabled Children,Children & Families,DCT Daytime Short Breaks,3rd Party Payments,Day Care,BRUNEL EDUCATION,SN5 ,03/01/2024,784.24
120354233,Disabled Children,Children & Families,DCT Daytime Short Breaks,3rd Party Payments,Day Care,BRUNEL EDUCATION,SN5 ,10/01/2024,554.40
119267233,Disabled Children,Children & Families,DCT Daytime Short Breaks,3rd Party Payments,Day Care,BRUNEL EDUCATION,SN5 ,03/01/2024,983.22
120571233,Disabled Children,Children & Families,DCT Daytime Short Breaks,3rd Party Payments,Day Care,BRUNEL EDUCATION,SN25,12/01/2024,792.00
119229233,Disabled Children,Children & Families,DCT Daytime Short Breaks,3rd Party Payments,Day Care,BRUNEL EDUCATION,SN5 ,03/01/2024,515.02
120575233,Disabled Children,Children & Families,DCT Daytime Short Breaks,3rd Party Payments,Day Care,BRUNEL EDUCATION,SN25,12/01/2024,836.00
120431233,Disabled Children,Children & Families,DCT Daytime Short Breaks,3rd Party Payments,Day Care,BRUNEL EDUCATION,SN5 ,10/01/2024,660.00
120433233,Disabled Children,Children & Families,DCT Daytime Short Breaks,3rd Party Payments,Day Care,BRUNEL EDUCATION,SN5 ,10/01/2024,660.00
120353233,Disabled Children,Children & Families,DCT Daytime Short Breaks,3rd Party Payments,Day Care,BRUNEL EDUCATION,SN5 ,10/01/2024,924.00
120581233,Disabled Children,Children & Families,DCT Daytime Short Breaks,3rd Party Payments,Day Care,BRUNEL EDUCATION,SN5 ,12/01/2024,"1,056.00"
119228271,Disabled Children,Children & Families,DCT Daytime Short Breaks,3rd Party Payments,Day Care,BRUNEL EDUCATION,SN5 ,03/01/2024,585.25
120618235,Disabled Children,Children & Families,DCT Daytime Short Breaks,3rd Party Payments,Day Care,BRUNEL EDUCATION,SN5 ,12/01/2024,"1,012.00"
119335233,Disabled Children,Children & Families,DCT Daytime Short Breaks,3rd Party Payments,Day Care,BRUNEL EDUCATION,SN5 ,03/01/2024,"1,158.80"
120860368,High Needs Block,Dedicated Schools Grant (DSG),Post 16 - New Responsibilties,3rd Party Payments,Independent Service Provider- Post 16,BRUNEL EDUCATION,SN25,15/01/2024,"110,672.95"
120860331,High Needs Block,Dedicated Schools Grant (DSG),SEN Resourcing Assessment Panel,3rd Party Payments,Top up funding - Academies and Free Schools Pre 16,BRUNEL EDUCATION,SN25,15/01/2024,"13,116.99"
120359233,Disabled Children,Children & Families,DCT Daytime Short Breaks,3rd Party Payments,Day Care,BRUNEL EDUCATION,SN5 ,10/01/2024,"1,188.00"
122123233,Disabled Children,Children & Families,Aiming High for Disabled Children,Supplies and Services,Services,BRUNEL EDUCATION,SN5 ,22/01/2024,"2,748.51"
119333233,Disabled Children,Children & Families,DCT Daytime Short Breaks,3rd Party Payments,Day Care,BRUNEL EDUCATION,SN5 ,03/01/2024,688.38
119317233,Disabled Children,Children & Families,DCT Daytime Short Breaks,3rd Party Payments,Day Care,BRUNEL EDUCATION,SN5 ,03/01/2024,860.32
120579233,Disabled Children,Children & Families,DCT Daytime Short Breaks,3rd Party Payments,Day Care,BRUNEL EDUCATION,SN5 ,12/01/2024,792.00
120618234,Disabled Children,Children & Families,DCT Daytime Short Breaks,3rd Party Payments,Day Care,BRUNEL EDUCATION,SN5 ,12/01/2024,"1,243.00"
120355233,Disabled Children,Children & Families,DCT Daytime Short Breaks,3rd Party Payments,Day Care,BRUNEL EDUCATION,SN5 ,10/01/2024,554.40
120357233,Disabled Children,Children & Families,DCT Daytime Short Breaks,3rd Party Payments,Day Care,BRUNEL EDUCATION,SN5 ,10/01/2024,902.00
119334233,Disabled Children,Children & Families,DCT Daytime Short Breaks,3rd Party Payments,Day Care,BRUNEL EDUCATION,SN5 ,03/01/2024,688.38
120592234,Disabled Children,Children & Families,DCT Daytime Short Breaks,3rd Party Payments,Day Care,BRUNEL EDUCATION,SN5 ,12/01/2024,924.00
119314233,Disabled Children,Children & Families,DCT Daytime Short Breaks,3rd Party Payments,Day Care,BRUNEL EDUCATION,SN5 ,03/01/2024,632.07
119231234,Disabled Children,Children & Families,DCT Daytime Short Breaks,3rd Party Payments,Day Care,BRUNEL EDUCATION,SN5 ,03/01/2024,702.30
120568233,Disabled Children,Children & Families,DCT Daytime Short Breaks,3rd Party Payments,Day Care,BRUNEL EDUCATION,SN25,12/01/2024,660.00
121968233,Disabled Children,Children & Families,Aiming High for Disabled Children,Supplies and Services,Services,BRUNEL EDUCATION,SN25,22/01/2024,"1,259.30"
121178233,High Needs Block,Dedicated Schools Grant (DSG),Advisory Teacher Services,Supplies and Services,Payments to Educational Bodies,REDACTED PERSONAL DATA,SN25,17/01/2024,"11,325.00"
120860357,High Needs Block,Dedicated Schools Grant (DSG),SEN Resourcing Assessment Panel,3rd Party Payments,Top up funding - Academies and Free Schools Pre 16,REDACTED PERSONAL DATA,SN25,15/01/2024,"34,785.10"
120860333,High Needs Block,Dedicated Schools Grant (DSG),SEN Resourcing Assessment Panel,3rd Party Payments,Top up funding - Academies and Free Schools Pre 16,REDACTED PERSONAL DATA,SN25,15/01/2024,"79,974.41"
120860337,High Needs Block,Dedicated Schools Grant (DSG),SEN Resourcing Assessment Panel,3rd Party Payments,Top up funding - Academies and Free Schools Pre 16,REDACTED PERSONAL DATA,SN25,15/01/2024,"150,176.73"
120860334,High Needs Block,Dedicated Schools Grant (DSG),SEN Resourcing Assessment Panel,3rd Party Payments,Top up funding - Academies and Free Schools Pre 16,REDACTED PERSONAL DATA,SN25,15/01/2024,"125,269.60"
120171233,DSG Other Funding,Dedicated Schools Grant (DSG),LAC pupil premium,Supplies and Services,Services,REDACTED PERSONAL DATA,SN25,17/01/2024,600.00
120860314,High Needs Block,Dedicated Schools Grant (DSG),SEN Resourcing Assessment Panel,3rd Party Payments,Top up funding - Academies and Free Schools Pre 16,REDACTED PERSONAL DATA,SN25,15/01/2024,"2,732.08"
120860352,High Needs Block,Dedicated Schools Grant (DSG),SEN Resourcing Assessment Panel,3rd Party Payments,Top up funding - Academies and Free Schools Pre 16,REDACTED PERSONAL DATA,SN25,15/01/2024,"7,332.89"
120179233,DSG Other Funding,Dedicated Schools Grant (DSG),LAC pupil premium,Supplies and Services,Services,REDACTED PERSONAL DATA,SN25,17/01/2024,600.00
121177233,High Needs Block,Dedicated Schools Grant (DSG),Advisory Teacher Services,Supplies and Services,Payments to Educational Bodies,REDACTED PERSONAL DATA,SN25,17/01/2024,"7,250.00"
120860356,High Needs Block,Dedicated Schools Grant (DSG),SEN Resourcing Assessment Panel,3rd Party Payments,Top up funding - Academies and Free Schools Pre 16,REDACTED PERSONAL DATA,SN25,15/01/2024,"13,224.24"
120860329,High Needs Block,Dedicated Schools Grant (DSG),SEN Resourcing Assessment Panel,3rd Party Payments,Top up funding - Academies and Free Schools Pre 16,REDACTED PERSONAL DATA,SN25,15/01/2024,"141,807.05"
121395357,Early Years Block,Dedicated Schools Grant (DSG),Free Nursery Education Commissioning - three & four  year olds,3rd Party Payments,Contracts - Child Care,REDACTED PERSONAL DATA,SN25,17/01/2024,"12,091.86"
120178233,DSG Other Funding,Dedicated Schools Grant (DSG),LAC pupil premium,Supplies and Services,Services,REDACTED PERSONAL DATA,SN25,17/01/2024,600.00
120860345,High Needs Block,Dedicated Schools Grant (DSG),SEN Resourcing Assessment Panel,3rd Party Payments,Top up funding - Academies and Free Schools Pre 16,REDACTED PERSONAL DATA,SN25,15/01/2024,"32,335.85"
120860359,High Needs Block,Dedicated Schools Grant (DSG),SEN Resourcing Assessment Panel,3rd Party Payments,Top up funding - Academies and Free Schools Post 16,REDACTED PERSONAL DATA,SN25,15/01/2024,"58,968.37"
120860330,High Needs Block,Dedicated Schools Grant (DSG),SEN Resourcing Assessment Panel,3rd Party Payments,Top up funding - Academies and Free Schools Pre 16,REDACTED PERSONAL DATA,SN25,15/01/2024,"6,247.00"
120860332,High Needs Block,Dedicated Schools Grant (DSG),SEN Resourcing Assessment Panel,3rd Party Payments,Top up funding - Academies and Free Schools Pre 16,REDACTED PERSONAL DATA,SN25,15/01/2024,"65,304.26"
120737233,Landscaping & Open Space,Culture & Heritage & Art,GWCF - Trees for Climate,Capital,Contractor Payments,BRUNEL SURVEYS LTD,CM20,12/01/2024,550.00
120734234,Landscaping & Open Space,Culture & Heritage & Art,GWCF - Trees for Climate,Capital,Contractor Payments,BRUNEL SURVEYS LTD,CM20,12/01/2024,565.00
120735233,Landscaping & Open Space,Culture & Heritage & Art,GWCF - Trees for Climate,Capital,Contractor Payments,BRUNEL SURVEYS LTD,CM20,12/01/2024,565.00
120454233,Local Transport Plan Funded,Strategic Planning and Highways,Surface Water Management,Capital,Contractor Payments,BRUNEL SURVEYS LTD,CM20,10/01/2024,"2,850.00"
122817233,Landscaping & Open Space,Culture & Heritage & Art,GWCF - Trees for Climate,Capital,Contractor Payments,BRUNEL SURVEYS LTD,CM20,26/01/2024,630.00
120014234,Completed Schemes (GF),Completed Schemes (GF & HRA),Chiseldon Firs -Traveller site funding,Capital,Contractor Payments,BRUNEL SURVEYS LTD,CM20,08/01/2024,"2,350.00"
121014233,Landscaping & Open Space,Culture & Heritage & Art,GWCF - Trees for Climate,Capital,Contractor Payments,BRUNEL SURVEYS LTD,CM20,15/01/2024,550.00
120736233,Landscaping & Open Space,Culture & Heritage & Art,GWCF - Trees for Climate,Capital,Contractor Payments,BRUNEL SURVEYS LTD,CM20,12/01/2024,565.00
120712233,Landscaping & Open Space,Culture & Heritage & Art,GWCF - Trees for Climate,Capital,Contractor Payments,BRUNEL SURVEYS LTD,CM20,12/01/2024,650.00
122212233,NEV,"Economy, Growth and Place",Southern Connector Road,Capital,Consultants,BRUTON KNOWLES,GL2 ,24/01/2024,"1,056.00"
119523233,NEV,"Economy, Growth and Place",Southern Connector Road,Capital,Consultants,BRUTON KNOWLES,GL2 ,03/01/2024,"2,031.34"
122210233,NEV,"Economy, Growth and Place",Package 2 - Nythe Road Junction and Piccadilly Roundabout,Capital,Consultants,BRUTON KNOWLES,GL2 ,24/01/2024,"5,000.00"
119688233,NEV,"Economy, Growth and Place",Southern Connector Road,Capital,Consultants,BRUTON KNOWLES,GL2 ,05/01/2024,"1,124.70"
122214233,NEV,"Economy, Growth and Place",White Hart Junction,Capital,Consultants,BRUTON KNOWLES,GL2 ,24/01/2024,"1,389.75"
122479233,Planning & Regulatory,Strategic Planning,Planning,Supplies and Services,Subscriptions,BUILDING COST INFORMATION SERVICE LTD,CV1 ,24/01/2024,"2,113.00"
120698233,Schools Maintenance,Skills & Attainment,Condition Works,Capital,Contractor Payments,BUILDTECH SW LIMITED,GL53,12/01/2024,393.73
120698233,Schools Maintenance,Skills & Attainment,Condition Works,Capital,Contractor Payments,BUILDTECH SW LIMITED,GL53,12/01/2024,"1,678.52"
121452233,Neighbourhood Wardens,Special Services,Neighbourhood Wardens,Supplies and Services,Hire / Rental,BUNZL CLEANING & HYGIENE SUPPLIES,SL3 ,17/01/2024,"1,075.34"
121592270,Physical Support,Adults,Physical Support 65 and over,3rd Party Payments,Residential Care,BUPA CARE HOME (ANS) LTD,LS5 ,17/01/2024,"4,400.00"
120450236,Corporate,Corporate Finance,Corporate Financial Management,Supplies and Services,Fees,BURGES SALMON,BS2 ,10/01/2024,"1,138.50"
121395246,Early Years Block,Dedicated Schools Grant (DSG),Free Nursery Education Commissioning - two year olds,3rd Party Payments,Contracts - Child Care,"BUSY BEES, BROOME MANOR",SN3 ,17/01/2024,"2,547.60"
121395245,Early Years Block,Dedicated Schools Grant (DSG),Free Nursery Education Commissioning - three & four  year olds,3rd Party Payments,Contracts - Child Care,"BUSY BEES, BROOME MANOR",SN3 ,17/01/2024,"18,156.60"
122178233,High Needs Block,Dedicated Schools Grant (DSG),SEN Resourcing Assessment Panel,3rd Party Payments,Top up funding - Maintained providers Pre 16,"BUSY BEES, PEATMOOR",SN5 ,24/01/2024,660.00
121395247,Early Years Block,Dedicated Schools Grant (DSG),Free Nursery Education Commissioning - two year olds,3rd Party Payments,Contracts - Child Care,"BUSY BEES, PEATMOOR",SN5 ,17/01/2024,"2,547.60"
121395248,Early Years Block,Dedicated Schools Grant (DSG),Free Nursery Education Commissioning - three & four  year olds,3rd Party Payments,Contracts - Child Care,"BUSY BEES, PEATMOOR",SN5 ,17/01/2024,"20,189.40"
121395243,Early Years Block,Dedicated Schools Grant (DSG),Free Nursery Education Commissioning - two year olds,3rd Party Payments,Contracts - Child Care,"BUSY BEES, ST ANDREWS RIDGE",SN25,17/01/2024,"2,038.08"
122200242,Early Years Block,Dedicated Schools Grant (DSG),Free Nursery Education Commissioning - three & four  year olds,3rd Party Payments,Contracts - Child Care,"BUSY BEES, ST ANDREWS RIDGE",SN25,24/01/2024,"2,280.00"
122200243,Early Years Block,Dedicated Schools Grant (DSG),Free Nursery Education Commissioning - three & four  year olds,3rd Party Payments,Contracts - Child Care,"BUSY BEES, ST ANDREWS RIDGE",SN25,24/01/2024,"2,280.00"
121395244,Early Years Block,Dedicated Schools Grant (DSG),Free Nursery Education Commissioning - three & four  year olds,3rd Party Payments,Contracts - Child Care,"BUSY BEES, ST ANDREWS RIDGE",SN25,17/01/2024,"27,016.50"
120024233,Property & Assets,Property & Assets,General Enhancement Works Corporate Buildings,Capital,Contractor Payments,C J COOK CONTRACTORS LTD,GL53,08/01/2024,"29,648.78"
121532233,Property & Assets,Property & Assets,General Enhancement Works Corporate Buildings,Capital,Contractor Payments,C J COOK CONTRACTORS LTD,GL53,17/01/2024,"3,281.25"
121531233,Landscaping & Open Space,Culture & Heritage & Art,Mouldon Hill Country Park,Capital,Contractor Payments,C J COOK CONTRACTORS LTD,GL53,17/01/2024,"47,817.97"
121574233,Learning Disabilities,Adults,Learning Disability 18 - 64,3rd Party Payments,Residential Care,C.H.O.I.C.E LTD,RG12,17/01/2024,"9,797.76"
121575233,Learning Disabilities,Adults,Learning Disability 18 - 64,Income,Client Contribution - Residential,C.H.O.I.C.E LTD,RG12,17/01/2024,-454.80
121571233,Learning Disabilities,Adults,Learning Disability 18 - 64,Income,Client Contribution - Residential,C.H.O.I.C.E LTD,RG12,17/01/2024,-427.20
121572233,Learning Disabilities,Adults,Learning Disability 18 - 64,3rd Party Payments,Residential Care,C.H.O.I.C.E LTD,SO23,17/01/2024,"8,531.76"
121569233,Learning Disabilities,Adults,Learning Disability 18 - 64,Income,Client Contribution - Residential,C.H.O.I.C.E LTD,RG12,17/01/2024,-384.56
121573233,Learning Disabilities,Adults,Learning Disability 65 and over,3rd Party Payments,Residential Care,C.H.O.I.C.E LTD,RG12,17/01/2024,"9,862.32"
121573233,Learning Disabilities,Adults,Learning Disability 65 and over,Income,Client Contribution - Residential,C.H.O.I.C.E LTD,RG12,17/01/2024,-691.20
121575233,Physical Support,Adults,Physical Support 18 - 64,Income,Client Contribution - Residential,C.H.O.I.C.E LTD,RG12,17/01/2024,-483.20
121575233,Learning Disabilities,Adults,Learning Disability 18 - 64,3rd Party Payments,Residential Care,C.H.O.I.C.E LTD,RG12,17/01/2024,"13,870.08"
121574233,Learning Disabilities,Adults,Learning Disability 18 - 64,3rd Party Payments,Residential Care,C.H.O.I.C.E LTD,RG12,17/01/2024,"10,380.16"
121574233,Learning Disabilities,Adults,Learning Disability 18 - 64,Income,Client Contribution - Residential,C.H.O.I.C.E LTD,RG12,17/01/2024,-481.00
121574233,Learning Disabilities,Adults,Learning Disability 18 - 64,3rd Party Payments,Residential Care,C.H.O.I.C.E LTD,RG12,17/01/2024,"9,887.36"
121574233,Learning Disabilities,Adults,Learning Disability 18 - 64,Income,Client Contribution - Residential,C.H.O.I.C.E LTD,RG12,17/01/2024,-617.76
121571233,Learning Disabilities,Adults,Learning Disability 18 - 64,3rd Party Payments,Residential Care,C.H.O.I.C.E LTD,RG12,17/01/2024,"13,814.08"
121575233,Learning Disabilities,Adults,Learning Disability 18 - 64,Income,Client Contribution - Residential,C.H.O.I.C.E LTD,RG12,17/01/2024,-276.60
121574233,Learning Disabilities,Adults,Learning Disability 18 - 64,Income,Client Contribution - Residential,C.H.O.I.C.E LTD,RG12,17/01/2024,-639.20
121570233,Learning Disabilities,Adults,Learning Disability 18 - 64,Income,Client Contribution - Residential,C.H.O.I.C.E LTD,RG12,17/01/2024,-511.20
121573233,Learning Disabilities,Adults,Learning Disability 65 and over,3rd Party Payments,Residential Care,C.H.O.I.C.E LTD,RG12,17/01/2024,"10,516.64"
121573233,Learning Disabilities,Adults,Learning Disability 65 and over,Income,Client Contribution - Residential,C.H.O.I.C.E LTD,RG12,17/01/2024,-773.20
121575233,Learning Disabilities,Adults,Learning Disability 18 - 64,3rd Party Payments,Residential Care,C.H.O.I.C.E LTD,RG12,17/01/2024,"12,844.16"
121570233,Learning Disabilities,Adults,Learning Disability 18 - 64,3rd Party Payments,Residential Care,C.H.O.I.C.E LTD,RG12,17/01/2024,"9,531.52"
121569233,Learning Disabilities,Adults,Learning Disability 18 - 64,3rd Party Payments,Residential Care,C.H.O.I.C.E LTD,RG12,17/01/2024,"13,440.00"
121575233,Physical Support,Adults,Physical Support 18 - 64,3rd Party Payments,Residential Care,C.H.O.I.C.E LTD,RG12,17/01/2024,"11,449.52"
Corporate Card Transaction,"Data, Performance and Insight","Data, Performance and Insight","Performance, Intelligence and Insight",Supplies and Services,Services,C2e878201113j Ukvi,,17/01/2024,"3,239.00"
Corporate Card Transaction,"Data, Performance and Insight","Data, Performance and Insight","Performance, Intelligence and Insight",Supplies and Services,Services,C2e878201144i Ukvi,,17/01/2024,"3,239.00"
Corporate Card Transaction,"Data, Performance and Insight","Data, Performance and Insight","Performance, Intelligence and Insight",Supplies and Services,Services,C2e879001125n Ukvi,,25/01/2024,"3,239.00"
122133233,Social Care,Children & Families,Children's Resource and Home Finding Team,3rd Party Payments,Residential Care,CALCOT SERVICES FOR CHILDREN LTD,RG7 ,22/01/2024,"29,361.34"
122134233,Social Care,Children & Families,Children's Resource and Home Finding Team,3rd Party Payments,Residential Care,CALCOT SERVICES FOR CHILDREN LTD,RG7 ,22/01/2024,"29,892.68"
123346233,Social Care,Children & Families,Children's Resource and Home Finding Team,3rd Party Payments,Independent Fostering Agency Placements,CALDECOTT FOSTERING LTD,TN25,31/01/2024,"7,146.43"
121827313,Learning Disabilities,Adults,Learning Disability 18 - 64,Transfer Payments,Personal Budget - Direct Payments - Domiciliary Care,REDACTED PERSONAL DATA,SP11,19/01/2024,360.48
121827313,Learning Disabilities,Adults,Learning Disability 18 - 64,Income,Client Contribution - Personal Budget - DP,REDACTED PERSONAL DATA,SP11,19/01/2024,-27.12
121827313,Learning Disabilities,Adults,Learning Disability 18 - 64,Transfer Payments,Personal Budget - Direct Payments - Domiciliary Care,REDACTED PERSONAL DATA,SP11,19/01/2024,520.96
121827313,Learning Disabilities,Adults,Learning Disability 18 - 64,Income,Client Contribution - Personal Budget - DP,REDACTED PERSONAL DATA,SP11,19/01/2024,-10.36
121827313,Learning Disabilities,Adults,Learning Disability 18 - 64,Income,Client Contribution - Personal Budget - DP,REDACTED PERSONAL DATA,SP11,19/01/2024,-18.76
121827313,Learning Disabilities,Adults,Learning Disability 18 - 64,Transfer Payments,Personal Budget - Direct Payments - Domiciliary Care,REDACTED PERSONAL DATA,SP11,19/01/2024,94.80
121827313,Learning Disabilities,Adults,Learning Disability 18 - 64,Income,Client Contribution - Personal Budget - DP,REDACTED PERSONAL DATA,SP11,19/01/2024,-42.80
121827313,Learning Disabilities,Adults,Learning Disability 18 - 64,Transfer Payments,Personal Budget - Direct Payments - Domiciliary Care,REDACTED PERSONAL DATA,SP11,19/01/2024,821.76
121827313,Learning Disabilities,Adults,Learning Disability 18 - 64,Income,Client Contribution - Personal Budget - DP,REDACTED PERSONAL DATA,SP11,19/01/2024,-4.92
121827313,Learning Disabilities,Adults,Learning Disability 18 - 64,Transfer Payments,Personal Budget - Direct Payments - Domiciliary Care,REDACTED PERSONAL DATA,SP11,19/01/2024,198.32
121827374,Learning Disabilities,Adults,Learning Disability 18 - 64,Transfer Payments,Personal Budget - Direct Payments - Domiciliary Care,REDACTED PERSONAL DATA,SP11,19/01/2024,651.20
121766233,Lydiard Park,Culture & Heritage,Lydiard : Hotel Operations,Premises Costs,Gas,CALOR GAS LTD,CV34,19/01/2024,"2,208.96"
119495233,Lydiard Park,Culture & Heritage,Lydiard : Hotel Operations,Premises Costs,Gas,CALOR GAS LTD,CV34,03/01/2024,"1,933.43"
119494233,Lydiard Park,Culture & Heritage,Lydiard : Hotel Operations,Premises Costs,Gas,CALOR GAS LTD,CV34,03/01/2024,"1,855.04"
119496234,Lydiard Park,Culture & Heritage,Lydiard : Hotel Operations,Premises Costs,Gas,CALOR GAS LTD,CV34,03/01/2024,"1,210.95"
119498233,Lydiard Park,Culture & Heritage,Lydiard House & Park,Premises Costs,Gas,CALOR GAS LTD,CV34,03/01/2024,"1,273.44"
123412234,Parking & Bus lanes,Highway Operations and Car Parking,Car Parking,3rd Party Payments,Contract Payments,CAME PARKARE,DE74,31/01/2024,"21,195.00"
123412233,Parking & Bus lanes,Highway Operations and Car Parking,Car Parking,3rd Party Payments,Contract Payments,CAME PARKARE,DE74,31/01/2024,"25,696.00"
122610233,Parking & Bus lanes,Highway Operations and Car Parking,Car Parking,Supplies and Services,Fees,CAME PARKARE,DE74,26/01/2024,"2,597.30"
123413233,Parking & Bus lanes,Highway Operations and Car Parking,Car Parking,3rd Party Payments,Contract Payments,CAME PARKARE,DE74,31/01/2024,"12,418.00"
121654233,Parking & Bus lanes,Highway Operations and Car Parking,Car Parking,Supplies and Services,Equipment,CAME PARKARE,DE74,19/01/2024,"1,468.00"
123413235,Streetsmart,Streetsmart,Coate Water,Supplies and Services,Discretionary Costs,CAME PARKARE,DE74,31/01/2024,"1,821.00"
120117233,Parking & Bus lanes,Highway Operations and Car Parking,Car Parking,Supplies and Services,Equipment,CAME PARKARE,DE74,10/01/2024,440.00
123413234,Lydiard Park,Culture & Heritage,Lydiard House & Park,Supplies and Services,Discretionary Costs,CAME PARKARE,DE74,31/01/2024,"2,913.00"
120116233,Parking & Bus lanes,Highway Operations and Car Parking,Car Parking,Supplies and Services,Fees,CAME PARKARE,DE74,10/01/2024,"2,027.80"
121826295,Physical Support,Adults,Physical Support 18 - 64,Income,Client Contribution - Personal Budget - DP,REDACTED PERSONAL DATA,SN25,19/01/2024,-52.72
121826295,Physical Support,Adults,Physical Support 18 - 64,Transfer Payments,Personal Budget - Direct Payments - Domiciliary Care,REDACTED PERSONAL DATA,SN25,19/01/2024,586.08
121826295,Physical Support,Adults,Physical Support 18 - 64,Transfer Payments,Personal Budget - Direct Payments - Domiciliary Care,REDACTED PERSONAL DATA,SN25,19/01/2024,408.24
121826295,Physical Support,Adults,Physical Support 18 - 64,Income,Client Contribution - Personal Budget - DP,REDACTED PERSONAL DATA,SN25,19/01/2024,-75.68
120836233,Other Repairs,Repairs,Cyclical Maintenance,Supplies and Services,Testing / Inspection,CANTILLON GROUP LTD,SN25,15/01/2024,88.30
120833233,Other Repairs,Repairs,Cyclical Maintenance,Supplies and Services,Testing / Inspection,CANTILLON GROUP LTD,SN25,15/01/2024,88.30
120828233,Other Repairs,Repairs,Cyclical Maintenance,Supplies and Services,Testing / Inspection,CANTILLON GROUP LTD,SN25,15/01/2024,849.45
120828233,Other Repairs,Repairs,Cyclical Maintenance,Supplies and Services,Testing / Inspection,CANTILLON GROUP LTD,SN25,15/01/2024,88.30
120821233,Other Repairs,Repairs,Cyclical Maintenance,Supplies and Services,Testing / Inspection,CANTILLON GROUP LTD,SN25,15/01/2024,88.30
120690244,Other Repairs,Repairs,Cyclical Maintenance,Supplies and Services,Testing / Inspection,CANTILLON GROUP LTD,SN25,12/01/2024,931.03
120690235,Other Repairs,Repairs,Cyclical Maintenance,Supplies and Services,Testing / Inspection,CANTILLON GROUP LTD,SN25,12/01/2024,561.20
120839233,Other Repairs,Repairs,Cyclical Maintenance,Supplies and Services,Testing / Inspection,CANTILLON GROUP LTD,SN25,15/01/2024,88.30
120824233,Other Repairs,Repairs,Cyclical Maintenance,Supplies and Services,Testing / Inspection,CANTILLON GROUP LTD,SN25,15/01/2024,859.72
120824233,Other Repairs,Repairs,Cyclical Maintenance,Supplies and Services,Testing / Inspection,CANTILLON GROUP LTD,SN25,15/01/2024,88.30
120823233,Other Repairs,Repairs,Cyclical Maintenance,Supplies and Services,Testing / Inspection,CANTILLON GROUP LTD,SN25,15/01/2024,88.30
120690245,Other Repairs,Repairs,Cyclical Maintenance,Supplies and Services,Testing / Inspection,CANTILLON GROUP LTD,SN25,12/01/2024,88.30
120837233,Other Repairs,Repairs,Cyclical Maintenance,Supplies and Services,Testing / Inspection,CANTILLON GROUP LTD,SN25,15/01/2024,88.30
120833233,Other Repairs,Repairs,Cyclical Maintenance,Supplies and Services,Testing / Inspection,CANTILLON GROUP LTD,SN25,15/01/2024,852.87
120690245,Other Repairs,Repairs,Cyclical Maintenance,Supplies and Services,Testing / Inspection,CANTILLON GROUP LTD,SN25,12/01/2024,601.05
120690233,Other Repairs,Repairs,Cyclical Maintenance,Supplies and Services,Testing / Inspection,CANTILLON GROUP LTD,SN25,12/01/2024,88.30
120004240,Other Repairs,Repairs,Cyclical Maintenance,Supplies and Services,Testing / Inspection,CANTILLON GROUP LTD,SN25,08/01/2024,356.18
119288233,Other Repairs,Repairs,Cyclical Maintenance,Supplies and Services,Testing / Inspection,CANTILLON GROUP LTD,SN25,03/01/2024,854.08
120690244,Other Repairs,Repairs,Cyclical Maintenance,Supplies and Services,Testing / Inspection,CANTILLON GROUP LTD,SN25,12/01/2024,88.30
119755233,Other Repairs,Repairs,Cyclical Maintenance,Supplies and Services,Testing / Inspection,CANTILLON GROUP LTD,SN25,05/01/2024,88.30
119288233,Other Repairs,Repairs,Cyclical Maintenance,Supplies and Services,Testing / Inspection,CANTILLON GROUP LTD,SN25,03/01/2024,88.30
119755233,Other Repairs,Repairs,Cyclical Maintenance,Supplies and Services,Testing / Inspection,CANTILLON GROUP LTD,SN25,05/01/2024,336.18
120845233,Other Repairs,Repairs,Cyclical Maintenance,Supplies and Services,Testing / Inspection,CANTILLON GROUP LTD,SN25,15/01/2024,580.58
120834233,Other Repairs,Repairs,Cyclical Maintenance,Supplies and Services,Testing / Inspection,CANTILLON GROUP LTD,SN25,15/01/2024,424.76
120690242,Other Repairs,Repairs,Cyclical Maintenance,Supplies and Services,Testing / Inspection,CANTILLON GROUP LTD,SN25,12/01/2024,88.30
120690239,Other Repairs,Repairs,Cyclical Maintenance,Supplies and Services,Testing / Inspection,CANTILLON GROUP LTD,SN25,12/01/2024,853.13
120004240,Other Repairs,Repairs,Cyclical Maintenance,Supplies and Services,Testing / Inspection,CANTILLON GROUP LTD,SN25,08/01/2024,88.30
119542234,Other Repairs,Repairs,Cyclical Maintenance,Supplies and Services,Testing / Inspection,CANTILLON GROUP LTD,SN25,03/01/2024,88.30
120841233,Other Repairs,Repairs,Cyclical Maintenance,Supplies and Services,Testing / Inspection,CANTILLON GROUP LTD,SN25,15/01/2024,367.59
120841233,Other Repairs,Repairs,Cyclical Maintenance,Supplies and Services,Testing / Inspection,CANTILLON GROUP LTD,SN25,15/01/2024,88.30
120836233,Other Repairs,Repairs,Cyclical Maintenance,Supplies and Services,Testing / Inspection,CANTILLON GROUP LTD,SN25,15/01/2024,367.59
120834233,Other Repairs,Repairs,Cyclical Maintenance,Supplies and Services,Testing / Inspection,CANTILLON GROUP LTD,SN25,15/01/2024,88.30
120823233,Other Repairs,Repairs,Cyclical Maintenance,Supplies and Services,Testing / Inspection,CANTILLON GROUP LTD,SN25,15/01/2024,892.72
120690239,Other Repairs,Repairs,Cyclical Maintenance,Supplies and Services,Testing / Inspection,CANTILLON GROUP LTD,SN25,12/01/2024,88.30
120837233,Other Repairs,Repairs,Cyclical Maintenance,Supplies and Services,Testing / Inspection,CANTILLON GROUP LTD,SN25,15/01/2024,"1,373.45"
120821233,Other Repairs,Repairs,Cyclical Maintenance,Supplies and Services,Testing / Inspection,CANTILLON GROUP LTD,SN25,15/01/2024,919.11
120690242,Other Repairs,Repairs,Cyclical Maintenance,Supplies and Services,Testing / Inspection,CANTILLON GROUP LTD,SN25,12/01/2024,671.91
120845233,Other Repairs,Repairs,Cyclical Maintenance,Supplies and Services,Testing / Inspection,CANTILLON GROUP LTD,SN25,15/01/2024,88.30
120839233,Other Repairs,Repairs,Cyclical Maintenance,Supplies and Services,Testing / Inspection,CANTILLON GROUP LTD,SN25,15/01/2024,424.23
120690235,Other Repairs,Repairs,Cyclical Maintenance,Supplies and Services,Testing / Inspection,CANTILLON GROUP LTD,SN25,12/01/2024,88.30
120690233,Other Repairs,Repairs,Cyclical Maintenance,Supplies and Services,Testing / Inspection,CANTILLON GROUP LTD,SN25,12/01/2024,753.50
119542234,Other Repairs,Repairs,Cyclical Maintenance,Supplies and Services,Testing / Inspection,CANTILLON GROUP LTD,SN25,03/01/2024,639.36
119467236,Digital & Business Change,Digital & Business Change,IT Operations,3rd Party Payments,Strategic Partnership Service Charges,CAPITA BUSINESS SERVICES LTD,DL1 ,03/01/2024,"14,142.53"
121730234,Business Development,Supervision & Management,ICT & Administration,Supplies and Services,Equipment,CAPITA BUSINESS SERVICES LTD,DL1 ,19/01/2024,650.00
119467233,Digital & Business Change,Digital & Business Change,IT Operations,3rd Party Payments,Strategic Partnership Service Charges,CAPITA BUSINESS SERVICES LTD,DL1 ,03/01/2024,"14,142.53"
119467235,Digital & Business Change,Digital & Business Change,IT Operations,3rd Party Payments,Strategic Partnership Service Charges,CAPITA BUSINESS SERVICES LTD,DL1 ,03/01/2024,"14,142.53"
119462233,Digital & Business Change,Digital & Business Change,IT Operations,3rd Party Payments,Strategic Partnership Service Charges,CAPITA BUSINESS SERVICES LTD,DL1 ,03/01/2024,"14,204.11"
119467238,Digital & Business Change,Digital & Business Change,IT Operations,3rd Party Payments,Strategic Partnership Service Charges,CAPITA BUSINESS SERVICES LTD,DL1 ,03/01/2024,"14,142.53"
119467237,Digital & Business Change,Digital & Business Change,IT Operations,3rd Party Payments,Strategic Partnership Service Charges,CAPITA BUSINESS SERVICES LTD,DL1 ,03/01/2024,"14,142.53"
121698235,Streetsmart,Streetsmart,Waterside Fleet Workshops,Supplies and Services,Materials,CAR AND TRUCK SERVICES (SWINDON) LTD,SN1 ,19/01/2024,712.10
120112233,Treasury,Corporate Finance,Barnfield Solar Scheme,Supplies and Services,Bank Charges,CARD PROCESSING ADVISORY SERVICES LTD (CPRAS),W1W ,10/01/2024,"1,117.97"
120172234,DSG Other Funding,Dedicated Schools Grant (DSG),LAC pupil premium,Supplies and Services,Services,CARDINAL NEWMAN CATHOLIC HIGH SCHOOL,SL2 ,17/01/2024,600.00
121661234,Disabled Children,Children & Families,ICES Paediatric,Supplies and Services,Equipment,CARE AND INDEPENDENCE LTD,OX26,19/01/2024,"3,818.70"
121502233,Learning Disabilities,Adults,Learning Disability 18 - 64,3rd Party Payments,Supported Lodgings (Childrens)/Supported Living (Adults),CAREFORYOU LTD,N13 ,17/01/2024,"4,882.00"
121761246,Public Health,Public Health,Health Checks,3rd Party Payments,Contract Payments,CARFAX HEALTH ENTERPRISE CIC,SN5 ,19/01/2024,"1,988.00"
120780233,Social Care,Children & Families,Placements - Positive Futures,3rd Party Payments,Semi Independent,CARING FOR COMMUNITIES AND PEOPLE (CCP),GL50,15/01/2024,"2,630.00"
120782233,Social Care,Children & Families,Unaccompanied Asylum Seeking Children (UASC),3rd Party Payments,Semi Independent,CARING FOR COMMUNITIES AND PEOPLE (CCP),GL50,15/01/2024,"3,590.00"
120362233,Social Care,Children & Families,Unaccompanied Asylum Seeking Children (UASC),3rd Party Payments,Semi Independent,CARING FOR COMMUNITIES AND PEOPLE (CCP),GL50,10/01/2024,"3,410.33"
120619233,Social Care,Children & Families,Unaccompanied Asylum Seeking Children (UASC),3rd Party Payments,Semi Independent,CARING FOR COMMUNITIES AND PEOPLE (CCP),GL50,12/01/2024,"1,980.19"
120619233,Social Care,Children & Families,Unaccompanied Asylum Seeking Children (UASC),3rd Party Payments,Semi Independent,CARING FOR COMMUNITIES AND PEOPLE (CCP),GL50,12/01/2024,"3,410.35"
120362233,Social Care,Children & Families,Unaccompanied Asylum Seeking Children (UASC),3rd Party Payments,Semi Independent,CARING FOR COMMUNITIES AND PEOPLE (CCP),GL50,10/01/2024,"3,410.33"
120779233,Social Care,Children & Families,Placements - Positive Futures,3rd Party Payments,Semi Independent,CARING FOR COMMUNITIES AND PEOPLE (CCP),GL50,15/01/2024,"2,520.00"
120774233,Social Care,Children & Families,Children's Resource and Home Finding Team,3rd Party Payments,Semi Independent,CARING FOR COMMUNITIES AND PEOPLE (CCP),GL50,15/01/2024,750.00
120362233,Social Care,Children & Families,Unaccompanied Asylum Seeking Children (UASC),3rd Party Payments,Semi Independent,CARING FOR COMMUNITIES AND PEOPLE (CCP),GL50,10/01/2024,"3,410.33"
120362233,Social Care,Children & Families,Unaccompanied Asylum Seeking Children (UASC),3rd Party Payments,Semi Independent,CARING FOR COMMUNITIES AND PEOPLE (CCP),GL50,10/01/2024,"3,410.33"
120362233,Social Care,Children & Families,Unaccompanied Asylum Seeking Children (UASC),3rd Party Payments,Semi Independent,CARING FOR COMMUNITIES AND PEOPLE (CCP),GL50,10/01/2024,"3,410.35"
120619233,Social Care,Children & Families,Unaccompanied Asylum Seeking Children (UASC),3rd Party Payments,Semi Independent,CARING FOR COMMUNITIES AND PEOPLE (CCP),GL50,12/01/2024,"3,410.33"
120713233,Disabled Children,Children & Families,DCT Daytime Short Breaks,3rd Party Payments,Respite Care,CARING FOR COMMUNITIES AND PEOPLE (CCP),GL50,12/01/2024,"1,059.50"
120781233,Social Care,Children & Families,Unaccompanied Asylum Seeking Children (UASC),3rd Party Payments,Semi Independent,CARING FOR COMMUNITIES AND PEOPLE (CCP),GL50,15/01/2024,"3,660.00"
120619233,Social Care,Children & Families,Unaccompanied Asylum Seeking Children (UASC),3rd Party Payments,Semi Independent,CARING FOR COMMUNITIES AND PEOPLE (CCP),GL50,12/01/2024,"1,430.14"
120619233,Social Care,Children & Families,Unaccompanied Asylum Seeking Children (UASC),3rd Party Payments,Semi Independent,CARING FOR COMMUNITIES AND PEOPLE (CCP),GL50,12/01/2024,"1,540.15"
120362233,Social Care,Children & Families,Unaccompanied Asylum Seeking Children (UASC),3rd Party Payments,Semi Independent,CARING FOR COMMUNITIES AND PEOPLE (CCP),GL50,10/01/2024,"3,410.33"
120776233,Social Care,Children & Families,Placements - Positive Futures,3rd Party Payments,Semi Independent,CARING FOR COMMUNITIES AND PEOPLE (CCP),GL50,15/01/2024,710.00
120777233,Social Care,Children & Families,Placements - Positive Futures,3rd Party Payments,Semi Independent,CARING FOR COMMUNITIES AND PEOPLE (CCP),GL50,15/01/2024,"2,520.00"
120778233,Social Care,Children & Families,Placements - Positive Futures,3rd Party Payments,Semi Independent,CARING FOR COMMUNITIES AND PEOPLE (CCP),GL50,15/01/2024,"2,630.00"
120619233,Social Care,Children & Families,Placements - Positive Futures,3rd Party Payments,Semi Independent,CARING FOR COMMUNITIES AND PEOPLE (CCP),GL50,12/01/2024,"1,870.18"
120619233,Social Care,Children & Families,Unaccompanied Asylum Seeking Children (UASC),3rd Party Payments,Semi Independent,CARING FOR COMMUNITIES AND PEOPLE (CCP),GL50,12/01/2024,"3,410.33"
120619233,Social Care,Children & Families,Unaccompanied Asylum Seeking Children (UASC),3rd Party Payments,Semi Independent,CARING FOR COMMUNITIES AND PEOPLE (CCP),GL50,12/01/2024,"3,410.33"
120775233,Social Care,Children & Families,Placements - Positive Futures,3rd Party Payments,Semi Independent,CARING FOR COMMUNITIES AND PEOPLE (CCP),GL50,15/01/2024,"2,520.00"
119559234,Physical Support,Adults,Physical Support 18 - 64,3rd Party Payments,Personal Budget - Domiciliary care,CARING HEART CARERS LIMITED,SN25,03/01/2024,"1,290.24"
119559234,Physical Support,Adults,Physical Support 18 - 64,3rd Party Payments,Personal Budget - Domiciliary care,CARING HEART CARERS LIMITED,SN25,03/01/2024,-92.16
119559234,Physical Support,Adults,Physical Support 65 and over,3rd Party Payments,Personal Budget - Domiciliary care,CARING HEART CARERS LIMITED,SN25,03/01/2024,-184.32
120537233,Physical Support,Adults,Physical Support 18 - 64,3rd Party Payments,Personal Budget - Domiciliary care,CARING HEART CARERS LIMITED,SN25,10/01/2024,"1,322.08"
119559234,Physical Support,Adults,Physical Support 65 and over,3rd Party Payments,Personal Budget - Domiciliary care,CARING HEART CARERS LIMITED,SN25,03/01/2024,"1,244.16"
120537233,Physical Support,Adults,Physical Support 18 - 64,3rd Party Payments,Personal Budget - Domiciliary care,CARING HEART CARERS LIMITED,SN25,10/01/2024,-308.32
120537233,Physical Support,Adults,Physical Support 65 and over,3rd Party Payments,Personal Budget - Domiciliary care,CARING HEART CARERS LIMITED,SN25,10/01/2024,-233.02
120537233,Physical Support,Adults,Physical Support 65 and over,3rd Party Payments,Personal Budget - Domiciliary care,CARING HEART CARERS LIMITED,SN25,10/01/2024,"1,285.95"
121826265,Learning Disabilities,Adults,Learning Disability 18 - 64,Transfer Payments,Personal Budget - Direct Payments - Domiciliary Care,REDACTED PERSONAL DATA,SN2 ,19/01/2024,736.16
121826265,Learning Disabilities,Adults,Learning Disability 18 - 64,Transfer Payments,Personal Budget - Direct Payments - Domiciliary Care,REDACTED PERSONAL DATA,SN2 ,19/01/2024,651.20
121826265,Learning Disabilities,Adults,Learning Disability 18 - 64,Income,Client Contribution - Personal Budget - DP,REDACTED PERSONAL DATA,SN2 ,19/01/2024,-4.72
121826265,Learning Disabilities,Adults,Learning Disability 18 - 64,Income,Client Contribution - Personal Budget - DP,REDACTED PERSONAL DATA,SN2 ,19/01/2024,-2.48
121826265,Learning Disabilities,Adults,Learning Disability 18 - 64,Income,Client Contribution - Personal Budget - DP,REDACTED PERSONAL DATA,SN2 ,19/01/2024,-4.52
121826265,Learning Disabilities,Adults,Learning Disability 18 - 64,Income,Client Contribution - Personal Budget - DP,REDACTED PERSONAL DATA,SN2 ,19/01/2024,-5.08
121826265,Learning Disabilities,Adults,Learning Disability 18 - 64,Transfer Payments,Personal Budget - Direct Payments - Domiciliary Care,REDACTED PERSONAL DATA,SN2 ,19/01/2024,359.52
121826265,Learning Disabilities,Adults,Learning Disability 18 - 64,Transfer Payments,Personal Budget - Direct Payments - Domiciliary Care,REDACTED PERSONAL DATA,SN2 ,19/01/2024,683.76
120860238,High Needs Block,Dedicated Schools Grant (DSG),SEN Resourcing Assessment Panel,Supplies and Services,Services,REDACTED PERSONAL DATA,SN3 ,15/01/2024,"1,079.20"
120860240,High Needs Block,Dedicated Schools Grant (DSG),SEN Resourcing Assessment Panel,Supplies and Services,Services,REDACTED PERSONAL DATA,SN3 ,15/01/2024,"1,557.82"
121826320,Learning Disabilities,Adults,Learning Disability 18 - 64,Transfer Payments,Personal Budget - Direct Payments - Other,REDACTED PERSONAL DATA,SN2 ,19/01/2024,94.80
121826320,Learning Disabilities,Adults,Learning Disability 18 - 64,Transfer Payments,Personal Budget - Direct Payments - Other,REDACTED PERSONAL DATA,SN2 ,19/01/2024,142.20
121826320,Learning Disabilities,Adults,Learning Disability 18 - 64,Income,Client Contribution - Personal Budget - DP,REDACTED PERSONAL DATA,SN2 ,19/01/2024,-5.00
121826320,Learning Disabilities,Adults,Learning Disability 18 - 64,Income,Client Contribution - Personal Budget - DP,REDACTED PERSONAL DATA,SN2 ,19/01/2024,-2.08
121826320,Learning Disabilities,Adults,Learning Disability 18 - 64,Transfer Payments,Personal Budget - Direct Payments - Other,REDACTED PERSONAL DATA,SN2 ,19/01/2024,60.16
121826320,Learning Disabilities,Adults,Learning Disability 18 - 64,Income,Client Contribution - Personal Budget - DP,REDACTED PERSONAL DATA,SN2 ,19/01/2024,-5.68
121826320,Learning Disabilities,Adults,Learning Disability 18 - 64,Income,Client Contribution - Personal Budget - DP,REDACTED PERSONAL DATA,SN2 ,19/01/2024,-3.76
121826320,Learning Disabilities,Adults,Learning Disability 18 - 64,Transfer Payments,Personal Budget - Direct Payments - Other,REDACTED PERSONAL DATA,SN2 ,19/01/2024,96.00
121826320,Learning Disabilities,Adults,Learning Disability 18 - 64,Income,Client Contribution - Personal Budget - DP,REDACTED PERSONAL DATA,SN2 ,19/01/2024,-19.48
121826320,Learning Disabilities,Adults,Learning Disability 18 - 64,Income,Client Contribution - Personal Budget - DP,REDACTED PERSONAL DATA,SN2 ,19/01/2024,-5.64
121826320,Learning Disabilities,Adults,Learning Disability 18 - 64,Income,Client Contribution - Personal Budget - DP,REDACTED PERSONAL DATA,SN2 ,19/01/2024,-1.64
121826320,Learning Disabilities,Adults,Learning Disability 18 - 64,Transfer Payments,Personal Budget - Direct Payments - Domiciliary Care,REDACTED PERSONAL DATA,SN2 ,19/01/2024,"1,408.50"
121826320,Learning Disabilities,Adults,Learning Disability 18 - 64,Transfer Payments,Personal Budget - Direct Payments - Other,REDACTED PERSONAL DATA,SN2 ,19/01/2024,118.80
121826320,Learning Disabilities,Adults,Learning Disability 18 - 64,Transfer Payments,Personal Budget - Direct Payments - Other,REDACTED PERSONAL DATA,SN2 ,19/01/2024,151.20
121826320,Learning Disabilities,Adults,Learning Disability 18 - 64,Transfer Payments,Personal Budget - Direct Payments - Other,REDACTED PERSONAL DATA,SN2 ,19/01/2024,405.76
121826320,Learning Disabilities,Adults,Learning Disability 18 - 64,Transfer Payments,Personal Budget - Direct Payments - Other,REDACTED PERSONAL DATA,SN2 ,19/01/2024,270.48
121826320,Learning Disabilities,Adults,Learning Disability 18 - 64,Income,Client Contribution - Personal Budget - DP,REDACTED PERSONAL DATA,SN2 ,19/01/2024,-2.20
121826320,Learning Disabilities,Adults,Learning Disability 18 - 64,Income,Client Contribution - Personal Budget - DP,REDACTED PERSONAL DATA,SN2 ,19/01/2024,-0.84
121826320,Learning Disabilities,Adults,Learning Disability 18 - 64,Transfer Payments,Personal Budget - Direct Payments - Other,REDACTED PERSONAL DATA,SN2 ,19/01/2024,360.96
121826320,Learning Disabilities,Adults,Learning Disability 18 - 64,Transfer Payments,Personal Budget - Direct Payments - Other,REDACTED PERSONAL DATA,SN2 ,19/01/2024,45.08
121826320,Learning Disabilities,Adults,Learning Disability 18 - 64,Transfer Payments,Personal Budget - Direct Payments - Other,REDACTED PERSONAL DATA,SN2 ,19/01/2024,405.72
121826320,Learning Disabilities,Adults,Learning Disability 18 - 64,Transfer Payments,Personal Budget - Direct Payments - Other,REDACTED PERSONAL DATA,SN2 ,19/01/2024,410.80
121826320,Learning Disabilities,Adults,Learning Disability 18 - 64,Income,Client Contribution - Personal Budget - DP,REDACTED PERSONAL DATA,SN2 ,19/01/2024,-0.64
121826320,Learning Disabilities,Adults,Learning Disability 18 - 64,Income,Client Contribution - Personal Budget - DP,REDACTED PERSONAL DATA,SN2 ,19/01/2024,-1.96
121826320,Learning Disabilities,Adults,Learning Disability 18 - 64,Income,Client Contribution - Personal Budget - DP,REDACTED PERSONAL DATA,SN2 ,19/01/2024,-1.32
121826320,Learning Disabilities,Adults,Learning Disability 18 - 64,Transfer Payments,Personal Budget - Direct Payments - Other,REDACTED PERSONAL DATA,SN2 ,19/01/2024,157.92
123014242,Social Care,Children & Families,Placement Fostering Service,3rd Party Payments,Birthday Payment,REDACTED PERSONAL DATA,SN2 ,29/01/2024,300.00
123014242,Social Care,Children & Families,Placement Fostering Service,3rd Party Payments,Carers Skills Payments - Advanced,REDACTED PERSONAL DATA,SN2 ,29/01/2024,"1,321.43"
123014242,Social Care,Children & Families,Placement Fostering Service,3rd Party Payments,Festival Payment,REDACTED PERSONAL DATA,SN2 ,29/01/2024,300.00
123014242,Social Care,Children & Families,Placement Fostering Service,3rd Party Payments,Carers Skills Payments - Advanced,REDACTED PERSONAL DATA,SN2 ,29/01/2024,370.00
119225233,Social Care,Children & Families,Placement Fostering Service,3rd Party Payments,Foster Care Basic Payments,REDACTED PERSONAL DATA,SN2 ,03/01/2024,600.00
123014242,Social Care,Children & Families,Placement Fostering Service,3rd Party Payments,Foster Care Basic Payments,REDACTED PERSONAL DATA,SN2 ,29/01/2024,600.00
119225233,Social Care,Children & Families,Placement Fostering Service,3rd Party Payments,Carers Skills Payments - Advanced,REDACTED PERSONAL DATA,SN2 ,03/01/2024,370.00
123014242,Social Care,Children & Families,Placement Fostering Service,3rd Party Payments,Foster Care Basic Payments,REDACTED PERSONAL DATA,SN2 ,29/01/2024,"2,142.86"
123014242,Social Care,Children & Families,Placement Fostering Service,3rd Party Payments,Holiday Payment,REDACTED PERSONAL DATA,SN2 ,29/01/2024,300.00
120940233,Social Care,Children & Families,Placement Fostering Service,3rd Party Payments,Foster Care Basic Payments,REDACTED PERSONAL DATA,SN2 ,15/01/2024,600.00
120940233,Social Care,Children & Families,Placement Fostering Service,3rd Party Payments,Carers Skills Payments - Advanced,REDACTED PERSONAL DATA,SN2 ,15/01/2024,370.00
119763233,Responsive Repairs,Repairs,Responsive Repairs,3rd Party Payments,Contract Payments,CARPET WAREHOUSE SWINDON LTD,SN2 ,05/01/2024,673.00
120352236,Responsive Repairs,Repairs,Responsive Repairs,3rd Party Payments,Contract Payments,CARPET WAREHOUSE SWINDON LTD,SN2 ,10/01/2024,"1,125.84"
120352236,Responsive Repairs,Repairs,Responsive Repairs,3rd Party Payments,Contract Payments,CARPET WAREHOUSE SWINDON LTD,SN2 ,10/01/2024,828.28
120352235,Responsive Repairs,Repairs,Responsive Repairs,3rd Party Payments,Contract Payments,CARPET WAREHOUSE SWINDON LTD,SN2 ,10/01/2024,"1,600.00"
119763233,Responsive Repairs,Repairs,Responsive Repairs,3rd Party Payments,Contract Payments,CARPET WAREHOUSE SWINDON LTD,SN2 ,05/01/2024,"1,034.05"
119763233,Responsive Repairs,Repairs,Responsive Repairs,3rd Party Payments,Contract Payments,CARPET WAREHOUSE SWINDON LTD,SN2 ,05/01/2024,"1,053.84"
120352236,Responsive Repairs,Repairs,Responsive Repairs,3rd Party Payments,Contract Payments,CARPET WAREHOUSE SWINDON LTD,SN2 ,10/01/2024,"1,400.00"
120352236,Responsive Repairs,Repairs,Responsive Repairs,3rd Party Payments,Contract Payments,CARPET WAREHOUSE SWINDON LTD,SN2 ,10/01/2024,"1,208.00"
120352236,Responsive Repairs,Repairs,Responsive Repairs,3rd Party Payments,Contract Payments,CARPET WAREHOUSE SWINDON LTD,SN2 ,10/01/2024,"1,150.75"
120352235,Responsive Repairs,Repairs,Responsive Repairs,3rd Party Payments,Contract Payments,CARPET WAREHOUSE SWINDON LTD,SN2 ,10/01/2024,615.46
120352235,Responsive Repairs,Repairs,Responsive Repairs,3rd Party Payments,Contract Payments,CARPET WAREHOUSE SWINDON LTD,SN2 ,10/01/2024,"1,210.43"
120352235,Responsive Repairs,Repairs,Responsive Repairs,3rd Party Payments,Contract Payments,CARPET WAREHOUSE SWINDON LTD,SN2 ,10/01/2024,687.14
119763233,Responsive Repairs,Repairs,Responsive Repairs,3rd Party Payments,Contract Payments,CARPET WAREHOUSE SWINDON LTD,SN2 ,05/01/2024,767.22
120352235,Responsive Repairs,Repairs,Responsive Repairs,3rd Party Payments,Contract Payments,CARPET WAREHOUSE SWINDON LTD,SN2 ,10/01/2024,"1,317.40"
119763233,Responsive Repairs,Repairs,Responsive Repairs,3rd Party Payments,Contract Payments,CARPET WAREHOUSE SWINDON LTD,SN2 ,05/01/2024,"1,688.82"
119763233,Responsive Repairs,Repairs,Responsive Repairs,3rd Party Payments,Contract Payments,CARPET WAREHOUSE SWINDON LTD,SN2 ,05/01/2024,733.21
120352236,Responsive Repairs,Repairs,Responsive Repairs,3rd Party Payments,Contract Payments,CARPET WAREHOUSE SWINDON LTD,SN2 ,10/01/2024,842.22
120352236,Responsive Repairs,Repairs,Responsive Repairs,3rd Party Payments,Contract Payments,CARPET WAREHOUSE SWINDON LTD,SN2 ,10/01/2024,635.26
120352236,Responsive Repairs,Repairs,Responsive Repairs,3rd Party Payments,Contract Payments,CARPET WAREHOUSE SWINDON LTD,SN2 ,10/01/2024,"1,012.54"
120352235,Responsive Repairs,Repairs,Responsive Repairs,3rd Party Payments,Contract Payments,CARPET WAREHOUSE SWINDON LTD,SN2 ,10/01/2024,"1,185.36"
120352235,Responsive Repairs,Repairs,Responsive Repairs,3rd Party Payments,Contract Payments,CARPET WAREHOUSE SWINDON LTD,SN2 ,10/01/2024,828.02
120352236,Responsive Repairs,Repairs,Responsive Repairs,3rd Party Payments,Contract Payments,CARPET WAREHOUSE SWINDON LTD,SN2 ,10/01/2024,798.47
119544233,Other Repairs,Repairs,Unallocated job costs from OPEN system,Premises Costs,Maintenance - Buildings,CARTER PUMPS LTD,SN10,03/01/2024,"1,090.00"
121826333,Learning Disabilities,Adults,Learning Disability 18 - 64,Transfer Payments,Personal Budget - Direct Payments - Domiciliary Care,REDACTED PERSONAL DATA,SN6 ,19/01/2024,180.36
121826333,Learning Disabilities,Adults,Learning Disability 18 - 64,Income,Client Contribution - Personal Budget - DP,REDACTED PERSONAL DATA,SN6 ,19/01/2024,-25.28
121826333,Learning Disabilities,Adults,Learning Disability 18 - 64,Transfer Payments,Personal Budget - Direct Payments - Other,REDACTED PERSONAL DATA,SN6 ,19/01/2024,198.32
121826333,Learning Disabilities,Adults,Learning Disability 18 - 64,Transfer Payments,Personal Budget - Direct Payments - Other,REDACTED PERSONAL DATA,SN6 ,19/01/2024,147.60
121826333,Learning Disabilities,Adults,Learning Disability 18 - 64,Transfer Payments,Personal Budget - Direct Payments - Domiciliary Care,REDACTED PERSONAL DATA,SN6 ,19/01/2024,205.44
121826333,Learning Disabilities,Adults,Learning Disability 18 - 64,Transfer Payments,Personal Budget - Direct Payments - Other,REDACTED PERSONAL DATA,SN6 ,19/01/2024,150.40
121826333,Learning Disabilities,Adults,Learning Disability 18 - 64,Income,Client Contribution - Personal Budget - DP,REDACTED PERSONAL DATA,SN6 ,19/01/2024,-18.80
121826333,Learning Disabilities,Adults,Learning Disability 18 - 64,Income,Client Contribution - Personal Budget - DP,REDACTED PERSONAL DATA,SN6 ,19/01/2024,-26.16
121826333,Learning Disabilities,Adults,Learning Disability 18 - 64,Income,Client Contribution - Personal Budget - DP,REDACTED PERSONAL DATA,SN6 ,19/01/2024,-22.96
121826333,Learning Disabilities,Adults,Learning Disability 18 - 64,Transfer Payments,Personal Budget - Direct Payments - Other,REDACTED PERSONAL DATA,SN6 ,19/01/2024,94.80
121826333,Learning Disabilities,Adults,Learning Disability 18 - 64,Income,Client Contribution - Personal Budget - DP,REDACTED PERSONAL DATA,SN6 ,19/01/2024,-19.16
121826333,Learning Disabilities,Adults,Learning Disability 18 - 64,Income,Client Contribution - Personal Budget - DP,REDACTED PERSONAL DATA,SN6 ,19/01/2024,-12.08
122067233,Traded Services,"Education, Inclusion and Skills",Plas Pencelli Outdoor Education Centre,Supplies and Services,Materials,CASTELL HOWELL FOODS LIMITED,SA14,22/01/2024,407.96
122789233,Traded Services,"Education, Inclusion and Skills",Plas Pencelli Outdoor Education Centre,Supplies and Services,Materials,CASTELL HOWELL FOODS LIMITED,SA14,26/01/2024,"1,244.13"
122789233,Traded Services,"Education, Inclusion and Skills",Plas Pencelli Outdoor Education Centre,Supplies and Services,Materials,CASTELL HOWELL FOODS LIMITED,SA14,26/01/2024,400.34
122067233,Traded Services,"Education, Inclusion and Skills",Plas Pencelli Outdoor Education Centre,Supplies and Services,Materials,CASTELL HOWELL FOODS LIMITED,SA14,22/01/2024,"1,200.77"
121481233,Learning Disabilities,Adults,Learning Disability 18 - 64,3rd Party Payments,Supported Lodgings (Childrens)/Supported Living (Adults),CATHEDRAL HOMES,GL1 ,17/01/2024,"3,225.00"
121481233,Learning Disabilities,Adults,Learning Disability 18 - 64,3rd Party Payments,Supported Lodgings (Childrens)/Supported Living (Adults),CATHEDRAL HOMES,GL1 ,17/01/2024,"1,706.28"
121481233,Learning Disabilities,Adults,Learning Disability 18 - 64,3rd Party Payments,Supported Lodgings (Childrens)/Supported Living (Adults),CATHEDRAL HOMES,GL1 ,17/01/2024,"4,462.52"
121481233,Learning Disabilities,Adults,Learning Disability 18 - 64,Income,Client Contribution - Supported Living,CATHEDRAL HOMES,GL1 ,17/01/2024,-17.92
121481233,Learning Disabilities,Adults,Learning Disability 18 - 64,Income,Client Contribution - Supported Living,CATHEDRAL HOMES,GL1 ,17/01/2024,-45.28
121481233,Learning Disabilities,Adults,Learning Disability 18 - 64,Income,Client Contribution - Supported Living,CATHEDRAL HOMES,GL1 ,17/01/2024,-118.40
121481233,Learning Disabilities,Adults,Learning Disability 18 - 64,3rd Party Payments,Supported Lodgings (Childrens)/Supported Living (Adults),CATHEDRAL HOMES,GL1 ,17/01/2024,"2,325.00"
121481233,Learning Disabilities,Adults,Learning Disability 18 - 64,3rd Party Payments,Supported Lodgings (Childrens)/Supported Living (Adults),CATHEDRAL HOMES,GL1 ,17/01/2024,675.00
120386233,Learning Disabilities,Adults,Learning Disability 18 - 64,3rd Party Payments,Supported Accommodation Scheme,REDACTED PERSONAL DATA,SN6 ,22/01/2024,"1,480.00"
120386233,Learning Disabilities,Adults,Learning Disability 18 - 64,3rd Party Payments,Supported Accommodation Scheme,REDACTED PERSONAL DATA,SN6 ,22/01/2024,"2,280.00"
122532233,Public Protection,Environmental Health,Food Safety,Supplies and Services,Discretionary Costs,CCL FORENSICS LTD,CV37,26/01/2024,"3,321.50"
120531233,Mental Health,Adults,Mental Health 65 and over,3rd Party Payments,Personal Budget - Domiciliary care,CELTIC CARE SERVICES LTD,SN15,10/01/2024,661.04
120531233,Mental Health,Adults,Mental Health 18-64,3rd Party Payments,Personal Budget - Domiciliary care,CELTIC CARE SERVICES LTD,SN15,10/01/2024,184.32
119559233,Physical Support,Adults,Physical Support 65 and over,3rd Party Payments,Personal Budget - Domiciliary care,CELTIC CARE SERVICES LTD,SN15,03/01/2024,"1,624.32"
120531233,Physical Support,Adults,Physical Support 65 and over,3rd Party Payments,Personal Budget - Domiciliary care,CELTIC CARE SERVICES LTD,SN15,10/01/2024,"1,664.12"
119559233,Mental Health,Adults,Mental Health 65 and over,3rd Party Payments,Personal Budget - Domiciliary care,CELTIC CARE SERVICES LTD,SN15,03/01/2024,645.12
122364233,Libraries,"Education, Inclusion and Skills",Library Delivery,Supplies and Services,Materials,CENGAGE LEARNING (EMEA) LTD,SP10,24/01/2024,"6,095.76"
121136233,Early Years Block,Dedicated Schools Grant (DSG),Free Nursery Education Commissioning - two year olds,3rd Party Payments,Contracts - Child Care,CENTRAL PRE-SCHOOL,SN1 ,17/01/2024,"1,019.04"
121137233,Early Years Block,Dedicated Schools Grant (DSG),Free Nursery Education Commissioning - three & four  year olds,3rd Party Payments,Contracts - Child Care,CENTRAL PRE-SCHOOL,SN1 ,17/01/2024,"38,946.60"
119327233,Streetsmart,Streetsmart,Waterside Canteen,Supplies and Services,Confectionary,CHAPPLE & JENKINS LTD,BS15,03/01/2024,23.68
119327233,Streetsmart,Streetsmart,Waterside Canteen,Supplies and Services,Confectionary,CHAPPLE & JENKINS LTD,BS15,03/01/2024,418.28
121870233,Streetsmart,Streetsmart,Waterside Canteen,Supplies and Services,Confectionary,CHAPPLE & JENKINS LTD,BS15,19/01/2024,840.87
120177233,DSG Other Funding,Dedicated Schools Grant (DSG),LAC pupil premium,Supplies and Services,Services,CHARBOROUGH ROAD PRIMARY SCHOOL,BS32,17/01/2024,600.00
121763247,Other Repairs,Repairs,Unallocated job costs from OPEN system,Premises Costs,Maintenance - Buildings,CHARLES HARDING ESTATE AGENTS LIMITED,SN1 ,19/01/2024,30.00
119432241,Void Repairs,Supervision & Management,Void Property Repairs,3rd Party Payments,Contract Payments,CHARLES HARDING ESTATE AGENTS LIMITED,SN1 ,03/01/2024,35.00
119432241,Acquisitions,HRA Capital Financing,HRA Acquisitions Programme,Capital,Contractor Payments,CHARLES HARDING ESTATE AGENTS LIMITED,SN1 ,03/01/2024,35.00
119702233,Homelessness and Travellers,Housing Services,Bed and Breakfast Accommodation,Transfer Payments,Payment of Costs,CHARLES HOPES HOLDINGS LIMITED,SO15,05/01/2024,"70,815.00"
121902233,Lydiard Park,Culture & Heritage,Lydiard : Forest Caf�,Supplies and Services,Materials,CHARLES SAUNDERS LTD,BS37,19/01/2024,5.59
121902233,Lydiard Park,Culture & Heritage,Lydiard : Forest Caf�,Supplies and Services,Food,CHARLES SAUNDERS LTD,BS37,19/01/2024,641.97
120020233,Streetsmart,Streetsmart,Waterside Canteen,Supplies and Services,Food,CHARLES SAUNDERS LTD,BS37,08/01/2024,553.99
121139350,Early Years Block,Dedicated Schools Grant (DSG),Free Nursery Education Commissioning - two year olds,3rd Party Payments,Contracts - Child Care,CHEEKY CHIMPS,SN2 ,17/01/2024,"8,356.13"
121139351,Early Years Block,Dedicated Schools Grant (DSG),Free Nursery Education Commissioning - three & four  year olds,3rd Party Payments,Contracts - Child Care,CHEEKY CHIMPS,SN2 ,17/01/2024,"34,788.60"
121395287,Early Years Block,Dedicated Schools Grant (DSG),Free Nursery Education Commissioning - three & four  year olds,3rd Party Payments,Contracts - Child Care,REDACTED PERSONAL DATA,SN4 ,17/01/2024,"1,386.00"
121395359,Early Years Block,Dedicated Schools Grant (DSG),Free Nursery Education Commissioning - two year olds,3rd Party Payments,Contracts - Child Care,CHILD BASE NURSERIES,MK16,17/01/2024,"1,911.47"
121395360,Early Years Block,Dedicated Schools Grant (DSG),Free Nursery Education Commissioning - three & four  year olds,3rd Party Payments,Contracts - Child Care,CHILD BASE NURSERIES,MK16,17/01/2024,"25,956.30"
121963244,Responsive Repairs,Repairs,Responsive Repairs,3rd Party Payments,Contract Payments,CHILD SCAFFOLDING LTD,SN1 ,19/01/2024,440.00
120682251,Responsive Repairs,Repairs,Responsive Repairs,3rd Party Payments,Contract Payments,CHILD SCAFFOLDING LTD,SN1 ,12/01/2024,65.00
120682249,Responsive Repairs,Repairs,Responsive Repairs,3rd Party Payments,Contract Payments,CHILD SCAFFOLDING LTD,SN1 ,12/01/2024,760.00
120004243,Void Repairs,Supervision & Management,Void Property Repairs,3rd Party Payments,Contract Payments,CHILD SCAFFOLDING LTD,SN1 ,08/01/2024,420.00
121963244,Responsive Repairs,Repairs,Responsive Repairs,3rd Party Payments,Contract Payments,CHILD SCAFFOLDING LTD,SN1 ,19/01/2024,820.00
120682248,Responsive Repairs,Repairs,Responsive Repairs,3rd Party Payments,Contract Payments,CHILD SCAFFOLDING LTD,SN1 ,12/01/2024,260.00
120682252,Responsive Repairs,Repairs,Responsive Repairs,3rd Party Payments,Contract Payments,CHILD SCAFFOLDING LTD,SN1 ,12/01/2024,680.00
120682248,Responsive Repairs,Repairs,Responsive Repairs,3rd Party Payments,Contract Payments,CHILD SCAFFOLDING LTD,SN1 ,12/01/2024,65.00
120682252,Responsive Repairs,Repairs,Responsive Repairs,3rd Party Payments,Contract Payments,CHILD SCAFFOLDING LTD,SN1 ,12/01/2024,440.00
120682249,Responsive Repairs,Repairs,Responsive Repairs,3rd Party Payments,Contract Payments,CHILD SCAFFOLDING LTD,SN1 ,12/01/2024,420.00
120682252,Responsive Repairs,Repairs,Responsive Repairs,3rd Party Payments,Contract Payments,CHILD SCAFFOLDING LTD,SN1 ,12/01/2024,760.00
120682249,Responsive Repairs,Repairs,Responsive Repairs,3rd Party Payments,Contract Payments,CHILD SCAFFOLDING LTD,SN1 ,12/01/2024,960.00
120682249,Responsive Repairs,Repairs,Responsive Repairs,3rd Party Payments,Contract Payments,CHILD SCAFFOLDING LTD,SN1 ,12/01/2024,880.00
120682250,Responsive Repairs,Repairs,Responsive Repairs,3rd Party Payments,Contract Payments,CHILD SCAFFOLDING LTD,SN1 ,12/01/2024,860.00
120682250,Responsive Repairs,Repairs,Responsive Repairs,3rd Party Payments,Contract Payments,CHILD SCAFFOLDING LTD,SN1 ,12/01/2024,400.00
120682251,Responsive Repairs,Repairs,Responsive Repairs,3rd Party Payments,Contract Payments,CHILD SCAFFOLDING LTD,SN1 ,12/01/2024,260.00
120682252,Responsive Repairs,Repairs,Responsive Repairs,3rd Party Payments,Contract Payments,CHILD SCAFFOLDING LTD,SN1 ,12/01/2024,640.00
123058239,Planned Maintenance Programme,HRA Capital Financing,Contingent Major Repairs,Capital,Contractor Payments,CHILD SCAFFOLDING LTD,SN1 ,29/01/2024,550.00
119431237,Void Repairs,Supervision & Management,Void Property Repairs,3rd Party Payments,Contract Payments,CHILD SCAFFOLDING LTD,SN1 ,03/01/2024,540.00
120318233,Social Care,Children & Families,Looked After Children Service,3rd Party Payments,Personal Needs,CHILDREN'S CONTACT SERVICES LTD,BS9 ,10/01/2024,"1,197.00"
121607233,Parking & Bus lanes,Highway Operations and Car Parking,Street Parking,Supplies and Services,Fees,CHIPSIDE LTD,SN15,17/01/2024,808.50
121611233,Parking & Bus lanes,Highway Operations and Car Parking,Bus Lane Enforcement,Supplies and Services,Materials,CHIPSIDE LTD,SN15,17/01/2024,"2,409.96"
121604233,Parking & Bus lanes,Highway Operations and Car Parking,Street Parking,Supplies and Services,Materials,CHIPSIDE LTD,SN15,17/01/2024,856.14
121604233,Parking & Bus lanes,Highway Operations and Car Parking,Bus Lane Enforcement,Supplies and Services,Materials,CHIPSIDE LTD,SN15,17/01/2024,"2,359.80"
121604233,Parking & Bus lanes,Highway Operations and Car Parking,Street Parking,Supplies and Services,Materials,CHIPSIDE LTD,SN15,17/01/2024,306.60
121612233,Parking & Bus lanes,Highway Operations and Car Parking,Street Parking,Supplies and Services,Materials,CHIPSIDE LTD,SN15,17/01/2024,319.20
121612233,Parking & Bus lanes,Highway Operations and Car Parking,Street Parking,Supplies and Services,Materials,CHIPSIDE LTD,SN15,17/01/2024,637.26
121611233,Parking & Bus lanes,Highway Operations and Car Parking,Street Parking,Supplies and Services,Materials,CHIPSIDE LTD,SN15,17/01/2024,728.46
121611233,Parking & Bus lanes,Highway Operations and Car Parking,Bus Lane Enforcement,Supplies and Services,Materials,CHIPSIDE LTD,SN15,17/01/2024,390.60
121612233,Parking & Bus lanes,Highway Operations and Car Parking,Bus Lane Enforcement,Supplies and Services,Materials,CHIPSIDE LTD,SN15,17/01/2024,327.60
121611233,Parking & Bus lanes,Highway Operations and Car Parking,Street Parking,Supplies and Services,Materials,CHIPSIDE LTD,SN15,17/01/2024,499.80
121612233,Parking & Bus lanes,Highway Operations and Car Parking,Bus Lane Enforcement,Supplies and Services,Materials,CHIPSIDE LTD,SN15,17/01/2024,1.03
121612233,Parking & Bus lanes,Highway Operations and Car Parking,Bus Lane Enforcement,Supplies and Services,Materials,CHIPSIDE LTD,SN15,17/01/2024,"1,824.00"
121147233,Schools - Primary,Dedicated Schools Grant (DSG),Primary School Budgets,3rd Party Payments,Mainstream Delegated Funding,CHISELDON PRIMARY SCHOOL,SN4 ,17/01/2024,"71,289.00"
121138233,Early Years Block,Dedicated Schools Grant (DSG),Free Nursery Education Commissioning - two year olds,3rd Party Payments,Contracts - Child Care,CHISELDON PRIMARY SCHOOL,SN4 ,17/01/2024,"4,076.16"
120860261,High Needs Block,Dedicated Schools Grant (DSG),SEN Resourcing Assessment Panel,3rd Party Payments,Top up funding - Maintained providers Pre 16,CHISELDON PRIMARY SCHOOL,SN4 ,15/01/2024,"1,231.25"
121166233,DSG Other Funding,Dedicated Schools Grant (DSG),DFE Additional Grants,3rd Party Payments,Payment of Pupil Premium to school,CHISELDON PRIMARY SCHOOL,SN4 ,17/01/2024,"5,441.00"
121139233,Early Years Block,Dedicated Schools Grant (DSG),Free Nursery Education Commissioning - three & four  year olds,3rd Party Payments,Contracts - Child Care,CHISELDON PRIMARY SCHOOL,SN4 ,17/01/2024,"12,276.00"
121563233,Learning Disabilities,Adults,Learning Disability 18 - 64,3rd Party Payments,Residential Care,CHOSEN CARE LTD,GL3 ,17/01/2024,"7,639.52"
121563233,Learning Disabilities,Adults,Learning Disability 18 - 64,Income,Client Contribution - Residential,CHOSEN CARE LTD,GL3 ,17/01/2024,-400.48
121563233,Learning Disabilities,Adults,Learning Disability 18 - 64,3rd Party Payments,Residential Care,CHOSEN CARE LTD,GL3 ,17/01/2024,"7,631.68"
121563233,Learning Disabilities,Adults,Learning Disability 18 - 64,Income,Client Contribution - Residential,CHOSEN CARE LTD,GL3 ,17/01/2024,-779.20
121563233,Learning Disabilities,Adults,Learning Disability 18 - 64,3rd Party Payments,Residential Care,CHOSEN CARE LTD,GL3 ,17/01/2024,"7,802.16"
122609233,Care Management & Safeguarding,Adults,Mental Capacity & DOL,3rd Party Payments,Contracts - Social Care,CHRIS HORNE BIA/AMHP LIMITED,OX18,26/01/2024,529.25
120475234,Care Management & Safeguarding,Adults,Mental Capacity & DOL,3rd Party Payments,Contracts - Social Care,CHRIS HORNE BIA/AMHP LIMITED,OX18,10/01/2024,532.40
120767241,Responsive Repairs,Repairs,Responsive Repairs,3rd Party Payments,Contract Payments,CHRIS WHEELER CONSTRUCTION LTD,SN8 ,12/01/2024,"1,555.48"
123152255,Responsive Repairs,Repairs,Responsive Repairs,3rd Party Payments,Contract Payments,CHRIS WHEELER CONSTRUCTION LTD,SN8 ,29/01/2024,"1,199.61"
123152256,Responsive Repairs,Repairs,Responsive Repairs,3rd Party Payments,Contract Payments,CHRIS WHEELER CONSTRUCTION LTD,SN8 ,29/01/2024,518.58
120767237,Responsive Repairs,Repairs,Responsive Repairs,3rd Party Payments,Contract Payments,CHRIS WHEELER CONSTRUCTION LTD,SN8 ,12/01/2024,504.95
120767240,Responsive Repairs,Repairs,Responsive Repairs,3rd Party Payments,Contract Payments,CHRIS WHEELER CONSTRUCTION LTD,SN8 ,12/01/2024,930.83
121826358,Physical Support,Adults,Physical Support 18 - 64,Transfer Payments,Personal Budget - Direct Payments - Domiciliary Care,REDACTED PERSONAL DATA,SN25,19/01/2024,952.56
121826358,Physical Support,Adults,Physical Support 18 - 64,Income,Client Contribution - Personal Budget - DP,REDACTED PERSONAL DATA,SN25,19/01/2024,-147.40
121023238,Social Care,Children & Families,Placement Adoption Service,3rd Party Payments,Adoption Allowances,REDACTED PERSONAL DATA,SN6 ,15/01/2024,"1,055.64"
123163233,Social Care,Children & Families,Placement Adoption Service,3rd Party Payments,Adoption Allowances,REDACTED PERSONAL DATA,SN6 ,29/01/2024,699.84
123164233,Social Care,Children & Families,Placement Adoption Service,3rd Party Payments,Adoption Allowances,REDACTED PERSONAL DATA,SN6 ,29/01/2024,"1,055.64"
119064238,Social Care,Children & Families,Placement Adoption Service,3rd Party Payments,Adoption Allowances,REDACTED PERSONAL DATA,SN6 ,03/01/2024,699.84
119064239,Social Care,Children & Families,Placement Adoption Service,3rd Party Payments,Adoption Allowances,REDACTED PERSONAL DATA,SN6 ,03/01/2024,"1,055.64"
121023237,Social Care,Children & Families,Placement Adoption Service,3rd Party Payments,Adoption Allowances,REDACTED PERSONAL DATA,SN6 ,15/01/2024,699.84
122819242,Social Care,Children & Families,Children's Resource and Home Finding Team,3rd Party Payments,Independent Fostering Agency Placements,CHRYSALISCARE LTD,DA7 ,26/01/2024,"5,881.01"
122819241,Social Care,Children & Families,Children's Resource and Home Finding Team,3rd Party Payments,Independent Fostering Agency Placements,CHRYSALISCARE LTD,DA7 ,26/01/2024,"6,589.67"
120800233,Social Care,Children & Families,Children's Resource and Home Finding Team,3rd Party Payments,Independent Fostering Agency Placements,CHRYSALISCARE LTD,DA7 ,15/01/2024,"5,691.30"
120799233,Social Care,Children & Families,Children's Resource and Home Finding Team,3rd Party Payments,Independent Fostering Agency Placements,CHRYSALISCARE LTD,DA7 ,15/01/2024,"6,377.10"
120494233,Other Repairs,Repairs,Asbestos Services,Premises Costs,Permanent Fixtures and Fittings,CHUBB FIRE & SECURITY T/A CHUBB COMMUNITY CARE,BB1 ,10/01/2024,531.37
121945245,Physical Support,Adults,Physical Support 65 and over,3rd Party Payments,Nursing Care,CHURCH VIEW,SN3 ,19/01/2024,"5,863.96"
121945245,Physical Support,Adults,Physical Support 65 and over,3rd Party Payments,Nursing Care,CHURCH VIEW,SN3 ,19/01/2024,716.83
121945245,Memory & Cognition,Adults,Support for Memory and Cognition 65 and over,Income,Client Contribution - Nursing,CHURCH VIEW,SN3 ,19/01/2024,-691.20
121945245,Physical Support,Adults,Physical Support 65 and over,Income,Client Contribution - Nursing,CHURCH VIEW,SN3 ,19/01/2024,"-1,080.04"
121945245,Physical Support,Adults,Physical Support 65 and over,3rd Party Payments,Nursing Care,CHURCH VIEW,SN3 ,19/01/2024,"6,496.00"
121945245,Memory & Cognition,Adults,Support for Memory and Cognition 65 and over,3rd Party Payments,Nursing Care,CHURCH VIEW,SN3 ,19/01/2024,"3,746.16"
121945245,Physical Support,Adults,Physical Support 18 - 64,3rd Party Payments,Nursing Care,CHURCH VIEW,SN3 ,19/01/2024,"2,988.96"
121945245,Physical Support,Adults,Physical Support 18 - 64,Income,Client Contribution - Nursing,CHURCH VIEW,SN3 ,19/01/2024,-552.52
121945245,Physical Support,Adults,Physical Support 65 and over,Income,Client Contribution - Nursing,CHURCH VIEW,SN3 ,19/01/2024,-691.20
121945245,Physical Support,Adults,Physical Support 65 and over,3rd Party Payments,Nursing Care,CHURCH VIEW,SN3 ,19/01/2024,"2,867.32"
121945245,Physical Support,Adults,Physical Support 65 and over,Income,Client Contribution - Nursing,CHURCH VIEW,SN3 ,19/01/2024,-800.96
121945245,Physical Support,Adults,Physical Support 65 and over,3rd Party Payments,Nursing Care,CHURCH VIEW,SN3 ,19/01/2024,"2,988.96"
121945245,Physical Support,Adults,Physical Support 65 and over,3rd Party Payments,Nursing Care,CHURCH VIEW,SN3 ,19/01/2024,"3,746.16"
121945245,Physical Support,Adults,Physical Support 65 and over,Income,Client Contribution - Nursing,CHURCH VIEW,SN3 ,19/01/2024,-979.88
121945245,Physical Support,Adults,Physical Support 65 and over,Income,Client Contribution - Nursing,CHURCH VIEW,SN3 ,19/01/2024,-709.76
121945245,Physical Support,Adults,Physical Support 65 and over,Income,Client Contribution - Nursing,CHURCH VIEW,SN3 ,19/01/2024,-741.88
121945245,Physical Support,Adults,Physical Support 65 and over,Income,Client Contribution - Nursing,CHURCH VIEW,SN3 ,19/01/2024,-763.24
121945245,Physical Support,Adults,Physical Support 18 - 64,Income,Client Contribution - Nursing,CHURCH VIEW,SN3 ,19/01/2024,-744.56
121945245,Physical Support,Adults,Physical Support 65 and over,Income,Client Contribution - Nursing,CHURCH VIEW,SN3 ,19/01/2024,-491.76
121945245,Physical Support,Adults,Physical Support 18 - 64,3rd Party Payments,Nursing Care,CHURCH VIEW,SN3 ,19/01/2024,"2,867.32"
121945245,Physical Support,Adults,Physical Support 65 and over,Income,Client Contribution - Nursing,CHURCH VIEW,SN3 ,19/01/2024,-930.44
121945245,Physical Support,Adults,Physical Support 65 and over,Income,Client Contribution - Nursing,CHURCH VIEW,SN3 ,19/01/2024,-984.92
121592246,Learning Disabilities,Adults,Learning Disability 18 - 64,Income,Client Contribution - Residential,CIDERSTONE HOUSE,SN25,17/01/2024,-438.80
121592246,Learning Disabilities,Adults,Learning Disability 18 - 64,Income,Client Contribution - Residential,CIDERSTONE HOUSE,SN25,17/01/2024,-788.80
121592246,Learning Disabilities,Adults,Learning Disability 18 - 64,3rd Party Payments,Residential Care,CIDERSTONE HOUSE,SN25,17/01/2024,"12,163.20"
121592246,Learning Disabilities,Adults,Learning Disability 18 - 64,Income,Client Contribution - Residential,CIDERSTONE HOUSE,SN25,17/01/2024,-483.20
121592246,Learning Disabilities,Adults,Learning Disability 18 - 64,3rd Party Payments,Residential Care,CIDERSTONE HOUSE,SN25,17/01/2024,"11,782.40"
120443248,Planned Maintenance Programme,HRA Capital Financing,Improvements,Capital,Contractor Payments,CIMEX LECTULARIUS LIMITED T/A BRITISH BIRD CONTROL,PE8 ,10/01/2024,500.00
120443238,Planned Maintenance Programme,HRA Capital Financing,Improvements,Capital,Contractor Payments,CIMEX LECTULARIUS LIMITED T/A BRITISH BIRD CONTROL,PE8 ,10/01/2024,500.00
120443237,Planned Maintenance Programme,HRA Capital Financing,Improvements,Capital,Contractor Payments,CIMEX LECTULARIUS LIMITED T/A BRITISH BIRD CONTROL,PE8 ,10/01/2024,500.00
120443242,Planned Maintenance Programme,HRA Capital Financing,Improvements,Capital,Contractor Payments,CIMEX LECTULARIUS LIMITED T/A BRITISH BIRD CONTROL,PE8 ,10/01/2024,500.00
120443243,Planned Maintenance Programme,HRA Capital Financing,Improvements,Capital,Contractor Payments,CIMEX LECTULARIUS LIMITED T/A BRITISH BIRD CONTROL,PE8 ,10/01/2024,500.00
120443239,Planned Maintenance Programme,HRA Capital Financing,Improvements,Capital,Contractor Payments,CIMEX LECTULARIUS LIMITED T/A BRITISH BIRD CONTROL,PE8 ,10/01/2024,500.00
120443247,Planned Maintenance Programme,HRA Capital Financing,Improvements,Capital,Contractor Payments,CIMEX LECTULARIUS LIMITED T/A BRITISH BIRD CONTROL,PE8 ,10/01/2024,500.00
120443245,Planned Maintenance Programme,HRA Capital Financing,Improvements,Capital,Contractor Payments,CIMEX LECTULARIUS LIMITED T/A BRITISH BIRD CONTROL,PE8 ,10/01/2024,500.00
120443244,Planned Maintenance Programme,HRA Capital Financing,Improvements,Capital,Contractor Payments,CIMEX LECTULARIUS LIMITED T/A BRITISH BIRD CONTROL,PE8 ,10/01/2024,500.00
120443241,Planned Maintenance Programme,HRA Capital Financing,Improvements,Capital,Contractor Payments,CIMEX LECTULARIUS LIMITED T/A BRITISH BIRD CONTROL,PE8 ,10/01/2024,500.00
120443246,Planned Maintenance Programme,HRA Capital Financing,Improvements,Capital,Contractor Payments,CIMEX LECTULARIUS LIMITED T/A BRITISH BIRD CONTROL,PE8 ,10/01/2024,500.00
120443240,Planned Maintenance Programme,HRA Capital Financing,Improvements,Capital,Contractor Payments,CIMEX LECTULARIUS LIMITED T/A BRITISH BIRD CONTROL,PE8 ,10/01/2024,500.00
121724233,Digital Services & Corporate Programmes,Digital & Business Change,IT security,Capital,Contractor Payments,CIRCLE I T SOLUTIONS LIMITED,CF23,19/01/2024,"4,680.50"
120860371,High Needs Block,Dedicated Schools Grant (DSG),Post 16 - New Responsibilties,3rd Party Payments,FE Colleges,CIRENCESTER COLLEGE,GL7 ,15/01/2024,"1,042.50"
120860367,High Needs Block,Dedicated Schools Grant (DSG),Out of Borough School Fees,3rd Party Payments,Other Local Authority Mainstream Schools- Pre 16,CIRENCESTER KINGSHILL SCHOOL,GL7 ,15/01/2024,609.58
120860366,High Needs Block,Dedicated Schools Grant (DSG),Out of Borough School Fees,3rd Party Payments,Other Local Authority Mainstream Schools- Pre 16,CIRENCESTER KINGSHILL SCHOOL,GL7 ,15/01/2024,609.58
121930233,Homelessness and Travellers,Housing Services,Private Sector Landlords,Transfer Payments,Payment of Costs,REDACTED PERSONAL DATA,SN5 ,26/01/2024,575.00
122054233,Elections & Democracy,Elections,Register of Electors,Supplies and Services,Materials,CIVICA ELECTION SERVICES LIMITED,N8 0,22/01/2024,"12,590.42"
121949233,Elections & Democracy,Elections,Register of Electors,Supplies and Services,Materials,CIVICA ELECTION SERVICES LIMITED,N8 0,19/01/2024,480.54
121949233,Elections & Democracy,Elections,Register of Electors,Supplies and Services,Post,CIVICA ELECTION SERVICES LIMITED,N8 0,19/01/2024,707.27
121438235,Human Resources and Organisational Development,"People, Culture and Organisational Resilience",HR Systems & Strategy,Supplies and Services,License Costs,CIVICA UK LTD,SE1 ,17/01/2024,"5,000.00"
120128234,Human Resources and Organisational Development,"People, Culture and Organisational Resilience",HR Systems & Strategy,Supplies and Services,License Costs,CIVICA UK LTD,SE1 ,10/01/2024,"1,600.00"
121364233,Planning & Regulatory,Strategic Planning,Economy & Development Management,Employees,Temporary / Agency - by Accounts Payable,REDACTED PERSONAL DATA,BS37,17/01/2024,"8,894.00"
121139235,Early Years Block,Dedicated Schools Grant (DSG),Free Nursery Education Commissioning - three & four  year olds,3rd Party Payments,Contracts - Child Care,REDACTED PERSONAL DATA,SN6 ,17/01/2024,"3,091.97"
121395252,Early Years Block,Dedicated Schools Grant (DSG),Free Nursery Education Commissioning - three & four  year olds,3rd Party Payments,Contracts - Child Care,REDACTED PERSONAL DATA,SN2 ,17/01/2024,644.16
121395253,Early Years Block,Dedicated Schools Grant (DSG),Free Nursery Education Commissioning - two year olds,3rd Party Payments,Contracts - Child Care,REDACTED PERSONAL DATA,SN2 ,17/01/2024,509.52
119889233,Care Management & Safeguarding,Adults,Swindon Safeguarding Partnershiph,Supplies and Services,Fees,CLARK WARD ASSOCIATES LTD,SN1 ,05/01/2024,615.00
122113233,Property Management,Property,Property Assets,Supplies and Services,Fees,CLARKE WILLMOTT LLP,TA1 ,22/01/2024,"4,476.70"
122799233,Property Management,Property,Property Assets,Supplies and Services,Fees,CLARKE WILLMOTT LLP,TA1 ,26/01/2024,"1,357.50"
119461237,Disabled Children,Children & Families,DCT Daytime Short Breaks,Transfer Payments,Personal Budget - Direct Payments - Other,REDACTED PERSONAL DATA,SN25,03/01/2024,525.40
121461233,NEV,"Economy, Growth and Place",White Hart Junction,Capital,Contractor Payments,CLEAR CHANNEL UK LTD,GU22,17/01/2024,"9,579.60"
121139236,Early Years Block,Dedicated Schools Grant (DSG),Free Nursery Education Commissioning - three & four  year olds,3rd Party Payments,Contracts - Child Care,CLIFTON ST PRE-SCHOOL,SN1 ,17/01/2024,"20,050.80"
120351233,Physical Support,Adults,Physical Support 65 and over,3rd Party Payments,Personal Budget - Respite Care,COATE WATER CARE CO LTD,SN3 ,10/01/2024,"3,985.71"
122978233,Physical Support,Adults,Physical Support 65 and over,3rd Party Payments,Personal Budget - Respite Care,COATE WATER CARE CO LTD,SN3 ,26/01/2024,"3,857.14"
121558233,Learning Disabilities,Adults,Learning Disability 18 - 64,3rd Party Payments,Residential Care,COCKLEBURY FARMHOUSE,SN15,17/01/2024,"10,364.00"
121558233,Learning Disabilities,Adults,Learning Disability 18 - 64,Income,Client Contribution - Residential,COCKLEBURY FARMHOUSE,SN15,17/01/2024,-425.60
122995233,Highways Inspections & Maintenance,Highway Operations and Car Parking,Highway Maintenance,Supplies and Services,Materials,COLAS LTD,B37 ,29/01/2024,828.00
119527233,Town Centre,"Economy, Growth and Place",Carriage Works Phase 3,Capital,Professional Fees,COLE EASDON CONSULTANTS LIMITED,SN3 ,03/01/2024,500.00
121139237,Early Years Block,Dedicated Schools Grant (DSG),Free Nursery Education Commissioning - three & four  year olds,3rd Party Payments,Contracts - Child Care,COLEVIEW PRE-SCHOOL,SN3 ,17/01/2024,"23,037.96"
120678280,Social Care,Children & Families,Children's Resource and Home Finding Team,3rd Party Payments,Semi Independent,COLLABORATIVE CARE SERVICES LTD,SN2 ,12/01/2024,"25,972.01"
121358233,Disabled Children,Children & Families,DCT Daytime Short Breaks,3rd Party Payments,Respite Care,COLLABORATIVE CARE SERVICES LTD,SN2 ,17/01/2024,"30,312.00"
120678278,Social Care,Children & Families,Children's Resource and Home Finding Team,3rd Party Payments,Semi Independent,COLLABORATIVE CARE SERVICES LTD,SN2 ,12/01/2024,"1,275.00"
120678279,Social Care,Children & Families,Children's Resource and Home Finding Team,3rd Party Payments,Semi Independent,COLLABORATIVE CARE SERVICES LTD,SN2 ,12/01/2024,"18,912.78"
121479233,Learning Disabilities,Adults,Learning Disability 18 - 64,Income,Client Contribution - Supported Living,COMMUNITY ACCESS NETWORK LTD,SN25,17/01/2024,-0.68
121479233,Learning Disabilities,Adults,Learning Disability 18 - 64,3rd Party Payments,Supported Lodgings (Childrens)/Supported Living (Adults),COMMUNITY ACCESS NETWORK LTD,SN25,17/01/2024,27.76
121479233,Learning Disabilities,Adults,Learning Disability 18 - 64,3rd Party Payments,Supported Lodgings (Childrens)/Supported Living (Adults),COMMUNITY ACCESS NETWORK LTD,SN25,17/01/2024,24.00
121479233,Learning Disabilities,Adults,Learning Disability 18 - 64,3rd Party Payments,Supported Lodgings (Childrens)/Supported Living (Adults),COMMUNITY ACCESS NETWORK LTD,SN25,17/01/2024,560.00
121551233,Learning Disabilities,Adults,Learning Disability 18 - 64,3rd Party Payments,Residential Care,COMMUNITY ACCESS NETWORK LTD,SN25,17/01/2024,"7,036.52"
121479233,Learning Disabilities,Adults,Learning Disability 18 - 64,Income,Client Contribution - Supported Living,COMMUNITY ACCESS NETWORK LTD,SN25,17/01/2024,-37.84
121479233,Learning Disabilities,Adults,Learning Disability 18 - 64,Income,Client Contribution - Supported Living,COMMUNITY ACCESS NETWORK LTD,SN25,17/01/2024,-103.68
121551233,Learning Disabilities,Adults,Learning Disability 18 - 64,Income,Client Contribution - Residential,COMMUNITY ACCESS NETWORK LTD,SN25,17/01/2024,-483.20
121479233,Learning Disabilities,Adults,Learning Disability 18 - 64,3rd Party Payments,Supported Lodgings (Childrens)/Supported Living (Adults),COMMUNITY ACCESS NETWORK LTD,SN25,17/01/2024,"4,120.00"
121479233,Learning Disabilities,Adults,Learning Disability 18 - 64,Income,Client Contribution - Supported Living,COMMUNITY ACCESS NETWORK LTD,SN25,17/01/2024,-0.60
121479233,Learning Disabilities,Adults,Learning Disability 18 - 64,3rd Party Payments,Supported Lodgings (Childrens)/Supported Living (Adults),COMMUNITY ACCESS NETWORK LTD,SN25,17/01/2024,"1,503.88"
121479233,Learning Disabilities,Adults,Learning Disability 18 - 64,3rd Party Payments,Supported Lodgings (Childrens)/Supported Living (Adults),COMMUNITY ACCESS NETWORK LTD,SN25,17/01/2024,"1,360.00"
121478233,Learning Disabilities,Adults,Learning Disability 65 and over,3rd Party Payments,Supported Lodgings (Childrens)/Supported Living (Adults),COMMUNITY ACCESS NETWORK LTD,SN25,17/01/2024,907.60
122819239,Social Care,Children & Families,Children's Resource and Home Finding Team,3rd Party Payments,Independent Fostering Agency Placements,COMMUNITY FOSTER CARE,GL1 ,26/01/2024,"10,416.62"
122819240,Social Care,Children & Families,Children's Resource and Home Finding Team,3rd Party Payments,Independent Fostering Agency Placements,COMMUNITY FOSTER CARE,GL1 ,26/01/2024,"4,058.21"
121586233,Learning Disabilities,Adults,Learning Disability 18 - 64,3rd Party Payments,Residential Care,COMMUNITY THERAPEUTIC SERVICES LTD,BS22,17/01/2024,"12,423.92"
119408233,Social Care,Children & Families,Children's Resource and Home Finding Team,3rd Party Payments,Residential Care,COMPASS CHILDREN'S HOMES LTD,LE7 ,03/01/2024,"30,267.90"
120785233,Social Care,Children & Families,Children's Resource and Home Finding Team,3rd Party Payments,Independent Fostering Agency Placements,COMPASS FOSTERING WEST LTD,LE7 ,15/01/2024,"3,401.63"
120795233,Social Care,Children & Families,Children's Resource and Home Finding Team,3rd Party Payments,Independent Fostering Agency Placements,COMPASS FOSTERING WEST LTD,LE7 ,15/01/2024,"3,756.58"
120796233,Social Care,Children & Families,Children's Resource and Home Finding Team,3rd Party Payments,Independent Fostering Agency Placements,COMPASS FOSTERING WEST LTD,LE7 ,15/01/2024,"3,852.99"
120784233,Social Care,Children & Families,Placements - Positive Futures,3rd Party Payments,Staying Put,COMPASS FOSTERING WEST LTD,LE7 ,15/01/2024,"2,208.75"
120793233,Social Care,Children & Families,Children's Resource and Home Finding Team,3rd Party Payments,Independent Fostering Agency Placements,COMPASS FOSTERING WEST LTD,LE7 ,15/01/2024,"6,016.17"
120791233,Social Care,Children & Families,Children's Resource and Home Finding Team,3rd Party Payments,Independent Fostering Agency Placements,COMPASS FOSTERING WEST LTD,LE7 ,15/01/2024,"3,401.63"
120792233,Social Care,Children & Families,Children's Resource and Home Finding Team,3rd Party Payments,Independent Fostering Agency Placements,COMPASS FOSTERING WEST LTD,LE7 ,15/01/2024,"5,822.73"
120786233,Social Care,Children & Families,Children's Resource and Home Finding Team,3rd Party Payments,Independent Fostering Agency Placements,COMPASS FOSTERING WEST LTD,LE7 ,15/01/2024,"3,222.45"
120790233,Social Care,Children & Families,Children's Resource and Home Finding Team,3rd Party Payments,Independent Fostering Agency Placements,COMPASS FOSTERING WEST LTD,LE7 ,15/01/2024,"3,618.01"
120788233,Social Care,Children & Families,Children's Resource and Home Finding Team,3rd Party Payments,Independent Fostering Agency Placements,COMPASS FOSTERING WEST LTD,LE7 ,15/01/2024,"3,452.47"
120789233,Social Care,Children & Families,Children's Resource and Home Finding Team,3rd Party Payments,Independent Fostering Agency Placements,COMPASS FOSTERING WEST LTD,LE7 ,15/01/2024,"3,788.82"
120787233,Social Care,Children & Families,Children's Resource and Home Finding Team,3rd Party Payments,Independent Fostering Agency Placements,COMPASS FOSTERING WEST LTD,LE7 ,15/01/2024,"3,222.45"
120794233,Social Care,Children & Families,Children's Resource and Home Finding Team,3rd Party Payments,Independent Fostering Agency Placements,COMPASS FOSTERING WEST LTD,LE7 ,15/01/2024,"3,852.99"
121826328,Learning Disabilities,Adults,Learning Disability 18 - 64,Transfer Payments,Personal Budget - Direct Payments - Other,REDACTED PERSONAL DATA,GL2 ,19/01/2024,32.32
121826328,Learning Disabilities,Adults,Learning Disability 18 - 64,Income,Client Contribution - Personal Budget - DP,REDACTED PERSONAL DATA,GL2 ,19/01/2024,-0.48
121826328,Learning Disabilities,Adults,Learning Disability 18 - 64,Income,Client Contribution - Personal Budget - DP,REDACTED PERSONAL DATA,GL2 ,19/01/2024,-68.32
121826328,Learning Disabilities,Adults,Learning Disability 18 - 64,Transfer Payments,Personal Budget - Direct Payments - Other,REDACTED PERSONAL DATA,GL2 ,19/01/2024,"4,560.00"
120009257,DMJ Tower,Housing Services,DMJ Residential (Now HRA),Premises Costs,Maintenance - Buildings,COOLINK LTD,SN11,08/01/2024,86.25
119432265,Property Management,Property,Corporate Repairs & Maintenance Programme,Premises Costs,Maintenance - Buildings,COOLINK LTD,SN11,03/01/2024,"1,467.00"
121900237,Responsive Repairs,Repairs,Responsive Repairs,3rd Party Payments,Contract Payments,REDACTED PERSONAL DATA,SN2 ,19/01/2024,"1,800.00"
120505233,Responsive Repairs,Repairs,Responsive Repairs,3rd Party Payments,Contract Payments,REDACTED PERSONAL DATA,SN2 ,10/01/2024,800.00
121900238,Responsive Repairs,Repairs,Responsive Repairs,3rd Party Payments,Contract Payments,REDACTED PERSONAL DATA,SN2 ,19/01/2024,"1,400.00"
119431242,Responsive Repairs,Repairs,Responsive Repairs,3rd Party Payments,Contract Payments,REDACTED PERSONAL DATA,SN2 ,03/01/2024,350.00
121900235,Responsive Repairs,Repairs,Responsive Repairs,3rd Party Payments,Contract Payments,REDACTED PERSONAL DATA,SN2 ,19/01/2024,"1,200.00"
120863242,Responsive Repairs,Repairs,Responsive Repairs,3rd Party Payments,Contract Payments,REDACTED PERSONAL DATA,SN2 ,15/01/2024,"1,850.00"
121900236,Responsive Repairs,Repairs,Responsive Repairs,3rd Party Payments,Contract Payments,REDACTED PERSONAL DATA,SN2 ,19/01/2024,650.00
121900235,Responsive Repairs,Repairs,Responsive Repairs,3rd Party Payments,Contract Payments,REDACTED PERSONAL DATA,SN2 ,19/01/2024,"1,300.00"
119431241,Responsive Repairs,Repairs,Responsive Repairs,3rd Party Payments,Contract Payments,REDACTED PERSONAL DATA,SN2 ,03/01/2024,650.00
119431242,Responsive Repairs,Repairs,Responsive Repairs,3rd Party Payments,Contract Payments,REDACTED PERSONAL DATA,SN2 ,03/01/2024,450.00
121900237,Responsive Repairs,Repairs,Responsive Repairs,3rd Party Payments,Contract Payments,REDACTED PERSONAL DATA,SN2 ,19/01/2024,"1,400.00"
120863241,Responsive Repairs,Repairs,Responsive Repairs,3rd Party Payments,Contract Payments,REDACTED PERSONAL DATA,SN2 ,15/01/2024,350.00
121900238,Responsive Repairs,Repairs,Responsive Repairs,3rd Party Payments,Contract Payments,REDACTED PERSONAL DATA,SN2 ,19/01/2024,"1,100.00"
120505233,Responsive Repairs,Repairs,Responsive Repairs,3rd Party Payments,Contract Payments,REDACTED PERSONAL DATA,SN2 ,10/01/2024,"1,200.00"
121900236,Responsive Repairs,Repairs,Responsive Repairs,3rd Party Payments,Contract Payments,REDACTED PERSONAL DATA,SN2 ,19/01/2024,300.00
120863242,Responsive Repairs,Repairs,Responsive Repairs,3rd Party Payments,Contract Payments,REDACTED PERSONAL DATA,SN2 ,15/01/2024,"1,000.00"
120863241,Responsive Repairs,Repairs,Responsive Repairs,3rd Party Payments,Contract Payments,REDACTED PERSONAL DATA,SN2 ,15/01/2024,230.00
119431241,Responsive Repairs,Repairs,Responsive Repairs,3rd Party Payments,Contract Payments,REDACTED PERSONAL DATA,SN2 ,03/01/2024,"1,150.00"
122559233,Streetsmart,Streetsmart,Waste - Processing,Premises Costs,Maintenance - Buildings,CORGIN LTD,ST16,26/01/2024,"5,880.00"
123186242,Social Care,Children & Families,Placement Adoption Service,3rd Party Payments,Adoption Allowances,REDACTED PERSONAL DATA,BA15,29/01/2024,860.00
119064269,Social Care,Children & Families,Placement Adoption Service,3rd Party Payments,Adoption Allowances,REDACTED PERSONAL DATA,BA15,03/01/2024,860.00
121023268,Social Care,Children & Families,Placement Adoption Service,3rd Party Payments,Adoption Allowances,REDACTED PERSONAL DATA,BA15,15/01/2024,860.00
121566233,Learning Disabilities,Adults,Learning Disability 18 - 64,Income,Client Contribution - Residential,CORNERSTONES UK LTD,SN9 ,17/01/2024,-487.80
121566233,Learning Disabilities,Adults,Learning Disability 18 - 64,3rd Party Payments,Residential Care,CORNERSTONES UK LTD,SN9 ,17/01/2024,"8,465.28"
121566233,Learning Disabilities,Adults,Learning Disability 18 - 64,Income,Client Contribution - Residential,CORNERSTONES UK LTD,SN9 ,17/01/2024,-423.00
121566233,Learning Disabilities,Adults,Learning Disability 18 - 64,3rd Party Payments,Residential Care,CORNERSTONES UK LTD,SN9 ,17/01/2024,"6,626.24"
121566233,Learning Disabilities,Adults,Learning Disability 18 - 64,3rd Party Payments,Residential Care,CORNERSTONES UK LTD,SN9 ,17/01/2024,"7,337.52"
121566233,Learning Disabilities,Adults,Learning Disability 18 - 64,Income,Client Contribution - Residential,CORNERSTONES UK LTD,SN9 ,17/01/2024,-483.20
121566233,Learning Disabilities,Adults,Learning Disability 18 - 64,Income,Client Contribution - Residential,CORNERSTONES UK LTD,SN9 ,17/01/2024,-381.00
121566233,Learning Disabilities,Adults,Learning Disability 18 - 64,3rd Party Payments,Residential Care,CORNERSTONES UK LTD,SN9 ,17/01/2024,"8,650.40"
121566233,Learning Disabilities,Adults,Learning Disability 18 - 64,Income,Client Contribution - Residential,CORNERSTONES UK LTD,SN9 ,17/01/2024,-438.80
121566233,Learning Disabilities,Adults,Learning Disability 18 - 64,3rd Party Payments,Residential Care,CORNERSTONES UK LTD,SN9 ,17/01/2024,"9,501.40"
122795233,Landscaping & Open Space,Culture & Heritage & Art,Changing places,Capital,Contractor Payments,COSDO SWINDON LIMITED,W1U ,26/01/2024,"33,000.00"
120182233,DSG Other Funding,Dedicated Schools Grant (DSG),LAC pupil premium,Supplies and Services,Services,COTSWOLD CHINE SCHOOL,GL5 ,17/01/2024,600.00
123331233,High Needs Block,Dedicated Schools Grant (DSG),Out of Borough School Fees,3rd Party Payments,Independent Special School- Pre 16,COTSWOLD CHINE SCHOOL,GL5 ,31/01/2024,"1,515.46"
123330233,High Needs Block,Dedicated Schools Grant (DSG),Out of Borough School Fees,3rd Party Payments,Independent Special School- Pre 16,COTSWOLD CHINE SCHOOL,GL5 ,31/01/2024,"27,553.76"
123329233,High Needs Block,Dedicated Schools Grant (DSG),Out of Borough School Fees,3rd Party Payments,Independent Special School- Pre 16,COTSWOLD CHINE SCHOOL,GL5 ,31/01/2024,"1,515.46"
123328233,High Needs Block,Dedicated Schools Grant (DSG),Out of Borough School Fees,3rd Party Payments,Independent Special School- Pre 16,COTSWOLD CHINE SCHOOL,GL5 ,31/01/2024,"27,553.76"
121038233,Streetsmart,Streetsmart,Waterside Fleet Hires,Transport Costs,Vehicle Hire / Contract,COTSWOLD RECYCLING COMPANY LTD,GL12,17/01/2024,"8,750.00"
121039233,Streetsmart,Streetsmart,Waterside Fleet Hires,Transport Costs,Vehicle Hire / Contract,COTSWOLD RECYCLING COMPANY LTD,GL12,17/01/2024,"1,900.00"
121698238,Streetsmart,Streetsmart,Waterside Fleet Hires,Transport Costs,Vehicle Hire / Contract,COTSWOLD RECYCLING COMPANY LTD,GL12,19/01/2024,"1,430.00"
121040233,Streetsmart,Streetsmart,Waterside Fleet Hires,Transport Costs,Vehicle Hire / Contract,COTSWOLD RECYCLING COMPANY LTD,GL12,17/01/2024,"1,900.00"
